Workbook

Sheet Page de couverture
C12: Manuel pour la préparation, la mise en œuvre,
C13: le suivi, le reporting et l'évaluation
D14: de la RAP et des stratégies sectorielles
D16: Conseils pour les partenaires de SIGMA
E18: Annexe 4 : Partie II
D19: Exemple de chiffrage - Albanie
D21: Calcul et présentation des coûts
E22: des actions et activités
B27: 2 Rue André Pascal 75775 Paris Cedex 16 France | D27: Ce document est produit avec le soutien financier de l’Union européenne (UE). Il ne doit pas être présenté comme exprimant les vues officielles de l’UE, de l’OCDE ou de ses pays membres, ou des pays partenaires participant au Programme SIGMA. Les opinions exprimées et les arguments employés sont ceux des auteurs. © OECD 2018 – L'utilisation de ce matériel, sous forme numérique ou imprimée, est régie par les Termes et conditions disponibles sur la page du site Internet de l'OCDE http://www.oecd.org/termsandconditions.
B28: mailto:sigmaweb@oecd.org | D28: Ce document, ainsi que les données et les cartes géographiques qu'il contient, ne préjugent pas du statut ou de la souveraineté sur un quelconque territoire, de la délimitation des frontières et limites internationales et du nom d'un territoire, d'une ville ou d'une région, quelles qu'elles soient.
B29: Tel: +33 (0) 1 45 24 82 00 www.sigmaweb.org | D29: © OECD 2018 – L'utilisation de ce matériel, sous forme numérique ou imprimée, est régie par les Termes et conditions disponibles sur la page du site Internet de l'OCDE http://www.oecd.org/termsandconditions.

Sheet Résumé
D2: Tableau de l'analyse résumée du chiffrage de la Stratégie transversale de réforme de l'administration publique
B4: Tableau 1 : Répartition des fonds par objectif
B5: Objectifs | C5: Coût potentiel total | D5: Sources de financement
D6: Budget de l'État | E6: UE (IAP) | F6: Donneurs (CdE +) | G6: Banque mondiale | H6: PNUD | I6: Écart budgétaire
B7: Objectif 1 | C7: ='A.Budgétisation réal.'!F41 -> 9204025 | D7: ='A.Budgétisation réal.'!G41 -> 8000 | E7: ='A.Budgétisation réal.'!H41 -> 450000 | F7: ='A.Budgétisation réal.'!I41 -> 0 | G7: ='A.Budgétisation réal.'!J41 -> 300000 | H7: ='A.Budgétisation réal.'!K41 -> 0 | I7: ='A.Budgétisation réal.'!L41 -> 8446025
B8: Objectif 2 | C8: ='A.Budgétisation réal.'!F63 -> 789330 | D8: ='A.Budgétisation réal.'!G63 -> 7500 | E8: ='A.Budgétisation réal.'!H63 -> 0 | F8: ='A.Budgétisation réal.'!I63 -> 0 | G8: ='A.Budgétisation réal.'!J63 -> 0 | H8: ='A.Budgétisation réal.'!K63 -> 0 | I8: ='A.Budgétisation réal.'!L63 -> 781830
B9: Objectif 3 | C9: ='A.Budgétisation réal.'!F84 -> 931375.4 | D9: ='A.Budgétisation réal.'!G84 -> 80645.4 | E9: ='A.Budgétisation réal.'!H84 -> 0 | F9: ='A.Budgétisation réal.'!I84 -> 0 | G9: ='A.Budgétisation réal.'!J84 -> 72900 | H9: ='A.Budgétisation réal.'!K84 -> 0 | I9: ='A.Budgétisation réal.'!L84 -> 777830
B10: Objectif 4 | C10: ='A.Budgétisation réal.'!F96 -> 3186525 | D10: ='A.Budgétisation réal.'!G96 -> 70000 | E10: ='A.Budgétisation réal.'!H96 -> 1000000 | F10: ='A.Budgétisation réal.'!I96 -> 315000 | G10: ='A.Budgétisation réal.'!J96 -> 0 | H10: ='A.Budgétisation réal.'!K96 -> 0 | I10: ='A.Budgétisation réal.'!L96 -> 1801525
B11: Objectif 5 | C11: ='A.Budgétisation réal.'!F103 -> 33143170 | D11: ='A.Budgétisation réal.'!G103 -> 13703370 | E11: ='A.Budgétisation réal.'!H103 -> 0 | F11: ='A.Budgétisation réal.'!I103 -> 0 | G11: ='A.Budgétisation réal.'!J103 -> 15485722 | H11: ='A.Budgétisation réal.'!K103 -> 916078 | I11: ='A.Budgétisation réal.'!L103 -> 3038000
B12: Objectif 6 | C12: ='A.Budgétisation réal.'!F145 -> 3601931 | D12: ='A.Budgétisation réal.'!G145 -> 567106.515 | E12: ='A.Budgétisation réal.'!H145 -> 1372024.25 | F12: ='A.Budgétisation réal.'!I145 -> 0 | G12: ='A.Budgétisation réal.'!J145 -> 348000 | H12: ='A.Budgétisation réal.'!K145 -> 0 | I12: ='A.Budgétisation réal.'!L145 -> 1314800.235
B13: Objectif 7 | C13: ='A.Budgétisation réal.'!F151 -> 810000 | D13: ='A.Budgétisation réal.'!G151 -> 85000 | E13: ='A.Budgétisation réal.'!H151 -> 0 | F13: ='A.Budgétisation réal.'!I151 -> 0 | G13: ='A.Budgétisation réal.'!J151 -> 0 | H13: ='A.Budgétisation réal.'!K151 -> 0 | I13: ='A.Budgétisation réal.'!L151 -> 725000
B14: Objectif 8 | C14: ='A.Budgétisation réal.'!F165 -> 10970077 | D14: ='A.Budgétisation réal.'!G165 -> 2322361.486 | E14: ='A.Budgétisation réal.'!H165 -> 1272242 | F14: ='A.Budgétisation réal.'!I165 -> 0 | G14: ='A.Budgétisation réal.'!J165 -> 1583750 | H14: ='A.Budgétisation réal.'!K165 -> 0 | I14: ='A.Budgétisation réal.'!L165 -> 5791723.514
B15: Objectif 9 | C15: ='A.Budgétisation réal.'!F172 -> 13708081 | D15: ='A.Budgétisation réal.'!G172 -> 1974175 | E15: ='A.Budgétisation réal.'!H172 -> 0 | F15: ='A.Budgétisation réal.'!I172 -> 0 | G15: ='A.Budgétisation réal.'!J172 -> 262906 | H15: ='A.Budgétisation réal.'!K172 -> 0 | I15: ='A.Budgétisation réal.'!L172 -> 11471000
B16: Objectif 10 | C16: ='A.Budgétisation réal.'!F178 -> 2700000 | D16: ='A.Budgétisation réal.'!G178 -> 0 | E16: ='A.Budgétisation réal.'!H178 -> 700000 | F16: ='A.Budgétisation réal.'!I178 -> 0 | G16: ='A.Budgétisation réal.'!J178 -> 0 | H16: ='A.Budgétisation réal.'!K178 -> 0 | I16: ='A.Budgétisation réal.'!L178 -> 2000000
B17: Objectif 11 | C17: ='A.Budgétisation réal.'!F183 -> 600000 | D17: ='A.Budgétisation réal.'!G183 -> 0 | E17: ='A.Budgétisation réal.'!H183 -> 600000 | F17: ='A.Budgétisation réal.'!I183 -> 0 | G17: ='A.Budgétisation réal.'!J183 -> 0 | H17: ='A.Budgétisation réal.'!K183 -> 0 | I17: ='A.Budgétisation réal.'!L183 -> 0
B18: Total | C18: =SUM(C7:C17) -> 79644514.4 | D18: =SUM(D7:D17) -> 18818158.4 | E18: 5394266.25 | F18: 315000 | G18: 18053278 | H18: 916078 | I18: 36147733.75
B21: Tableau 2 : Répartition des fonds par domaine
B22: Objectifs | C22: Coût potentiel total | D22: Sources de financement
D23: Budget de l'État | E23: UE (IAP) | F23: Donneurs (CdE +) | G23: Banque mondiale | H23: PNUD | I23: Écart financier
B24: Fonction publique et ressources humaines | C24: ='A.Budgétisation réal.'!E187 -> 5819425 | D24: ='A.Budgétisation réal.'!F187 -> 405000 | E24: ='A.Budgétisation réal.'!G187 -> 1200000 | F24: ='A.Budgétisation réal.'!H187 -> 50000 | G24: ='A.Budgétisation réal.'!I187 -> 348000 | H24: ='A.Budgétisation réal.'!J187 -> 0 | I24: ='A.Budgétisation réal.'!K187 -> 3816425
B25: École albanaise d'administration publique | C25: ='A.Budgétisation réal.'!E188 -> 989131 | D25: ='A.Budgétisation réal.'!F188 -> 317106.515 | E25: ='A.Budgétisation réal.'!G188 -> 672024.25 | F25: ='A.Budgétisation réal.'!H188 -> 0 | G25: ='A.Budgétisation réal.'!I188 -> 0 | H25: ='A.Budgétisation réal.'!J188 -> 0 | I25: ='A.Budgétisation réal.'!K188 -> 0.235
B26: Élaboration des politiques, législation et suivi | C26: ='A.Budgétisation réal.'!E189 -> 10852580.4 | D26: ='A.Budgétisation réal.'!F189 -> 96145.4 | E26: ='A.Budgétisation réal.'!G189 -> 450000 | F26: ='A.Budgétisation réal.'!H189 -> 0 | G26: ='A.Budgétisation réal.'!I189 -> 372900 | H26: ='A.Budgétisation réal.'!J189 -> 0 | I26: ='A.Budgétisation réal.'!K189 -> 9933535
B27: Innovation | C27: ='A.Budgétisation réal.'!E190 -> 50483328 | D27: ='A.Budgétisation réal.'!F190 -> 13699906.49 | E27: ='A.Budgétisation réal.'!G190 -> 1272242 | F27: ='A.Budgétisation réal.'!H190 -> 0 | G27: ='A.Budgétisation réal.'!I190 -> 17332378 | H27: ='A.Budgétisation réal.'!J190 -> 916078 | I27: ='A.Budgétisation réal.'!K190 -> 17262723.51
B28: Administration locale | C28: ='A.Budgétisation réal.'!E191 -> 8127900 | D28: ='A.Budgétisation réal.'!F191 -> 4300000 | E28: ='A.Budgétisation réal.'!G191 -> 500000 | F28: ='A.Budgétisation réal.'!H191 -> 265000 | G28: ='A.Budgétisation réal.'!I191 -> 0 | H28: ='A.Budgétisation réal.'!J191 -> 0 | I28: ='A.Budgétisation réal.'!K191 -> 3062900
B29: Transparence et A/C | C29: ='A.Budgétisation réal.'!E192 -> 3372150 | D29: ='A.Budgétisation réal.'!F192 -> 0 | E29: ='A.Budgétisation réal.'!G192 -> 1300000 | F29: ='A.Budgétisation réal.'!H192 -> 0 | G29: ='A.Budgétisation réal.'!I192 -> 0 | H29: ='A.Budgétisation réal.'!J192 -> 0 | I29: ='A.Budgétisation réal.'!K192 -> 2072150
C30: =SUM(C24:C29) -> 79644514.4 | D30: 18818158.4 | E30: 5394266.25 | F30: 315000 | G30: 18053278 | H30: 916078 | I30: 36147733.75
B33: Tableau 3 : Répartition par poste de dépenses
C34: Dépenses par poste en EURO | L34: Total
C35: Fonds de rémunération pour le personnel supplémentaire | D35: Dépenses pour les conférences/séminaires et la formation | E35: Expertise (locale et étrangère) | F35: Dépenses d'information publique (publications) | G35: Immeubles | H35: Logiciels informatiques | I35: Équipement informatique | J35: Fournitures de bureau | K35: Autres dépenses et entretien
B36: Fonction publique et ressources humaines | C36: ='Fonction publique et GRH'!J44 -> 0 | D36: ='Fonction publique et GRH'!S44 -> 267375 | E36: ='Fonction publique et GRH'!V44+'Fonction publique et GRH'!Y44 -> 4035050 | F36: ='Fonction publique et GRH'!AB44 -> 20000 | G36: ='Fonction publique et GRH'!AC44 -> 0 | H36: ='Fonction publique et GRH'!AD44 -> 613000 | I36: ='Fonction publique et GRH'!AG44 -> 200000 | J36: ='Fonction publique et GRH'!AJ44 -> 0 | K36: ='Fonction publique et GRH'!AK44 -> 684000 | L36: =SUM(C36:K36) -> 5819425 | M36: =L36-C24 -> 0
B37: École albanaise d'administration publique | C37: =EAAP!K45 -> 72000 | D37: =EAAP!T45 -> 501435 | E37: =EAAP!W45+EAAP!Z45 -> 140217 | F37: =EAAP!AC45 -> 4000 | G37: =EAAP!AD45 -> 70000 | H37: =EAAP!AE45 -> 70000 | I37: =EAAP!AH45 -> 39000 | J37: =EAAP!AK45 -> 16000 | K37: =EAAP!AL45 -> 76479 | L37: 989131 | M37: =L37-C25 -> 0
B38: Élaboration des politiques, législation et suivi | C38: ='Politiques&Suivi&Législation'!L88 -> 259200 | D38: ='Politiques&Suivi&Législation'!U88 -> 883515 | E38: ='Politiques&Suivi&Législation'!X88+'Politiques&Suivi&Législation'!AA88 -> 9077468.257 | F38: ='Politiques&Suivi&Législation'!AD88 -> 179500 | G38: ='Politiques&Suivi&Législation'!AE88 -> 0 | H38: ='Politiques&Suivi&Législation'!AF88 -> 250000 | I38: ='Politiques&Suivi&Législation'!AI88 -> 0 | J38: ='Politiques&Suivi&Législation'!AL88 -> 0 | K38: ='Politiques&Suivi&Législation'!AM88 -> 202897.1429 | L38: 10852580.4 | M38: 0
B39: Innovation | C39: =Innovation!K36 -> 3435720 | D39: =Innovation!T36 -> 200256 | E39: =Innovation!Z36+Innovation!W36 -> 10534246 | F39: =Innovation!AC36 -> 386728 | G39: =Innovation!AD36 -> 18282740 | H39: =Innovation!AE36 -> 8628015 | I39: =Innovation!AH36 -> 5172639 | J39: =Innovation!AK36 -> 50640 | K39: =Innovation!AL36 -> 3792344 | L39: 50483328 | M39: 0
B40: Administration locale | C40: ='Décentralisation '!J16 -> 0 | D40: ='Décentralisation '!S16 -> 238250 | E40: ='Décentralisation '!V16+'Décentralisation '!Y16 -> 612650 | F40: ='Décentralisation '!AB16 -> 0 | G40: ='Décentralisation '!AC16 -> 4830000 | H40: ='Décentralisation '!AD16 -> 1542000 | I40: ='Décentralisation '!AG16 -> 905000 | J40: ='Décentralisation '!AJ16 -> 0 | K40: ='Décentralisation '!AK16 -> 0 | L40: 8127900 | M40: 0
B41: Transparence et A/C | C41: ='Transparence & Anti-corruption '!J26 -> 0 | D41: ='Transparence & Anti-corruption '!S26 -> 4450 | E41: ='Transparence & Anti-corruption '!V26+'Transparence & Anti-corruption '!Y26 -> 485750 | F41: ='Transparence & Anti-corruption '!AB26 -> 0 | G41: ='Transparence & Anti-corruption '!AC26 -> 0 | H41: ='Transparence & Anti-corruption '!AD26 -> 674000 | I41: ='Transparence & Anti-corruption '!AG26 -> 200000 | J41: ='Transparence & Anti-corruption '!AJ26 -> 0 | K41: ='Transparence & Anti-corruption '!AK26 -> 2007950 | L41: 3372150 | M41: 0
C42: =SUM(C36:C41) -> 3766920 | D42: 2095281 | E42: 24885381.26 | F42: 590228 | G42: 23182740 | H42: 11777015 | I42: 6516639 | J42: 66640 | K42: 6763670.143 | L42: 79644514.4 | M42: 0
B43: En part spécifique
B44: Fonction publique et ressources humaines | C44: =C36/$L$36 -> 0 | D44: =D36/$L$36 -> 0.04594526091 | E44: 0.6933760638 | F44: 0.00343676566 | G44: 0 | H44: 0.1053368675 | I44: 0.0343676566 | J44: 0 | K44: 0.1175373856 | L44: =SUM(C44:K44) -> 1
B45: École albanaise d'administration publique | C45: =C37/$L$37 -> 0.0727911672 | D45: =D37/$L$37 -> 0.506944985 | E45: 0.1417577651 | F45: 0.004043953733 | G45: 0.07076919033 | H45: 0.07076919033 | I45: 0.0394285489 | J45: 0.01617581493 | K45: 0.07731938439 | L45: 1
B46: Élaboration des politiques, législation et suivi | C46: =C38/$L$38 -> 0.02388372078 | D46: =D38/$L$38 -> 0.08141059245 | E46: 0.8364340942 | F46: 0.01653984522 | G46: 0 | H46: 0.02303599612 | I46: 0 | J46: 0 | K46: 0.01869575118 | L46: 1
B47: Innovation | C47: =C39/$L$39 -> 0.06805652749 | D47: =D39/$L$39 -> 0.003966774932 | E47: 0.20866782 | F47: 0.007660509228 | G47: 0.3621540165 | H47: 0.1709082056 | I47: 0.1024623218 | J47: 0.00100310344 | K47: 0.07512072104 | L47: 1
B48: Administration locale | C48: =C40/$L$40 -> 0 | D48: =D40/$L$40 -> 0.02931261457 | E48: 0.07537617343 | F48: 0 | G48: 0.5942494371 | H48: 0.189716901 | I48: 0.1113448738 | J48: 0 | K48: 0 | L48: 1
B49: Transparence et A/C | C49: =C41/$L$41 -> 0 | D49: =D41/$L$41 -> 0.001319632875 | E49: 0.1440475661 | F49: 0 | G49: 0 | H49: 0.1998724849 | I49: 0.0593093427 | J49: 0 | K49: 0.5954509734 | L49: 1
C50: =SUM(C44:C49) -> 0.1647314155 | D50: 0.6688998608 | E50: 2.099659483 | F50: 0.03168107384 | G50: 1.027172644 | H50: 0.7596396455 | I50: 0.3469127438 | J50: 0.01717891837 | K50: 0.8841242156 | L50: 6
B52: Tableau : Sources de financement
C53: Total
B54: Budget de l'État | C54: =D30 -> 18818158.4
B55: UE (IAP) | C55: =E30 -> 5394266.25
B56: Donneurs (CdE+) | C56: =F30 -> 315000
B57: Banque mondiale | C57: =G30 -> 18053278
B58: =H23 -> PNUD | C58: =H30 -> 916078
B59: Écart financier | C59: =I30 -> 36147733.75

Sheet A.Budgétisation réal.
B2: Tableau 1 : Estimation du coût de la Stratégie transversale de réforme de l'administration publique
A3: N° | B3: Actions | C3: Activités/Indicateurs | E3: Explications | F3: Coût estimé des réalisations | G3: Sources de financement (par réalisation)
G6: Budget de l'État (PBMT 2015-2017) | L6: Écart budgétaire
H7: IAP | I7: Donneurs (CdE+) | J7: BM | K7: PNUD | L7: Financial gap
A8: 1 | B8: 2 | C8: 3 | D8: 4 | F8: 5 | G8: 6 | H8: 7 | I8: 8 | J8: 9 | K8: 10 | L8: 11
A9: 1 | B9: Objectif 1 - Amélioration de la planification et de la coordination des politiques de préparation des documents stratégiques du gouvernement, qui transforment les priorités en actions concrètes.
A10: 1.1 | B10: Évaluation de la situation et du cadre réglementaire actuels pour préparer des stratégies sectorielles et transversales complémentaires des compétences des parties prenantes impliquées dans le processus (Unités centrales du Bureau du Premier ministre et unités des institutions centrales). | C10: 1.1.1 | D10: ='Politiques&Suivi&Législation'!F10 -> Analyse de l'évaluation de la situation | F10: ='Politiques&Suivi&Législation'!AN10 -> 149500 | G10: ='Politiques&Suivi&Législation'!AO10 -> 0 | H10: ='Politiques&Suivi&Législation'!AP10 -> 0 | I10: ='Politiques&Suivi&Législation'!AQ10 -> 0 | J10: ='Politiques&Suivi&Législation'!AR10 -> 25000 | K10: ='Politiques&Suivi&Législation'!AS10 -> 0 | L10: ='Politiques&Suivi&Législation'!AT10 -> 124500
C11: 1.1.2 | D11: ='Politiques&Suivi&Législation'!F11 -> Révision du cadre réglementaire pour les stratégies sectorielles et transversales (Révision de l'Ordre sur la préparation des stratégies sectorielles et transversales) | F11: ='Politiques&Suivi&Législation'!AN11 -> 25000 | H11: ='Politiques&Suivi&Législation'!AP11 -> 0 | I11: ='Politiques&Suivi&Législation'!AQ11 -> 0 | J11: ='Politiques&Suivi&Législation'!AR11 -> 25000 | K11: ='Politiques&Suivi&Législation'!AS11 -> 0 | L11: ='Politiques&Suivi&Législation'!AT11 -> 0
C12: 1.1.3 | D12: ='Politiques&Suivi&Législation'!F12 -> Révision du fonctionnement d'autres groupes transversaux dans les GPGI (groupes de politiques de gestion intégrée) (y compris tout le cycle d'élaboration des politiques - mise en oeuvre - suivi) | F12: ='Politiques&Suivi&Législation'!AN12 -> 1041000 | G12: ='Politiques&Suivi&Législation'!AO12 -> 7000 | H12: ='Politiques&Suivi&Législation'!AP12 -> 0 | I12: ='Politiques&Suivi&Législation'!AQ12 -> 0 | J12: ='Politiques&Suivi&Législation'!AR12 -> 0 | K12: ='Politiques&Suivi&Législation'!AS12 -> 0 | L12: ='Politiques&Suivi&Législation'!AT12 -> 1034000
C13: 1.1.4 | D13: ='Politiques&Suivi&Législation'!F13 -> Assistance au fonctionnement du projet pilote de GPGI (eau, social, compétitivité) | F13: ='Politiques&Suivi&Législation'!AN13 -> 450000 | G13: ='Politiques&Suivi&Législation'!AO13 -> 0 | H13: ='Politiques&Suivi&Législation'!AP13 -> 450000 | I13: ='Politiques&Suivi&Législation'!AQ13 -> 0 | J13: ='Politiques&Suivi&Législation'!AR13 -> 0 | K13: ='Politiques&Suivi&Législation'!AS13 -> 0 | L13: ='Politiques&Suivi&Législation'!AT13 -> 0
C14: 1.1.5 | D14: ='Politiques&Suivi&Législation'!F14 -> Assistance au fonctionnement des autres GPGI | F14: ='Politiques&Suivi&Législation'!AN14 -> 1656375 | G14: ='Politiques&Suivi&Législation'!AO14 -> 0 | H14: ='Politiques&Suivi&Législation'!AP14 -> 0 | I14: ='Politiques&Suivi&Législation'!AQ14 -> 0 | J14: ='Politiques&Suivi&Législation'!AR14 -> 0 | K14: ='Politiques&Suivi&Législation'!AS14 -> 0 | L14: ='Politiques&Suivi&Législation'!AT14 -> 1656375
C15: 1.1.6 | D15: ='Politiques&Suivi&Législation'!F15 -> Préparation d'un programme de formation pour l'ensemble du personnel responsable de l'élaboration des politiques dans les ministères sectoriels (départements d'élaboration et de coordination des politiques), pour la rédaction des documents et politiques stratégiques. | F15: ='Politiques&Suivi&Législation'!AN15 -> 42000 | G15: ='Politiques&Suivi&Législation'!AO15 -> 1000 | H15: ='Politiques&Suivi&Législation'!AP15 -> 0 | I15: ='Politiques&Suivi&Législation'!AQ15 -> 0 | J15: ='Politiques&Suivi&Législation'!AR15 -> 0 | K15: ='Politiques&Suivi&Législation'!AS15 -> 0 | L15: ='Politiques&Suivi&Législation'!AT15 -> 41000
C16: 1.1.7 | D16: ='Politiques&Suivi&Législation'!F16 -> Mise en œuvre du programme de formation pour tout le personnel responsable de l'élaboration des politiques dans les ministères sectoriels (départements d'élaboration et de coordination des politiques) | F16: ='Politiques&Suivi&Législation'!AN16 -> 109700 | G16: ='Politiques&Suivi&Législation'!AO16 -> 0 | H16: ='Politiques&Suivi&Législation'!AP16 -> 0 | I16: ='Politiques&Suivi&Législation'!AQ16 -> 0 | J16: ='Politiques&Suivi&Législation'!AR16 -> 0 | K16: ='Politiques&Suivi&Législation'!AS16 -> 0 | L16: ='Politiques&Suivi&Législation'!AT16 -> 109700
C17: 1.1.8 | D17: ='Politiques&Suivi&Législation'!F17 -> Préparation de stratégies et documents transversaux | F17: ='Politiques&Suivi&Législation'!AN17 -> 1662500 | G17: ='Politiques&Suivi&Législation'!AO17 -> 0 | H17: ='Politiques&Suivi&Législation'!AP17 -> 0 | I17: ='Politiques&Suivi&Législation'!AQ17 -> 0 | J17: ='Politiques&Suivi&Législation'!AR17 -> 0 | K17: ='Politiques&Suivi&Législation'!AS17 -> 0 | L17: ='Politiques&Suivi&Législation'!AT17 -> 1662500
C18: 1.1.9 | D18: ='Politiques&Suivi&Législation'!F18 -> Préparation des Plans de gestion intégrée (PGI) des ministères sectoriels | F18: ='Politiques&Suivi&Législation'!AN18 -> 332500 | G18: ='Politiques&Suivi&Législation'!AO18 -> 0 | H18: ='Politiques&Suivi&Législation'!AP18 -> 0 | I18: ='Politiques&Suivi&Législation'!AQ18 -> 0 | J18: ='Politiques&Suivi&Législation'!AR18 -> 0 | K18: ='Politiques&Suivi&Législation'!AS18 -> 0 | L18: ='Politiques&Suivi&Législation'!AT18 -> 332500
C19: 1.1.10 | D19: ='Politiques&Suivi&Législation'!F19 -> Publication des PGI | F19: ='Politiques&Suivi&Législation'!AN19 -> 28500 | G19: ='Politiques&Suivi&Législation'!AO19 -> 0 | H19: ='Politiques&Suivi&Législation'!AP19 -> 0 | I19: ='Politiques&Suivi&Législation'!AQ19 -> 0 | J19: ='Politiques&Suivi&Législation'!AR19 -> 0 | K19: ='Politiques&Suivi&Législation'!AS19 -> 0 | L19: ='Politiques&Suivi&Législation'!AT19 -> 28500
C20: 1.1.11 | D20: ='Politiques&Suivi&Législation'!F23 -> Analyse de l'évaluation de la situation | F20: ='Politiques&Suivi&Législation'!AN23 -> 61500 | G20: ='Politiques&Suivi&Législation'!AO23 -> 0 | H20: ='Politiques&Suivi&Législation'!AP23 -> 0 | I20: ='Politiques&Suivi&Législation'!AQ23 -> 0 | J20: ='Politiques&Suivi&Législation'!AR23 -> 0 | K20: ='Politiques&Suivi&Législation'!AS23 -> 0 | L20: ='Politiques&Suivi&Législation'!AT23 -> 61500
C21: 1.1.12 | D21: ='Politiques&Suivi&Législation'!F24 -> Examen du cadre institutionnel et légal pertinent (rédaction d'un nouvel Ordre, Manuel de SPI, et examen du calendrier annuel du SPI) | F21: ='Politiques&Suivi&Législation'!AN24 -> 49000 | G21: ='Politiques&Suivi&Législation'!AO24 -> 0 | H21: ='Politiques&Suivi&Législation'!AP24 -> 0 | I21: ='Politiques&Suivi&Législation'!AQ24 -> 0 | J21: ='Politiques&Suivi&Législation'!AR24 -> 0 | K21: ='Politiques&Suivi&Législation'!AS24 -> 0 | L21: ='Politiques&Suivi&Législation'!AT24 -> 49000
C22: 1.1.13 | D22: ='Politiques&Suivi&Législation'!F25 -> Mise en œuvre du nouveau système et renforcement des compétences | F22: ='Politiques&Suivi&Législation'!AN25 -> 130200 | G22: ='Politiques&Suivi&Législation'!AO25 -> 0 | H22: ='Politiques&Suivi&Législation'!AP25 -> 0 | I22: ='Politiques&Suivi&Législation'!AQ25 -> 0 | J22: ='Politiques&Suivi&Législation'!AR25 -> 0 | K22: ='Politiques&Suivi&Législation'!AS25 -> 0 | L22: ='Politiques&Suivi&Législation'!AT25 -> 130200
F23: ='Politiques&Suivi&Législation'!AN26 -> 367200 | G23: ='Politiques&Suivi&Législation'!AO26 -> 0 | H23: ='Politiques&Suivi&Législation'!AP26 -> 0 | I23: ='Politiques&Suivi&Législation'!AQ26 -> 0 | J23: ='Politiques&Suivi&Législation'!AR26 -> 0 | K23: ='Politiques&Suivi&Législation'!AS26 -> 0 | L23: ='Politiques&Suivi&Législation'!AT26 -> 367200
A24: 1.2 | B24: Préparation du cadre réglementaire pour la rédaction des stratégies sectorielles et transversales, et des documents stratégiques sectoriels 2015-2020, dans le cadre de la SNID (Stratégie nationale pour l'intégration et le développement) 2015-2020. | C24: 1.2.1 | D24: ='Politiques&Suivi&Législation'!F20 -> Préparation d'analyses sectorielles et transversales de la mise en œuvre à moyen terme (phase 2014/15-2016) | F24: ='Politiques&Suivi&Législation'!AN20 -> 227500 | G24: ='Politiques&Suivi&Législation'!AO20 -> 0 | H24: ='Politiques&Suivi&Législation'!AP20 -> 0 | I24: ='Politiques&Suivi&Législation'!AQ20 -> 0 | J24: ='Politiques&Suivi&Législation'!AR20 -> 0 | K24: ='Politiques&Suivi&Législation'!AS20 -> 0 | L24: ='Politiques&Suivi&Législation'!AT20 -> 227500
C25: 1.2.2 | D25: ='Politiques&Suivi&Législation'!F21 -> Analyse à moyen terme de la mise en œuvre de la SNID 2014-2020 | F25: ='Politiques&Suivi&Législation'!AN21 -> 71000 | G25: ='Politiques&Suivi&Législation'!AO21 -> 0 | H25: ='Politiques&Suivi&Législation'!AP21 -> 0 | I25: ='Politiques&Suivi&Législation'!AQ21 -> 0 | J25: ='Politiques&Suivi&Législation'!AR21 -> 0 | K25: ='Politiques&Suivi&Législation'!AS21 -> 0 | L25: ='Politiques&Suivi&Législation'!AT21 -> 71000
C26: 1.2.3 | D26: ='Politiques&Suivi&Législation'!F22 -> Révision à moyen terme des stratégies et documents stratégiques de la SNID 2014-2020 | F26: ='Politiques&Suivi&Législation'!AN22 -> 1633500 | G26: ='Politiques&Suivi&Législation'!AO22 -> 0 | H26: ='Politiques&Suivi&Législation'!AP22 -> 0 | I26: ='Politiques&Suivi&Législation'!AQ22 -> 0 | J26: ='Politiques&Suivi&Législation'!AR22 -> 0 | K26: ='Politiques&Suivi&Législation'!AS22 -> 0 | L26: ='Politiques&Suivi&Législation'!AT22 -> 1633500
A27: 1.3 | B27: Renforcement des compétences dans le Département de la programmation et du financement du développement et de l'aide étrangère (DPFDDAE) concernant la planification stratégique et la planification des politiques publiques , sur la base d'une évaluation des besoins en formation. | C27: 1.3.1 | D27: ='Politiques&Suivi&Législation'!F27 -> Recrutement de personnel | F27: ='Politiques&Suivi&Législation'!AN27 -> 259200 | G27: ='Politiques&Suivi&Législation'!AO27 -> 0 | H27: ='Politiques&Suivi&Législation'!AP27 -> 0 | I27: ='Politiques&Suivi&Législation'!AQ27 -> 0 | J27: ='Politiques&Suivi&Législation'!AR27 -> 0 | K27: ='Politiques&Suivi&Législation'!AS27 -> 0 | L27: ='Politiques&Suivi&Législation'!AT27 -> 259200
C28: 1.3.2 | D28: ='Politiques&Suivi&Législation'!F28 -> Formation et séminaires avec le personnel du Département de la programmation et du financement du développement et de l'aide étrangère. | F28: ='Politiques&Suivi&Législation'!AN28 -> 6500 | G28: ='Politiques&Suivi&Législation'!AO28 -> 0 | H28: ='Politiques&Suivi&Législation'!AP28 -> 0 | I28: ='Politiques&Suivi&Législation'!AQ28 -> 0 | J28: ='Politiques&Suivi&Législation'!AR28 -> 0 | K28: ='Politiques&Suivi&Législation'!AS28 -> 0 | L28: ='Politiques&Suivi&Législation'!AT28 -> 6500
C29: 1.3.3 | D29: ='Politiques&Suivi&Législation'!F29 -> Voyages d'études pour comprendre les pratiques et expériences d'autres pays. | F29: ='Politiques&Suivi&Législation'!AN29 -> 9000 | G29: ='Politiques&Suivi&Législation'!AO29 -> 0 | H29: ='Politiques&Suivi&Législation'!AP29 -> 0 | I29: ='Politiques&Suivi&Législation'!AQ29 -> 0 | J29: ='Politiques&Suivi&Législation'!AR29 -> 0 | K29: ='Politiques&Suivi&Législation'!AS29 -> 0 | L29: ='Politiques&Suivi&Législation'!AT29 -> 9000
A30: 1.4 | B30: Renforcement des compétences dans les institutions centrales, après avoir évalué les besoins concernant la planification stratégique et la planification des politiques publiques (ainsi que l'utilisation du SPI et du système d'information du SPI). | C30: 1.4.1 | D30: ='Politiques&Suivi&Législation'!F30 -> Mise en place du SISPI | F30: ='Politiques&Suivi&Législation'!AN30 -> 250000 | G30: ='Politiques&Suivi&Législation'!AO30 -> 0 | H30: ='Politiques&Suivi&Législation'!AP30 -> 0 | I30: ='Politiques&Suivi&Législation'!AQ30 -> 0 | J30: ='Politiques&Suivi&Législation'!AR30 -> 250000 | K30: ='Politiques&Suivi&Législation'!AS30 -> 0 | L30: ='Politiques&Suivi&Législation'!AT30 -> 0
C31: 1.4.3 | D31: ='Politiques&Suivi&Législation'!F31 -> Formation du personnel des institutions centrales concernant la gestion et la maintenance du SISPI. | F31: ='Politiques&Suivi&Législation'!AN31 -> 11190 | G31: ='Politiques&Suivi&Législation'!AO31 -> 0 | H31: ='Politiques&Suivi&Législation'!AP31 -> 0 | I31: ='Politiques&Suivi&Législation'!AQ31 -> 0 | J31: ='Politiques&Suivi&Législation'!AR31 -> 0 | K31: ='Politiques&Suivi&Législation'!AS31 -> 0 | L31: ='Politiques&Suivi&Législation'!AT31 -> 11190
C32: 1.5.2 | D32: ='Politiques&Suivi&Législation'!F32 -> Renforcement des compétences des institutions utilisant le SIMFA, et rédaction des rapports de suivi pertinents. | E32: La valeur du SIMFA n'est pas inclue, car elle est comprise dans la Stratégie de GFP comme activité budgétisée. | F32: ='Politiques&Suivi&Législation'!AN32 -> 0 | G32: ='Politiques&Suivi&Législation'!AO32 -> 0 | H32: ='Politiques&Suivi&Législation'!AP32 -> 0 | I32: ='Politiques&Suivi&Législation'!AQ32 -> 0 | J32: ='Politiques&Suivi&Législation'!AR32 -> 0 | K32: ='Politiques&Suivi&Législation'!AS32 -> 0 | L32: ='Politiques&Suivi&Législation'!AT32 -> 0
C33: 1.5.3 | D33: ='Politiques&Suivi&Législation'!F33 -> Renforcement des compétences du MdF pour la gestion du SIMFA. | F33: ='Politiques&Suivi&Législation'!AN33 -> 0 | G33: ='Politiques&Suivi&Législation'!AO33 -> 0 | H33: ='Politiques&Suivi&Législation'!AP33 -> 0 | I33: ='Politiques&Suivi&Législation'!AQ33 -> 0 | J33: ='Politiques&Suivi&Législation'!AR33 -> 0 | K33: ='Politiques&Suivi&Législation'!AS33 -> 0 | L33: ='Politiques&Suivi&Législation'!AT33 -> 0
A34: 1.6 | B34: Renforcement des compétences de l'administration centrale pour la rédaction du PBMT (Programme budgétaire à moyen terme). | C34: 1.6.1 | D34: ='Politiques&Suivi&Législation'!F34 -> Renforcement des compétences des institutions en lien avec le Programme budgétaire à moyen terme. | F34: ='Politiques&Suivi&Législation'!AN34 -> 27900 | G34: ='Politiques&Suivi&Législation'!AO34 -> 0 | H34: ='Politiques&Suivi&Législation'!AP34 -> 0 | I34: ='Politiques&Suivi&Législation'!AQ34 -> 0 | J34: ='Politiques&Suivi&Législation'!AR34 -> 0 | K34: ='Politiques&Suivi&Législation'!AS34 -> 0 | L34: ='Politiques&Suivi&Législation'!AT34 -> 27900
A35: 1.7 | B35: Renforcement des compétences des ministères sectoriels en termes de rédaction des politiques, des stratégies, des plans d'action et des programmes de développement. | D35: ='Politiques&Suivi&Législation'!F35 -> Renforcement des compétences des ministères sectoriels par la mise en œuvre du Programme de formation pour la planification stratégique. | F35: ='Politiques&Suivi&Législation'!AN35 -> 62590 | G35: ='Politiques&Suivi&Législation'!AO35 -> 0 | H35: ='Politiques&Suivi&Législation'!AP35 -> 0 | I35: ='Politiques&Suivi&Législation'!AQ35 -> 0 | J35: ='Politiques&Suivi&Législation'!AR35 -> 0 | K35: ='Politiques&Suivi&Législation'!AS35 -> 0 | L35: ='Politiques&Suivi&Législation'!AT35 -> 62590
D36: ='Politiques&Suivi&Législation'!F36 -> Renforcement des compétences des unités chargées de l'élaboration des politiques pour garantir une bonne direction et de bons conseils pour la rédaction et le suivi des documents stratégiques. | F36: ='Politiques&Suivi&Législation'!AN36 -> 13170 | G36: ='Politiques&Suivi&Législation'!AO36 -> 0 | H36: ='Politiques&Suivi&Législation'!AP36 -> 0 | I36: ='Politiques&Suivi&Législation'!AQ36 -> 0 | J36: ='Politiques&Suivi&Législation'!AR36 -> 0 | K36: ='Politiques&Suivi&Législation'!AS36 -> 0 | L36: ='Politiques&Suivi&Législation'!AT36 -> 13170
A37: 1.8 | B37: Renforcement des compétences et amélioration du fonctionnement du Groupe de gesiton stratégique comme strucutre de coordination au sein de chaque ministère. | C37: 1.8.1 | D37: ='Politiques&Suivi&Législation'!F38 -> Évaluation de la situation en termes de fonctionnement des Groupes de gestion stratégique (GGS) | F37: ='Politiques&Suivi&Législation'!AN38 -> 55750 | G37: ='Politiques&Suivi&Législation'!AO38 -> 0 | H37: ='Politiques&Suivi&Législation'!AP38 -> 0 | I37: ='Politiques&Suivi&Législation'!AQ38 -> 0 | J37: ='Politiques&Suivi&Législation'!AR38 -> 0 | K37: ='Politiques&Suivi&Législation'!AS38 -> 0 | L37: ='Politiques&Suivi&Législation'!AT38 -> 55750
C38: 1.8.2 | D38: ='Politiques&Suivi&Législation'!F39 -> Modification du cadre légal et institutionnel approprié pour le fonctionnement des GGS. | F38: ='Politiques&Suivi&Législation'!AN39 -> 16000 | G38: ='Politiques&Suivi&Législation'!AO39 -> 0 | H38: ='Politiques&Suivi&Législation'!AP39 -> 0 | I38: ='Politiques&Suivi&Législation'!AQ39 -> 0 | J38: ='Politiques&Suivi&Législation'!AR39 -> 0 | K38: ='Politiques&Suivi&Législation'!AS39 -> 0 | L38: ='Politiques&Suivi&Législation'!AT39 -> 16000
C39: 1.8.3 | D39: ='Politiques&Suivi&Législation'!F40 -> Préparation du programme de formation pour les cadres supérieurs en lien avec le cycle de gestion des politiques publiques. | F39: ='Politiques&Suivi&Législation'!AN40 -> 28500 | G39: ='Politiques&Suivi&Législation'!AO40 -> 0 | H39: ='Politiques&Suivi&Législation'!AP40 -> 0 | I39: ='Politiques&Suivi&Législation'!AQ40 -> 0 | J39: ='Politiques&Suivi&Législation'!AR40 -> 0 | K39: ='Politiques&Suivi&Législation'!AS40 -> 0 | L39: ='Politiques&Suivi&Législation'!AT40 -> 28500
C40: 1.8.4 | D40: ='Politiques&Suivi&Législation'!F41 -> Renforcement des compétences des cadres supérieurs des ministères sectoriels par la mise en oeuvre du programme de formation sur le cycle de gestion des politiques publiques. | F40: ='Politiques&Suivi&Législation'!AN41 -> 427250 | G40: ='Politiques&Suivi&Législation'!AO41 -> 0 | H40: ='Politiques&Suivi&Législation'!AP41 -> 0 | I40: ='Politiques&Suivi&Législation'!AQ41 -> 0 | J40: ='Politiques&Suivi&Législation'!AR41 -> 0 | K40: ='Politiques&Suivi&Législation'!AS41 -> 0 | L40: ='Politiques&Suivi&Législation'!AT41 -> 427250
B41: Total cost of Objective 1 | F41: =SUM(F10:F40) -> 9204025 | G41: 8000 | H41: 450000 | I41: 0 | J41: 300000 | K41: 0 | L41: 8446025 | M41: ='Politiques&Suivi&Législation'!AN42 -> 9204025 | N41: ='Politiques&Suivi&Législation'!AO42 -> 8000 | O41: ='Politiques&Suivi&Législation'!AP42 -> 450000 | P41: ='Politiques&Suivi&Législation'!AQ42 -> 0 | Q41: ='Politiques&Suivi&Législation'!AR42 -> 300000 | R41: ='Politiques&Suivi&Législation'!AS42 -> 0 | S41: ='Politiques&Suivi&Législation'!AT42 -> 8446025
A42: 2 | B42: Objectif 2 : Système transparent et exhaustif de rédaction législative, fondé sur les politiques publiques et garantissant la conformité avec l'acquis | M42: =F41-M41 -> 0 | N42: =G41-N41 -> 0 | O42: 0 | P42: 0 | Q42: 0 | R42: 0 | S42: 0
A43: 2.1 | B43: Evaluation des défis auxquels est actuellement confronté le processus de rédaction des lois | C43: 2.1.1 | D43: Projet d'analyse évaluative de la situation | F43: ='Politiques&Suivi&Législation'!AN44 -> 28500 | G43: ='Politiques&Suivi&Législation'!AO44 -> 0 | H43: ='Politiques&Suivi&Législation'!AP44 -> 0 | I43: ='Politiques&Suivi&Législation'!AQ44 -> 0 | J43: ='Politiques&Suivi&Législation'!AR44 -> 0 | K43: ='Politiques&Suivi&Législation'!AS44 -> 0 | L43: ='Politiques&Suivi&Législation'!AT44 -> 28500
C44: 2.1.2 | D44: ='Politiques&Suivi&Législation'!F45 -> Paquet législatif sur la rédaction des lois (projets de lois et de règlements) | F44: ='Politiques&Suivi&Législation'!AN45 -> 82500 | G44: ='Politiques&Suivi&Législation'!AO45 -> 0 | H44: ='Politiques&Suivi&Législation'!AP45 -> 0 | I44: ='Politiques&Suivi&Législation'!AQ45 -> 0 | J44: ='Politiques&Suivi&Législation'!AR45 -> 0 | K44: ='Politiques&Suivi&Législation'!AS45 -> 0 | L44: ='Politiques&Suivi&Législation'!AT45 -> 82500
A45: 2.2 | B45: Rédaction de manuels de technique d'élaboration des lois et réglements et d'un manuel de rédaction des textes juridiques | C45: 2.2.1 | D45: Analyse des personnels en termes d'emploi, d'organigrammes et de fiches de poste | F45: ='Politiques&Suivi&Législation'!AN47 -> 33000 | G45: ='Politiques&Suivi&Législation'!AO47 -> 0 | H45: ='Politiques&Suivi&Législation'!AP47 -> 0 | I45: ='Politiques&Suivi&Législation'!AQ47 -> 0 | J45: ='Politiques&Suivi&Législation'!AR47 -> 0 | K45: ='Politiques&Suivi&Législation'!AS47 -> 0 | L45: ='Politiques&Suivi&Législation'!AT47 -> 33000
C46: 2.2.2. | D46: ='Politiques&Suivi&Législation'!F48 -> Critères plus stricts pour les postes impliqués dans le processus législatif. | F46: ='Politiques&Suivi&Législation'!AN48 -> 6700 | G46: ='Politiques&Suivi&Législation'!AO48 -> 0 | H46: ='Politiques&Suivi&Législation'!AP48 -> 0 | I46: ='Politiques&Suivi&Législation'!AQ48 -> 0 | J46: ='Politiques&Suivi&Législation'!AR48 -> 0 | K46: ='Politiques&Suivi&Législation'!AS48 -> 0 | L46: ='Politiques&Suivi&Législation'!AT48 -> 6700
C47: 2.2.3 | D47: Rédaction de fiches de poste claires | F47: ='Politiques&Suivi&Législation'!AN49 -> 14750 | G47: ='Politiques&Suivi&Législation'!AO49 -> 0 | H47: ='Politiques&Suivi&Législation'!AP49 -> 0 | I47: ='Politiques&Suivi&Législation'!AQ49 -> 0 | J47: ='Politiques&Suivi&Législation'!AR49 -> 0 | K47: ='Politiques&Suivi&Législation'!AS49 -> 0 | L47: ='Politiques&Suivi&Législation'!AT49 -> 14750
C48: 2.2.2. | D48: ='Politiques&Suivi&Législation'!F50 -> Rédaction d'un manuel/d'un protocole de travail pour la consultation des actes. | F48: ='Politiques&Suivi&Législation'!AN50 -> 7500 | G48: ='Politiques&Suivi&Législation'!AO50 -> 7500 | H48: ='Politiques&Suivi&Législation'!AP50 -> 0 | I48: ='Politiques&Suivi&Législation'!AQ50 -> 0 | J48: ='Politiques&Suivi&Législation'!AR50 -> 0 | K48: ='Politiques&Suivi&Législation'!AS50 -> 0 | L48: ='Politiques&Suivi&Législation'!AT50 -> 0
A49: 2.3 | B49: Evaluation systématique des failles législatives facilitant la corruption (protection contre la corruption) | C49: 2.3.1 | D49: ='Transparence & Anti-corruption '!E9 -> Intégration du manuel sur la prévention de la corruption. | E49: Sans surcoût | F49: ='Transparence & Anti-corruption '!AL9 -> 0 | G49: ='Transparence & Anti-corruption '!AM9 -> 0 | H49: ='Transparence & Anti-corruption '!AN9 -> 0 | I49: ='Transparence & Anti-corruption '!AO9 -> 0 | J49: ='Transparence & Anti-corruption '!AP9 -> 0 | K49: ='Transparence & Anti-corruption '!AQ9 -> 0 | L49: ='Transparence & Anti-corruption '!AR9 -> 0
C50: 2.3.2 | D50: ='Transparence & Anti-corruption '!E10 -> Elaboration d'une méthodologie d'analyse de la législation aux fins de détecter les failles facilitant la corruption. | F50: ='Transparence & Anti-corruption '!AL10 -> 72150 | G50: ='Transparence & Anti-corruption '!AM10 -> 0 | H50: ='Transparence & Anti-corruption '!AN10 -> 0 | I50: ='Transparence & Anti-corruption '!AO10 -> 0 | J50: ='Transparence & Anti-corruption '!AP10 -> 0 | K50: ='Transparence & Anti-corruption '!AQ10 -> 0 | L50: ='Transparence & Anti-corruption '!AR10 -> 72150
A51: 2.4 | B51: Veiller à la mise en œuvre de la loi sur la communication et la concertation publiques et la compléter par des décrets | C51: 2.3.1 | D51: ='Politiques&Suivi&Législation'!F52 -> Adoption de règlements pour faciliter la procédure de consultation. | F51: ='Politiques&Suivi&Législation'!AN52 -> 9000 | G51: ='Politiques&Suivi&Législation'!AO52 -> 0 | H51: ='Politiques&Suivi&Législation'!AP52 -> 0 | I51: ='Politiques&Suivi&Législation'!AQ52 -> 0 | J51: ='Politiques&Suivi&Législation'!AR52 -> 0 | K51: ='Politiques&Suivi&Législation'!AS52 -> 0 | L51: ='Politiques&Suivi&Législation'!AT52 -> 9000
C52: 2.3.2 | D52: ='Politiques&Suivi&Législation'!F53 -> Création d'une base de données des parties prenantes | E52: Sans surcoût | F52: ='Politiques&Suivi&Législation'!AN53 -> 0 | G52: ='Politiques&Suivi&Législation'!AO53 -> 0 | H52: ='Politiques&Suivi&Législation'!AP53 -> 0 | I52: ='Politiques&Suivi&Législation'!AQ53 -> 0 | J52: ='Politiques&Suivi&Législation'!AR53 -> 0 | K52: ='Politiques&Suivi&Législation'!AS53 -> 0 | L52: ='Politiques&Suivi&Législation'!AT53 -> 0
C53: 2.3.3 | D53: ='Politiques&Suivi&Législation'!F54 -> Rédaction d'un manuel/protocole de travail pour la consultation des actes. | E53: Sans surcoût | F53: ='Politiques&Suivi&Législation'!AN54 -> 0 | G53: ='Politiques&Suivi&Législation'!AO54 -> 0 | H53: ='Politiques&Suivi&Législation'!AP54 -> 0 | I53: ='Politiques&Suivi&Législation'!AQ54 -> 0 | J53: ='Politiques&Suivi&Législation'!AR54 -> 0 | K53: ='Politiques&Suivi&Législation'!AS54 -> 0 | L53: ='Politiques&Suivi&Législation'!AT54 -> 0
C54: 2.3.4 | D54: ='Politiques&Suivi&Législation'!F55 -> Formation des personnes responsables des consultations. | F54: ='Politiques&Suivi&Législation'!AN55 -> 9120 | G54: ='Politiques&Suivi&Législation'!AO55 -> 0 | H54: ='Politiques&Suivi&Législation'!AP55 -> 0 | I54: ='Politiques&Suivi&Législation'!AQ55 -> 0 | J54: ='Politiques&Suivi&Législation'!AR55 -> 0 | K54: ='Politiques&Suivi&Législation'!AS55 -> 0 | L54: ='Politiques&Suivi&Législation'!AT55 -> 9120
A55: 2.4 | B55: Amélioration de la procédure de réalisation des études d'impact obligatoires et des évaluations du respect de l'acquis. Meilleure prise en compte par la réglementation des politiques publiques menées dans le pays. | C55: 2.4.1 | D55: ='Politiques&Suivi&Législation'!F56 -> Analyse du degré de compréhension des impacts estimés des actes. | F55: ='Politiques&Suivi&Législation'!AN56 -> 88000 | G55: ='Politiques&Suivi&Législation'!AO56 -> 0 | H55: ='Politiques&Suivi&Législation'!AP56 -> 0 | I55: ='Politiques&Suivi&Législation'!AQ56 -> 0 | J55: ='Politiques&Suivi&Législation'!AR56 -> 0 | K55: ='Politiques&Suivi&Législation'!AS56 -> 0 | L55: ='Politiques&Suivi&Législation'!AT56 -> 88000
C56: 2.4.2 | D56: ='Politiques&Suivi&Législation'!F57 -> Loi sur l'AIR adoptée, rendant obligatoire l'analyse en question. | E56: Sans surcoût | F56: ='Politiques&Suivi&Législation'!AN57 -> 0 | G56: ='Politiques&Suivi&Législation'!AO57 -> 0 | H56: ='Politiques&Suivi&Législation'!AP57 -> 0 | I56: ='Politiques&Suivi&Législation'!AQ57 -> 0 | J56: ='Politiques&Suivi&Législation'!AR57 -> 0 | K56: ='Politiques&Suivi&Législation'!AS57 -> 0 | L56: ='Politiques&Suivi&Législation'!AT57 -> 0
C57: 2.4.3 | D57: ='Politiques&Suivi&Législation'!F58 -> et X AIR menées/essayées sous la loi adoptée (projets dans X institutions pour X questions). | F57: ='Politiques&Suivi&Législation'!AN58 -> 184000 | G57: ='Politiques&Suivi&Législation'!AO58 -> 0 | H57: ='Politiques&Suivi&Législation'!AP58 -> 0 | I57: ='Politiques&Suivi&Législation'!AQ58 -> 0 | J57: ='Politiques&Suivi&Législation'!AR58 -> 0 | K57: ='Politiques&Suivi&Législation'!AS58 -> 0 | L57: ='Politiques&Suivi&Législation'!AT58 -> 184000
A58: 2.5 | B58: Amélioration des compétences des services chargés de la rédaction legislative et des services centraux responsables du suivi | C58: 2.5.1 | D58: ='Politiques&Suivi&Législation'!F59 -> Formation en rédaction législative pour les services centraux | F58: ='Politiques&Suivi&Législation'!AN59 -> 30825 | G58: ='Politiques&Suivi&Législation'!AO59 -> 0 | H58: ='Politiques&Suivi&Législation'!AP59 -> 0 | I58: ='Politiques&Suivi&Législation'!AQ59 -> 0 | J58: ='Politiques&Suivi&Législation'!AR59 -> 0 | K58: ='Politiques&Suivi&Législation'!AS59 -> 0 | L58: ='Politiques&Suivi&Législation'!AT59 -> 30825
C59: 2.5.2 | D59: ='Politiques&Suivi&Législation'!F60 -> Formation en rédaction législative pour les ministères sectoriels | F59: ='Politiques&Suivi&Législation'!AN60 -> 5190 | G59: ='Politiques&Suivi&Législation'!AO60 -> 0 | H59: ='Politiques&Suivi&Législation'!AP60 -> 0 | I59: ='Politiques&Suivi&Législation'!AQ60 -> 0 | J59: ='Politiques&Suivi&Législation'!AR60 -> 0 | K59: ='Politiques&Suivi&Législation'!AS60 -> 0 | L59: ='Politiques&Suivi&Législation'!AT60 -> 5190
C60: 2.5.3 | D60: ='Politiques&Suivi&Législation'!F61 -> Formation en rédaction législative pour les institutions indépendantes | F60: ='Politiques&Suivi&Législation'!AN61 -> 3095 | G60: ='Politiques&Suivi&Législation'!AO61 -> 0 | H60: ='Politiques&Suivi&Législation'!AP61 -> 0 | I60: ='Politiques&Suivi&Législation'!AQ61 -> 0 | J60: ='Politiques&Suivi&Législation'!AR61 -> 0 | K60: ='Politiques&Suivi&Législation'!AS61 -> 0 | L60: ='Politiques&Suivi&Législation'!AT61 -> 3095
A61: 2.6 | B61: Amélioration de la transparence de la publicité des lois | C61: 2.6.1 | D61: ='Politiques&Suivi&Législation'!F62 -> Obligation (Instruction) du service officiel des publications de publier les lois consolidées. | F61: ='Politiques&Suivi&Législation'!AN62 -> 25000 | G61: ='Politiques&Suivi&Législation'!AO62 -> 0 | H61: ='Politiques&Suivi&Législation'!AP62 -> 0 | I61: ='Politiques&Suivi&Législation'!AQ62 -> 0 | J61: ='Politiques&Suivi&Législation'!AR62 -> 0 | K61: ='Politiques&Suivi&Législation'!AS62 -> 0 | L61: ='Politiques&Suivi&Législation'!AT62 -> 25000
C62: 2.6.2 | D62: ='Politiques&Suivi&Législation'!F63 -> Chaque institution devra avoir posté les lois consolidées sur son site internet en 2015. | F62: ='Politiques&Suivi&Législation'!AN63 -> 190000 | G62: ='Politiques&Suivi&Législation'!AO63 -> 0 | H62: ='Politiques&Suivi&Législation'!AP63 -> 0 | I62: ='Politiques&Suivi&Législation'!AQ63 -> 0 | J62: ='Politiques&Suivi&Législation'!AR63 -> 0 | K62: ='Politiques&Suivi&Législation'!AS63 -> 0 | L62: ='Politiques&Suivi&Législation'!AT63 -> 190000
B63: Coût total de l'objectif 2 | F63: =SUM(F43:F62) -> 789330 | G63: 7500 | H63: 0 | I63: 0 | J63: 0 | K63: 0 | L63: 781830 | M63: ='Politiques&Suivi&Législation'!AN64+'Transparence & Anti-corruption '!AL11 -> 789330 | N63: ='Politiques&Suivi&Législation'!AO64+'Transparence & Anti-corruption '!AM11 -> 7500 | O63: ='Politiques&Suivi&Législation'!AP64+'Transparence & Anti-corruption '!AN11 -> 0 | P63: ='Politiques&Suivi&Législation'!AQ64+'Transparence & Anti-corruption '!AO11 -> 0 | Q63: ='Politiques&Suivi&Législation'!AR64+'Transparence & Anti-corruption '!AP11 -> 0 | R63: ='Politiques&Suivi&Législation'!AS64+'Transparence & Anti-corruption '!AQ11 -> 0 | S63: ='Politiques&Suivi&Législation'!AT64+'Transparence & Anti-corruption '!AR11 -> 781830
A64: 3 | B64: Objectif 3 : Création d'un système efficace de suivi et d'évaluation des stratégies, programmes et cadre juridique en vigueur, sur la base des éléments suivants : 1) recueil de données par un procédé neutre et transparent pour la rédaciton et l'élaboration des stratégies, programmes et lois, et 2) préparation d'une analyse pour évaluer les effets induits par la mise en oeuvre. | M64: =F63-M63 -> 0 | N64: =G63-N63 -> 0 | O64: 0 | P64: 0 | Q64: 0 | R64: 0 | S64: 0
A65: 3.1 | B65: Évaluation de la situation actuelle concernant le système de suivi et d'évaluation utilisé par le gouvernement, y compris l'institution chargée des ces fonctions, les ressources humaines disponibles et les besoins en renforcement des compétences, la méthodologie utilisée et le cadre réglementaire en vigueur. | C65: 3.1.1 | D65: ='Politiques&Suivi&Législation'!F66 -> Analyse de l'évaluation de la situation actuelle concernant le suivi des stratégies sectorielles et transversales | F65: ='Politiques&Suivi&Législation'!AN66 -> 62500 | G65: ='Politiques&Suivi&Législation'!AO66 -> 0 | H65: ='Politiques&Suivi&Législation'!AP66 -> 0 | I65: ='Politiques&Suivi&Législation'!AQ66 -> 0 | J65: ='Politiques&Suivi&Législation'!AR66 -> 0 | K65: ='Politiques&Suivi&Législation'!AS66 -> 0 | L65: ='Politiques&Suivi&Législation'!AT66 -> 62500
C66: 3.1.2 | D66: ='Politiques&Suivi&Législation'!F67 -> Examen de la base juridique permettant le suivi des stratégies sectorielles et transversales | F66: ='Politiques&Suivi&Législation'!AN67 -> 59000 | G66: ='Politiques&Suivi&Législation'!AO67 -> 0 | H66: ='Politiques&Suivi&Législation'!AP67 -> 0 | I66: ='Politiques&Suivi&Législation'!AQ67 -> 0 | J66: ='Politiques&Suivi&Législation'!AR67 -> 0 | K66: ='Politiques&Suivi&Législation'!AS67 -> 0 | L66: ='Politiques&Suivi&Législation'!AT67 -> 59000
C67: 3.1.3 | D67: ='Politiques&Suivi&Législation'!F68 -> Analyse de l'évaluation de la situation existante en matière de suivi et d'évaluation (S &E) (structures et ressources humaines) | F67: ='Politiques&Suivi&Législation'!AN68 -> 91000 | G67: ='Politiques&Suivi&Législation'!AO68 -> 0 | H67: ='Politiques&Suivi&Législation'!AP68 -> 0 | I67: ='Politiques&Suivi&Législation'!AQ68 -> 0 | J67: ='Politiques&Suivi&Législation'!AR68 -> 0 | K67: ='Politiques&Suivi&Législation'!AS68 -> 0 | L67: ='Politiques&Suivi&Législation'!AT68 -> 91000
C68: 3.1.4 | D68: ='Politiques&Suivi&Législation'!F69 -> Analyse de l'évaluation du cadre juridique actuel et de la méthodologie de S &E | F68: ='Politiques&Suivi&Législation'!AN69 -> 42000 | G68: ='Politiques&Suivi&Législation'!AO69 -> 0 | H68: ='Politiques&Suivi&Législation'!AP69 -> 0 | I68: ='Politiques&Suivi&Législation'!AQ69 -> 0 | J68: ='Politiques&Suivi&Législation'!AR69 -> 0 | K68: ='Politiques&Suivi&Législation'!AS69 -> 0 | L68: ='Politiques&Suivi&Législation'!AT69 -> 42000
C69: 3.1.5 | D69: ='Politiques&Suivi&Législation'!F70 -> Analyse de l'évaluation des besoins en formation pour les structures de S &E. | F69: ='Politiques&Suivi&Législation'!AN70 -> 72250 | G69: ='Politiques&Suivi&Législation'!AO70 -> 0 | H69: ='Politiques&Suivi&Législation'!AP70 -> 0 | I69: ='Politiques&Suivi&Législation'!AQ70 -> 0 | J69: ='Politiques&Suivi&Législation'!AR70 -> 0 | K69: ='Politiques&Suivi&Législation'!AS70 -> 0 | L69: ='Politiques&Suivi&Législation'!AT70 -> 72250
C70: 3.1.6 | D70: ='Politiques&Suivi&Législation'!F71 -> Formation du personnel des Unités de suivi du Bureau du Premier ministre et des ministères sectoriels | F70: ='Politiques&Suivi&Législation'!AN71 -> 0 | G70: ='Politiques&Suivi&Législation'!AO71 -> 0 | H70: ='Politiques&Suivi&Législation'!AP71 -> 0 | I70: ='Politiques&Suivi&Législation'!AQ71 -> 0 | J70: ='Politiques&Suivi&Législation'!AR71 -> 0 | K70: ='Politiques&Suivi&Législation'!AS71 -> 0 | L70: ='Politiques&Suivi&Législation'!AT71 -> 0
A71: 3.2 | B71: Création et amélioration du système de suivi et d'évaluation du Gouvernement albanais par la réforme du cadre réglementaire en vigueur, une révision fonctionnelle des unités responsables du suivi et de l'évaluation dans les institutions centrales et le renforcement des compétences du personnel de ces institutions, mais aussi des unités centrales de suivi du Bureau du Premier ministre, par la mise en place d'un réseau de suivi et d'évaluation efficace. | C71: 3.2.1 | D71: ='Politiques&Suivi&Législation'!F72 -> Publication de rapports annuels des ministères sectoriels sur la mise en œuvre des stratégies sectorielles/transversales respectives, de la NSDI, ainsi que du DPFDDAE. | F71: ='Politiques&Suivi&Législation'!AN72 -> 144000 | G71: ='Politiques&Suivi&Législation'!AO72 -> 0 | H71: ='Politiques&Suivi&Législation'!AP72 -> 0 | I71: ='Politiques&Suivi&Législation'!AQ72 -> 0 | J71: ='Politiques&Suivi&Législation'!AR72 -> 0 | K71: ='Politiques&Suivi&Législation'!AS72 -> 0 | L71: ='Politiques&Suivi&Législation'!AT72 -> 144000
C72: 3.2.2 | D72: ='Politiques&Suivi&Législation'!F73 -> Rédaction d'un nouveau cadre juridique pour le système de suivi et d'évaluation. | F72: ='Politiques&Suivi&Législation'!AN73 -> 69500 | G72: ='Politiques&Suivi&Législation'!AO73 -> 0 | H72: ='Politiques&Suivi&Législation'!AP73 -> 0 | I72: ='Politiques&Suivi&Législation'!AQ73 -> 0 | J72: ='Politiques&Suivi&Législation'!AR73 -> 0 | K72: ='Politiques&Suivi&Législation'!AS73 -> 0 | L72: ='Politiques&Suivi&Législation'!AT73 -> 69500
C73: 3.2.3 | D73: ='Politiques&Suivi&Législation'!F74 -> Révision des structures des ministères en vue de la mise en œuvre sur système de S & E | E73: Sans surcoût | F73: ='Politiques&Suivi&Législation'!AN74 -> 0 | G73: ='Politiques&Suivi&Législation'!AO74 -> 0 | H73: ='Politiques&Suivi&Législation'!AP74 -> 0 | I73: ='Politiques&Suivi&Législation'!AQ74 -> 0 | J73: ='Politiques&Suivi&Législation'!AR74 -> 0 | K73: ='Politiques&Suivi&Législation'!AS74 -> 0 | L73: ='Politiques&Suivi&Législation'!AT74 -> 0
C74: 3.2.4 | D74: ='Politiques&Suivi&Législation'!F75 -> Mise en place d'un réseau de S & E et renforcement des compétences (formation) | E74: Le coût de la formation sera déterminé après achèvement de l'activité 3.2.3 | F74: ='Politiques&Suivi&Législation'!AN75 -> 0 | G74: ='Politiques&Suivi&Législation'!AO75 -> 0 | H74: ='Politiques&Suivi&Législation'!AP75 -> 0 | I74: ='Politiques&Suivi&Législation'!AQ75 -> 0 | J74: ='Politiques&Suivi&Législation'!AR75 -> 0 | K74: ='Politiques&Suivi&Législation'!AS75 -> 0 | L74: ='Politiques&Suivi&Législation'!AT75 -> 0
A75: 3.3 | B75: Elaboration de la méthodologie de suivi et d'évaluation. | C75: 3.3.1 | D75: ='Politiques&Suivi&Législation'!F76 -> Manuel sur le suivi des stratégies sectorielles/transversales (EMP) et Manuel de formation pour l'administration (FdF) | F75: ='Politiques&Suivi&Législation'!AN76 -> 61500 | G75: ='Politiques&Suivi&Législation'!AO76 -> 0 | H75: ='Politiques&Suivi&Législation'!AP76 -> 0 | I75: ='Politiques&Suivi&Législation'!AQ76 -> 0 | J75: ='Politiques&Suivi&Législation'!AR76 -> 61500 | K75: ='Politiques&Suivi&Législation'!AS76 -> 0 | L75: ='Politiques&Suivi&Législation'!AT76 -> 0
C76: 3.3.2 | D76: ='Politiques&Suivi&Législation'!F77 -> Renforcement des compétences du DPFDDAE concernant la rédaction des rapports de synthèse annuels sur la mise en œuvre du cadre stratégique (ToT) | F76: ='Politiques&Suivi&Législation'!AN77 -> 11400 | G76: ='Politiques&Suivi&Législation'!AO77 -> 0 | H76: ='Politiques&Suivi&Législation'!AP77 -> 0 | I76: ='Politiques&Suivi&Législation'!AQ77 -> 0 | J76: ='Politiques&Suivi&Législation'!AR77 -> 11400 | K76: ='Politiques&Suivi&Législation'!AS77 -> 0 | L76: ='Politiques&Suivi&Législation'!AT77 -> 0
C77: 3.3.3 | D77: ='Politiques&Suivi&Législation'!F78 -> Renforcement des compétences des ministères sectoriels pour établir les rapports EMP | F77: ='Politiques&Suivi&Législation'!AN78 -> 92800 | G77: ='Politiques&Suivi&Législation'!AO78 -> 0 | H77: ='Politiques&Suivi&Législation'!AP78 -> 0 | I77: ='Politiques&Suivi&Législation'!AQ78 -> 0 | J77: ='Politiques&Suivi&Législation'!AR78 -> 0 | K77: ='Politiques&Suivi&Législation'!AS78 -> 0 | L77: ='Politiques&Suivi&Législation'!AT78 -> 92800
C78: 3.3.4 | D78: ='Politiques&Suivi&Législation'!F79 -> Elabroation de la méthodologie de suivi et d'évaluation pour le Programme du gouvernement | F78: ='Politiques&Suivi&Législation'!AN79 -> 64780 | G78: ='Politiques&Suivi&Législation'!AO79 -> 0 | H78: ='Politiques&Suivi&Législation'!AP79 -> 0 | I78: ='Politiques&Suivi&Législation'!AQ79 -> 0 | J78: ='Politiques&Suivi&Législation'!AR79 -> 0 | K78: ='Politiques&Suivi&Législation'!AS79 -> 0 | L78: ='Politiques&Suivi&Législation'!AT79 -> 64780
C79: 3.3.5 | D79: ='Politiques&Suivi&Législation'!F80 -> Elabroation de la méthodologie de suivi et d'évaluation de la mise en application des lois | F79: ='Politiques&Suivi&Législation'!AN80 -> 80000 | G79: ='Politiques&Suivi&Législation'!AO80 -> 0 | H79: ='Politiques&Suivi&Législation'!AP80 -> 0 | I79: ='Politiques&Suivi&Législation'!AQ80 -> 0 | J79: ='Politiques&Suivi&Législation'!AR80 -> 0 | K79: ='Politiques&Suivi&Législation'!AS80 -> 0 | L79: ='Politiques&Suivi&Législation'!AT80 -> 80000
A80: 3.4 | B80: Utilisation des sytèmes de suivi électronique par les institutions gouvernementales. | C80: 3.4.1 | D80: ='Politiques&Suivi&Législation'!F81 -> Système électronique de suivi de la mise en œuvre du Programme du gouvernement | F80: ='Politiques&Suivi&Législation'!AN81 -> 12857.14286 | G80: ='Politiques&Suivi&Législation'!AO81 -> 12857.14286 | H80: ='Politiques&Suivi&Législation'!AP81 -> 0 | I80: ='Politiques&Suivi&Législation'!AQ81 -> 0 | J80: ='Politiques&Suivi&Législation'!AR81 -> 0 | K80: ='Politiques&Suivi&Législation'!AS81 -> 0 | L80: ='Politiques&Suivi&Législation'!AT81 -> 0
C81: 3.4.2 | D81: ='Politiques&Suivi&Législation'!F82 -> Système électronique de suivi du flux d'information et de correspondance | F81: ='Politiques&Suivi&Législation'!AN82 -> 65268.25714 | G81: ='Politiques&Suivi&Législation'!AO82 -> 65268.25714 | H81: ='Politiques&Suivi&Législation'!AP82 -> 0 | I81: ='Politiques&Suivi&Législation'!AQ82 -> 0 | J81: ='Politiques&Suivi&Législation'!AR82 -> 0 | K81: ='Politiques&Suivi&Législation'!AS82 -> 0 | L81: ='Politiques&Suivi&Législation'!AT82 -> 0
C82: 3.4.3 | D82: ='Politiques&Suivi&Législation'!F83 -> Système d'actes électroniques (système de suivi du processus de rédaction législative) | F82: ='Politiques&Suivi&Législation'!AN83 -> 2520 | G82: ='Politiques&Suivi&Législation'!AO83 -> 2520 | H82: ='Politiques&Suivi&Législation'!AP83 -> 0 | I82: ='Politiques&Suivi&Législation'!AQ83 -> 0 | J82: ='Politiques&Suivi&Législation'!AR83 -> 0 | K82: ='Politiques&Suivi&Législation'!AS83 -> 0 | L82: ='Politiques&Suivi&Législation'!AT83 -> 0
C83: 3.4.4 | D83: ='Politiques&Suivi&Législation'!F84 -> Système électronique de suivi intégré "The watchtower" ("La Tour de contrôle"). | E83: Le coût de la construction du système ne peut être déterminé qu'après l'analyse des fonctions qui doit être menée par la NAIS (Agence nationale sur la société de l'information). | F83: ='Politiques&Suivi&Législation'!AN84 -> 0 | G83: ='Politiques&Suivi&Législation'!AO84 -> 0 | H83: ='Politiques&Suivi&Législation'!AP84 -> 0 | I83: ='Politiques&Suivi&Législation'!AQ84 -> 0 | J83: ='Politiques&Suivi&Législation'!AR84 -> 0 | K83: ='Politiques&Suivi&Législation'!AS84 -> 0 | L83: ='Politiques&Suivi&Législation'!AT84 -> 0
B84: Coût total de l'Objectif 3 | F84: =SUM(F65:F83) -> 931375.4 | G84: =SUM(G65:G83) -> 80645.4 | H84: 0 | I84: 0 | J84: 72900 | K84: 0 | L84: 777830 | M84: ='Politiques&Suivi&Législation'!AN87 -> 931375.4 | N84: ='Politiques&Suivi&Législation'!AO87 -> 80645.4 | O84: ='Politiques&Suivi&Législation'!AP87 -> 0 | P84: ='Politiques&Suivi&Législation'!AQ87 -> 0 | Q84: ='Politiques&Suivi&Législation'!AR87 -> 72900 | R84: ='Politiques&Suivi&Législation'!AS87 -> 0 | S84: ='Politiques&Suivi&Législation'!AT87 -> 777830
A85: 4 | B85: Objectif 4 : Renforcer les structures de l'administration publique afin d'améliorer la prestation de services au public. | M85: =F84-M84 -> 0 | N85: =G84-N84 -> 0 | O85: 0 | P85: 0 | Q85: 0 | R85: 0 | S85: 0
A86: 4.1 | B86: Mener une étude pour examiner les fonctions et l'organisation interne des institutions de l'administration aux niveaux central et local. | C86: 4.1.1 | D86: ='Fonction publique et GRH'!E9 -> Étude et analyse du transfert des fonctions de l'État vers le marché privé de la prestation de services. | F86: ='Fonction publique et GRH'!AL9 -> 1235000 | G86: ='Fonction publique et GRH'!AM9 -> 0 | H86: ='Fonction publique et GRH'!AN9 -> 0 | I86: ='Fonction publique et GRH'!AO9 -> 0 | J86: ='Fonction publique et GRH'!AP9 -> 0 | K86: ='Fonction publique et GRH'!AQ9 -> 0 | L86: ='Fonction publique et GRH'!AR9 -> 1235000
C87: 4.1.2 | D87: ='Fonction publique et GRH'!E10 -> Évaluation (inventaire) des nouvelles unités de ressources humaines au niveau national. | F87: ='Fonction publique et GRH'!AL10 -> 50000 | G87: ='Fonction publique et GRH'!AM10 -> 0 | H87: ='Fonction publique et GRH'!AN10 -> 0 | I87: ='Fonction publique et GRH'!AO10 -> 0 | J87: ='Fonction publique et GRH'!AP10 -> 0 | K87: ='Fonction publique et GRH'!AQ10 -> 0 | L87: ='Fonction publique et GRH'!AR10 -> 50000
C88: 4.1.3 | D88: ='Fonction publique et GRH'!E11 -> Création d'un cadre fonctionnel pour les relations entre les ministères et leurs institutions subordonnées. | F88: ='Fonction publique et GRH'!AL11 -> 541625 | G88: ='Fonction publique et GRH'!AM11 -> 0 | H88: ='Fonction publique et GRH'!AN11 -> 0 | I88: ='Fonction publique et GRH'!AO11 -> 50000 | J88: ='Fonction publique et GRH'!AP11 -> 0 | K88: ='Fonction publique et GRH'!AQ11 -> 0 | L88: ='Fonction publique et GRH'!AR11 -> 491625
C89: 4.1.4 | D89: ='Fonction publique et GRH'!E12 -> Manuel de procédures pour les procédures administratives et le système de gestion des documents dans les ministères sectoriels (IAP A.1.5). | F89: ='Fonction publique et GRH'!AL12 -> 500000 | G89: ='Fonction publique et GRH'!AM12 -> 0 | H89: ='Fonction publique et GRH'!AN12 -> 500000 | I89: ='Fonction publique et GRH'!AO12 -> 0 | J89: ='Fonction publique et GRH'!AP12 -> 0 | K89: ='Fonction publique et GRH'!AQ12 -> 0 | L89: ='Fonction publique et GRH'!AR12 -> 0
A90: 4.2 | B90: Remanier le contenu juridique des actes constitutifs des institutions subordonnées et des agences ministérielles, examiner les organigrammes et les fiches de postes, et l'impantation des nouveaux sièges en fonction des entités territoriales. | C90: 4.2.1 | D90: ='Fonction publique et GRH'!E13 -> Examen du cadre juridique pertinent. | F90: ='Fonction publique et GRH'!AL13 -> 40000 | G90: ='Fonction publique et GRH'!AM13 -> 40000 | H90: ='Fonction publique et GRH'!AN13 -> 0 | I90: ='Fonction publique et GRH'!AO13 -> 0 | J90: ='Fonction publique et GRH'!AP13 -> 0 | K90: ='Fonction publique et GRH'!AQ13 -> 0 | L90: ='Fonction publique et GRH'!AR13 -> 0
C91: 4.2.2 | D91: ='Fonction publique et GRH'!E14 -> Examen fonctionnel des institutions et adaptation à la nouvelle division territoriale. | F91: ='Fonction publique et GRH'!AL14 -> 30000 | G91: ='Fonction publique et GRH'!AM14 -> 30000 | H91: ='Fonction publique et GRH'!AN14 -> 0 | I91: ='Fonction publique et GRH'!AO14 -> 0 | J91: ='Fonction publique et GRH'!AP14 -> 0 | K91: ='Fonction publique et GRH'!AQ14 -> 0 | L91: ='Fonction publique et GRH'!AR14 -> 0
A92: 4.3 | B92: Soutien méthodologique à l'organisation et au fonctionnement des nouvelles entités administratives du pays et renforcement des compétences concernant la mise en œuvre. | C92: 4.3.1 | D92: ='Décentralisation '!E9 -> Préparation de la liste des fonctions des Unités gouvernementales locales (UGL), du modèle structurel de l'organisation des municipalités, de la classification des postes et de la mise en oeuvre d'un programme de formation pour les UGL (IAP A 1.6) | F92: ='Décentralisation '!AL9 -> 350000 | G92: ='Décentralisation '!AM9 -> 0 | H92: ='Décentralisation '!AN9 -> 300000 | I92: ='Décentralisation '!AO9 -> 50000 | J92: ='Décentralisation '!AP9 -> 0 | K92: ='Décentralisation '!AQ9 -> 0 | L92: ='Décentralisation '!AR9 -> 0
C93: 4.3.2 | D93: ='Décentralisation '!E10 -> Conception du modèle du nouveau dispositif des UGL et aide à la mise en place des nouveaux dispositifs (assistance pratique). | F93: ='Décentralisation '!AL10 -> 200000 | G93: ='Décentralisation '!AM10 -> 0 | H93: ='Décentralisation '!AN10 -> 0 | I93: ='Décentralisation '!AO10 -> 200000 | J93: ='Décentralisation '!AP10 -> 0 | K93: ='Décentralisation '!AQ10 -> 0 | L93: ='Décentralisation '!AR10 -> 0
C94: 4.3.3 | D94: ='Décentralisation '!E11 -> Renforcement des compétences des unités de gestion des ressources humaines des nouvelles municipalités (15 000 euros). | F94: ='Décentralisation '!AL11 -> 39900 | G94: ='Décentralisation '!AM11 -> 0 | H94: ='Décentralisation '!AN11 -> 0 | I94: ='Décentralisation '!AO11 -> 15000 | J94: ='Décentralisation '!AP11 -> 0 | K94: ='Décentralisation '!AQ11 -> 0 | L94: ='Décentralisation '!AR11 -> 24900
C95: 4.3.4 | D95: ='Décentralisation '!E12 -> Standardisation des procédures de gestion des RH dans toutes les UGL (IAP A 1.2) | F95: ='Décentralisation '!AL12 -> 200000 | G95: ='Décentralisation '!AM12 -> 0 | H95: ='Décentralisation '!AN12 -> 200000 | I95: ='Décentralisation '!AO12 -> 0 | J95: ='Décentralisation '!AP12 -> 0 | K95: ='Décentralisation '!AQ12 -> 0 | L95: ='Décentralisation '!AR12 -> 0
B96: Coût total de l'Objectif 4 | F96: =SUM(F86:F95) -> 3186525 | G96: 70000 | H96: 1000000 | I96: 315000 | J96: 0 | K96: 0 | L96: 1801525 | M96: ='Fonction publique et GRH'!AL15+'Décentralisation '!AL13 -> 3186525 | N96: ='Fonction publique et GRH'!AM15+'Décentralisation '!AM13 -> 70000 | O96: ='Fonction publique et GRH'!AN15+'Décentralisation '!AN13 -> 1000000 | P96: ='Fonction publique et GRH'!AO15+'Décentralisation '!AO13 -> 315000 | Q96: ='Fonction publique et GRH'!AP15+'Décentralisation '!AP13 -> 0 | R96: ='Fonction publique et GRH'!AQ15+'Décentralisation '!AQ13 -> 0 | S96: ='Fonction publique et GRH'!AR15+'Décentralisation '!AR13 -> 1801525
A97: 5 | B97: Objectif 5 : Améliorer et concentrer les services publics en réduisant les causes de corruption et en renforçant une éthique civique pour la prestation des services publics. | M97: =F96-M96 -> 0 | N97: =G96-N96 -> 0 | O97: 0 | P97: 0 | Q97: 0 | R97: 0 | S97: 0
A98: 5.1 | B98: Mise en place de centres de prestation de services sous la forme de guichets uniques. | C98: 5.2.1 | D98: =Innovation!E10 -> Stratégie de prestation des services publics | F98: =Innovation!AM10 -> 286960 | G98: =Innovation!AN10 -> 0 | H98: =Innovation!AO10 -> 0 | I98: =Innovation!AP10 -> 0 | J98: =Innovation!AQ10 -> 0 | K98: =Innovation!AR10 -> 286960 | L98: =Innovation!AS10 -> 0
C99: 5.2.2 | D99: =Innovation!E11 -> Mise en place de l'ADISA (Agence pour la prestation de services intégrés) et ouverture de 4 centres pilotes | F99: =Innovation!AM11 -> 3153610 | G99: =Innovation!AN11 -> 2038770 | H99: =Innovation!AO11 -> 0 | I99: =Innovation!AP11 -> 0 | J99: =Innovation!AQ11 -> 485722 | K99: =Innovation!AR11 -> 629118 | L99: =Innovation!AS11 -> 0
C100: 5.2.3 | D100: =Innovation!E12 -> Création des infrastructures physiques des guichets uniques et de leur fonctionnement | F100: =Innovation!AM12 -> 22364600 | G100: =Innovation!AN12 -> 7364600 | H100: =Innovation!AO12 -> 0 | I100: =Innovation!AP12 -> 0 | J100: =Innovation!AQ12 -> 15000000 | K100: =Innovation!AR12 -> 0 | L100: =Innovation!AS12 -> 0
A101: 5.2 | B101: =Innovation!C13 -> Adaptation au modèle du guichet unique de la configuration des institutions qui fournissent des services publics : | C101: 5.2.1 | D101: =Innovation!E13 -> Changement des structures administratives sur la base de l'Étude pour la réorganisation des institutions publiques | E101: Sans surcoût
A102: 5.3 | B102: Adaptation au modèle du guichet unique de la configuration des institutions qui fournissent des services publics. | C102: 5.2.5 | D102: ='Décentralisation '!C15 -> Mise en place de guichets uniques pour les services administratifs au niveau local. | F102: ='Décentralisation '!AL15 -> 7338000 | G102: ='Décentralisation '!AM15 -> 4300000 | H102: ='Décentralisation '!AN15 -> 0 | I102: ='Décentralisation '!AO15 -> 0 | J102: ='Décentralisation '!AP15 -> 0 | K102: ='Décentralisation '!AQ15 -> 0 | L102: ='Décentralisation '!AR15 -> 3038000
B103: Coût total de l'Objectif 5 | F103: =SUM(F98:F102) -> 33143170 | G103: 13703370 | H103: 0 | I103: 0 | J103: 15485722 | K103: 916078 | L103: 3038000 | M103: =Innovation!AM14+'Décentralisation '!AL15 -> 33143170 | N103: =Innovation!AN14+'Décentralisation '!AM15 -> 13703370 | O103: =Innovation!AO14+'Décentralisation '!AN15 -> 0 | P103: =Innovation!AP14+'Décentralisation '!AO15 -> 0 | Q103: =Innovation!AQ14+'Décentralisation '!AP15 -> 15485722 | R103: =Innovation!AR14+'Décentralisation '!AQ15 -> 916078 | S103: =Innovation!AS14+'Décentralisation '!AR15 -> 3038000
A104: 6 | B104: Objectif 6 : Amélioration des capacités de mise en œuvre de la législation sur la fonction publique et simplification des procédures d'éxécution. | M104: =F103-M103 -> 0 | N104: =G103-N103 -> 0 | O104: 0 | P104: 0 | Q104: 0 | R104: 0 | S104: 0
C105: 6.1.6 | D105: ='Fonction publique et GRH'!E17 -> L'évaluation du respect de la nouvelle Loi sur la fonction publique concernant les structures actuelles de gestion et de contrôle. | F105: ='Fonction publique et GRH'!AL17 -> 50000 | G105: ='Fonction publique et GRH'!AM17 -> 50000 | H105: ='Fonction publique et GRH'!AN17 -> 0 | I105: ='Fonction publique et GRH'!AO17 -> 0 | J105: ='Fonction publique et GRH'!AP17 -> 0 | K105: ='Fonction publique et GRH'!AQ17 -> 0 | L105: ='Fonction publique et GRH'!AR17 -> 0
A106: 6.2 | B106: Amélioration des compétences de planification des ressources humaines dans les institutions de l'administration publique. | C106: 6.2.1 | D106: ='Fonction publique et GRH'!E18 -> Étude de la capacité des structures menée par le DAP | F106: ='Fonction publique et GRH'!AL18 -> 60000 | G106: ='Fonction publique et GRH'!AM18 -> 60000 | H106: ='Fonction publique et GRH'!AN18 -> 0 | I106: ='Fonction publique et GRH'!AO18 -> 0 | J106: ='Fonction publique et GRH'!AP18 -> 0 | K106: ='Fonction publique et GRH'!AQ18 -> 0 | L106: ='Fonction publique et GRH'!AR18 -> 0
C107: 6.2.2 | D107: ='Fonction publique et GRH'!E19 -> La méthodologie de la planification à long terme des ressources humaines. | F107: ='Fonction publique et GRH'!AL19 -> 19900 | G107: ='Fonction publique et GRH'!AM19 -> 0 | H107: ='Fonction publique et GRH'!AN19 -> 0 | I107: ='Fonction publique et GRH'!AO19 -> 0 | J107: ='Fonction publique et GRH'!AP19 -> 0 | K107: ='Fonction publique et GRH'!AQ19 -> 0 | L107: ='Fonction publique et GRH'!AR19 -> 19900
C108: 6.2.3 | D108: ='Fonction publique et GRH'!E20 -> Programme de formation spécifique pour la planification à long terme des ressources humaines. | E108: Le coût de la formation sera déterminé après achèvement de l'activité 6.2.2 | F108: ='Fonction publique et GRH'!AL20 -> 0 | G108: ='Fonction publique et GRH'!AM20 -> 0 | H108: ='Fonction publique et GRH'!AN20 -> 0 | I108: ='Fonction publique et GRH'!AO20 -> 0 | J108: ='Fonction publique et GRH'!AP20 -> 0 | K108: ='Fonction publique et GRH'!AQ20 -> 0 | L108: ='Fonction publique et GRH'!AR20 -> 0
A109: 6.3 | B109: Amélioration des compétences du Département de l'Administration publique (DAP) pour mener la stratégie de réforme de la fonction publique. | C109: 6.3.1 | D109: ='Fonction publique et GRH'!E21 -> Formations fournies par les programmes de l'EAAP. | E109: Le coût de la formation sera déterminé après achèvement de l'activité 6.2.3 | F109: ='Fonction publique et GRH'!AL21 -> 0 | G109: ='Fonction publique et GRH'!AM21 -> 0 | H109: ='Fonction publique et GRH'!AN21 -> 0 | I109: ='Fonction publique et GRH'!AO21 -> 0 | J109: ='Fonction publique et GRH'!AP21 -> 0 | K109: ='Fonction publique et GRH'!AQ21 -> 0 | L109: ='Fonction publique et GRH'!AR21 -> 0
A110: 6.4 | B110: Fonctionnement du Commissariat à la fonction publique. | C110: 6.4.1 | D110: ='Fonction publique et GRH'!E22 -> La création de mécanismes de renforcement de la coopération entre le CFP et les institutions de l'administraiton publique (IAP A.2.3). | F110: ='Fonction publique et GRH'!AL22 -> 300000 | G110: ='Fonction publique et GRH'!AM22 -> 0 | H110: ='Fonction publique et GRH'!AN22 -> 300000 | I110: ='Fonction publique et GRH'!AO22 -> 0 | J110: ='Fonction publique et GRH'!AP22 -> 0 | K110: ='Fonction publique et GRH'!AQ22 -> 0 | L110: ='Fonction publique et GRH'!AR22 -> 0
C111: 6.4.2 | D111: ='Fonction publique et GRH'!E23 -> Renforcement des capacités du CFP (partiellement IAP A.2.4). | F111: ='Fonction publique et GRH'!AL23 -> 50000 | G111: ='Fonction publique et GRH'!AM23 -> 0 | H111: ='Fonction publique et GRH'!AN23 -> 50000 | I111: ='Fonction publique et GRH'!AO23 -> 0 | J111: ='Fonction publique et GRH'!AP23 -> 0 | K111: ='Fonction publique et GRH'!AQ23 -> 0 | L111: ='Fonction publique et GRH'!AR23 -> 0
A112: 6.5 | B112: Création de bases de données avec des questions préparées et utilisation de systèmes électroniques d'évaluation pour les procédures d'examen en cas de recrutement. | C112: 6.5.1 | D112: ='Fonction publique et GRH'!E24 -> Mise en place de la plateforme du système. | F112: ='Fonction publique et GRH'!AL24 -> 65000 | G112: ='Fonction publique et GRH'!AM24 -> 5000 | H112: ='Fonction publique et GRH'!AN24 -> 0 | I112: ='Fonction publique et GRH'!AO24 -> 0 | J112: ='Fonction publique et GRH'!AP24 -> 60000 | K112: ='Fonction publique et GRH'!AQ24 -> 0 | L112: ='Fonction publique et GRH'!AR24 -> 0
C113: 6.5.2 | D113: ='Fonction publique et GRH'!E25 -> Banque de questions pour l'examen dirigé (pour 10 disciplines). | F113: ='Fonction publique et GRH'!AL25 -> 445000 | G113: ='Fonction publique et GRH'!AM25 -> 50000 | H113: ='Fonction publique et GRH'!AN25 -> 0 | I113: ='Fonction publique et GRH'!AO25 -> 0 | J113: ='Fonction publique et GRH'!AP25 -> 0 | K113: ='Fonction publique et GRH'!AQ25 -> 0 | L113: ='Fonction publique et GRH'!AR25 -> 395000
C114: 6.5.3 | D114: Systèmes de questions testés | F114: ='Fonction publique et GRH'!AL26 -> 30000 | G114: ='Fonction publique et GRH'!AM26 -> 30000 | H114: ='Fonction publique et GRH'!AN26 -> 0 | I114: ='Fonction publique et GRH'!AO26 -> 0 | J114: ='Fonction publique et GRH'!AP26 -> 0 | K114: ='Fonction publique et GRH'!AQ26 -> 0 | L114: ='Fonction publique et GRH'!AR26 -> 0
C115: 6.5.4 | D115: ='Fonction publique et GRH'!E27 -> Système d'examen automatique élaboré (pour 15 disciplines). | F115: ='Fonction publique et GRH'!AL27 -> 213000 | G115: ='Fonction publique et GRH'!AM27 -> 5000 | H115: ='Fonction publique et GRH'!AN27 -> 0 | I115: ='Fonction publique et GRH'!AO27 -> 0 | J115: ='Fonction publique et GRH'!AP27 -> 0 | K115: ='Fonction publique et GRH'!AQ27 -> 0 | L115: ='Fonction publique et GRH'!AR27 -> 208000
A116: 6.5.1 | B116: Utilisation systématique des procédures de contrôle de la probité (contrôle de la probité). | C116: 6.5.1.1 | D116: ='Transparence & Anti-corruption '!E13 -> Révision de l'examen d'admission pendant le recrutement pour y inclure des questions spécifiques concernant l'évaluation de la probité. | E116: Sans surcoût | F116: ='Transparence & Anti-corruption '!AL13 -> 0 | G116: ='Transparence & Anti-corruption '!AM13 -> 0 | H116: ='Transparence & Anti-corruption '!AN13 -> 0 | I116: ='Transparence & Anti-corruption '!AO13 -> 0 | J116: ='Transparence & Anti-corruption '!AP13 -> 0 | K116: ='Transparence & Anti-corruption '!AQ13 -> 0 | L116: ='Transparence & Anti-corruption '!AR13 -> 0
C117: 6.5.1.2 | D117: ='Transparence & Anti-corruption '!E14 -> Évaluation de la probité lors de l'évaluation annuelle de performance. | E117: Sans surcoût | F117: ='Transparence & Anti-corruption '!AL14 -> 0 | G117: ='Transparence & Anti-corruption '!AM14 -> 0 | H117: ='Transparence & Anti-corruption '!AN14 -> 0 | I117: ='Transparence & Anti-corruption '!AO14 -> 0 | J117: ='Transparence & Anti-corruption '!AP14 -> 0 | K117: ='Transparence & Anti-corruption '!AQ14 -> 0 | L117: ='Transparence & Anti-corruption '!AR14 -> 0
A118: 6.6 | B118: Simplifier et rationaliser les étapes et les procédures relatives aux RH dans la FP en utilisant des modèles ou des fomulaires standard. | C118: ='Fonction publique et GRH'!D28 -> 6.6.1 | D118: ='Fonction publique et GRH'!E28 -> Étude d'évaluation pour 17 systèmes (2 experts locaux et 5 experts étrangers). | F118: ='Fonction publique et GRH'!AL28 -> 348000 | G118: ='Fonction publique et GRH'!AM28 -> 0 | H118: ='Fonction publique et GRH'!AN28 -> 0 | I118: ='Fonction publique et GRH'!AO28 -> 0 | J118: ='Fonction publique et GRH'!AP28 -> 0 | K118: ='Fonction publique et GRH'!AQ28 -> 0 | L118: ='Fonction publique et GRH'!AR28 -> 348000
C119: ='Fonction publique et GRH'!D29 -> 6.6.2 | D119: ='Fonction publique et GRH'!E29 -> Formation du personnel des ministères pour utiliser les formulaires standard (4 formations X 20 personnes/formation X 3 jours de formation). | F119: ='Fonction publique et GRH'!AL29 -> 11200 | G119: ='Fonction publique et GRH'!AM29 -> 0 | H119: ='Fonction publique et GRH'!AN29 -> 0 | I119: ='Fonction publique et GRH'!AO29 -> 0 | J119: ='Fonction publique et GRH'!AP29 -> 0 | K119: ='Fonction publique et GRH'!AQ29 -> 0 | L119: ='Fonction publique et GRH'!AR29 -> 11200
A120: 6.7 | B120: Elaboration et publication régulière d'un ensemble d'indicateurs pour suivre la réforme de la fonction publique. | C120: 6.7.1 | D120: ='Fonction publique et GRH'!E30 -> Système de suivi élaboré | F120: ='Fonction publique et GRH'!AL30 -> 130000 | G120: ='Fonction publique et GRH'!AM30 -> 0 | H120: ='Fonction publique et GRH'!AN30 -> 0 | I120: ='Fonction publique et GRH'!AO30 -> 0 | J120: ='Fonction publique et GRH'!AP30 -> 0 | K120: ='Fonction publique et GRH'!AQ30 -> 0 | L120: ='Fonction publique et GRH'!AR30 -> 130000
C121: 6.7.2 | D121: ='Fonction publique et GRH'!E31 -> Rapports de suivi publiés | F121: ='Fonction publique et GRH'!AL31 -> 8000 | G121: ='Fonction publique et GRH'!AM31 -> 0 | H121: ='Fonction publique et GRH'!AN31 -> 0 | I121: ='Fonction publique et GRH'!AO31 -> 0 | J121: ='Fonction publique et GRH'!AP31 -> 0 | K121: ='Fonction publique et GRH'!AQ31 -> 0 | L121: ='Fonction publique et GRH'!AR31 -> 8000
A122: 6.8 | B122: Finalisation de la mise en service du Système d'information de la gestion des ressources humaines et utilisation à grande échelle par les institutions. | C122: 6.8.1 | D122: ='Fonction publique et GRH'!E32 -> Adaptation et activation des modules et interopérabilité et implémentation du SIGRH. | F122: ='Fonction publique et GRH'!AL32 -> 308000 | G122: ='Fonction publique et GRH'!AM32 -> 20000 | H122: ='Fonction publique et GRH'!AN32 -> 0 | I122: ='Fonction publique et GRH'!AO32 -> 0 | J122: ='Fonction publique et GRH'!AP32 -> 288000 | K122: ='Fonction publique et GRH'!AQ32 -> 0 | L122: ='Fonction publique et GRH'!AR32 -> 0
C123: 6.8.2 | D123: ='Fonction publique et GRH'!E33 -> Formation de 500 personnels de GRH (Total 20 formation ; 3jours de formation x 25 personnes/formation). | F123: ='Fonction publique et GRH'!AL33 -> 158550 | G123: ='Fonction publique et GRH'!AM33 -> 0 | H123: ='Fonction publique et GRH'!AN33 -> 0 | I123: ='Fonction publique et GRH'!AO33 -> 0 | J123: ='Fonction publique et GRH'!AP33 -> 0 | K123: ='Fonction publique et GRH'!AQ33 -> 0 | L123: ='Fonction publique et GRH'!AR33 -> 158550
C124: 6.8.3 | D124: ='Fonction publique et GRH'!E34 -> Analyse des systèmes de fonctionnement du SIGRH accomplie. | F124: ='Fonction publique et GRH'!AL34 -> 30000 | G124: ='Fonction publique et GRH'!AM34 -> 30000 | H124: ='Fonction publique et GRH'!AN34 -> 0 | I124: ='Fonction publique et GRH'!AO34 -> 0 | J124: ='Fonction publique et GRH'!AP34 -> 0 | K124: ='Fonction publique et GRH'!AQ34 -> 0 | L124: ='Fonction publique et GRH'!AR34 -> 0
C125: 6.8.4 | D125: ='Fonction publique et GRH'!E35 -> Maintenance du système (50 personnes formées tous les 2 ans - nouveaux spécialistes GRH). | F125: ='Fonction publique et GRH'!AL35 -> 36150 | G125: ='Fonction publique et GRH'!AM35 -> 0 | H125: ='Fonction publique et GRH'!AN35 -> 0 | I125: ='Fonction publique et GRH'!AO35 -> 0 | J125: ='Fonction publique et GRH'!AP35 -> 0 | K125: ='Fonction publique et GRH'!AQ35 -> 0 | L125: ='Fonction publique et GRH'!AR35 -> 36150
C126: 6.8.5 | D126: ='Fonction publique et GRH'!E36 -> La mise en place d'un système pour l'avancement professionnel dans la fonction publique (IAP A.1.4). | F126: ='Fonction publique et GRH'!AL36 -> 350000 | G126: ='Fonction publique et GRH'!AM36 -> 0 | H126: ='Fonction publique et GRH'!AN36 -> 350000 | I126: ='Fonction publique et GRH'!AO36 -> 0 | J126: ='Fonction publique et GRH'!AP36 -> 0 | K126: ='Fonction publique et GRH'!AQ36 -> 0 | L126: ='Fonction publique et GRH'!AR36 -> 0
A127: 6.9 | B127: Création des conditions et des procédures pour appliquer la transparence et l'objectivité de la promotion professionnelle dans la fonction publique. | C127: 6.9.1 | D127: =EAAP!D8 -> Réalisation dans les unités et les programmes d'une série d'activités mises à jour pour refléter les exigences et besoins nouveaux engendrés pa la Loi sur la fonction publique. | F127: =EAAP!AU8 -> 119992 | G127: =EAAP!AV8 -> 35610 | H127: =EAAP!AW8 -> 84382 | I127: =EAAP!AX8 -> 0 | J127: =EAAP!AY8 -> 0 | K127: =EAAP!AZ8 -> 0 | L127: =EAAP!BA8 -> 0
C128: 6.9.2 | D128: =EAAP!D10 -> Identification régulières des besoins en formation grâce à une analyse de ces besoins. | F128: =EAAP!AU10 -> 22050 | G128: =EAAP!AV10 -> 7386.75 | H128: =EAAP!AW10 -> 14663.25 | I128: =EAAP!AX10 -> 0 | J128: =EAAP!AY10 -> 0 | K128: =EAAP!AZ10 -> 0 | L128: =EAAP!BA10 -> 0
C129: 6.9.3 | D129: =EAAP!D11 -> Augmentation du nombre de programmes de formation concernant l'intégration européenne. | F129: =EAAP!AU11 -> 49500 | G129: =EAAP!AV11 -> 0 | H129: =EAAP!AW11 -> 49500 | I129: =EAAP!AX11 -> 0 | J129: =EAAP!AY11 -> 0 | K129: =EAAP!AZ11 -> 0 | L129: =EAAP!BA11 -> 0
C130: 6.9.4 | D130: =EAAP!D12 -> Mise à jour et développement du groupe de formateurs spécialisés - Ceci sera réalisé par une mise à jour continue de la base de données d'experts potentiels et par un programme de développement professionnel sur le lieu de travail. | E130: Sans surcoût | F130: =EAAP!AU12 -> 0 | G130: =EAAP!AV12 -> 0 | H130: =EAAP!AW12 -> 0 | I130: =EAAP!AX12 -> 0 | J130: =EAAP!AY12 -> 0 | K130: =EAAP!AZ12 -> 0 | L130: =EAAP!BA12 -> 0
C131: 6.9.5 | D131: =EAAP!D13 -> Finalisation du modèle de développement professionnel tout au long de la vie dans la fonction publique. | F131: =EAAP!AU13 -> 27150 | G131: =EAAP!AV13 -> 0 | H131: =EAAP!AW13 -> 16180 | I131: =EAAP!AX13 -> 0 | J131: =EAAP!AY13 -> 0 | K131: =EAAP!AZ13 -> 0 | L131: =EAAP!BA13 -> 10970
C132: 6.9.6 | D132: =EAAP!D15 -> Plans de formation obligatoire pendant la période d'essai. | F132: =EAAP!AU15 -> 271840 | G132: =EAAP!AV15 -> 110266.4 | H132: =EAAP!AW15 -> 123840 | I132: =EAAP!AX15 -> 0 | J132: =EAAP!AY15 -> 0 | K132: =EAAP!AZ15 -> 0 | L132: =EAAP!BA15 -> 37733.6
C133: 6.9.7 | D133: =EAAP!D18 -> Rédaction de plans annuels pour la formation des cadres moyens et supérieurs - sur la base du modèle de leadership. | F133: =EAAP!AU18 -> 159079 | G133: =EAAP!AV18 -> 53291.465 | H133: =EAAP!AW18 -> 159079 | I133: =EAAP!AX18 -> 0 | J133: =EAAP!AY18 -> 0 | K133: =EAAP!AZ18 -> 0 | L133: =EAAP!BA18 -> -53291.465
C134: 6.9.8 | D134: =EAAP!D21 -> Évaluation d'approches alternatives concernant la formation des cadres, y compris l'approche fondée sur les compétences. | F134: =EAAP!AU21 -> 6900 | G134: =EAAP!AV21 -> 2311.5 | H134: =EAAP!AW21 -> 0 | I134: =EAAP!AX21 -> 0 | J134: =EAAP!AY21 -> 0 | K134: =EAAP!AZ21 -> 0 | L134: =EAAP!BA21 -> 4588.5
C135: 6.9.9 | D135: =EAAP!D23 -> Développement de la plateforme d'apprentissage et de formation en ligne et rédaction de programmes utilisant cette plateforme. | F135: =EAAP!AU23 -> 146000 | G135: =EAAP!AV23 -> 0 | H135: =EAAP!AW23 -> 146000 | I135: =EAAP!AX23 -> 0 | J135: =EAAP!AY23 -> 0 | K135: =EAAP!AZ23 -> 0 | L135: =EAAP!BA23 -> 0
A136: 6.1 | B136: Amélioration continue des enseignements dispensés aux fonctionnaires par l'École albanaise d'administration publique et de ses activités d'études et de recherches en administration publique. | C136: 6.10.1 | D136: =EAAP!D26 -> Mise en place de groupes bénéficiaires du service (groupes d'usagers) et/ou de groupes de discussion afin de fournir des retours sur la qualité et l'utilité des services fournis par l'EAAP. | E136: Sans surcoût | F136: =EAAP!AU26 -> 0 | G136: =EAAP!AV26 -> 0 | H136: =EAAP!AW26 -> 0 | I136: =EAAP!AX26 -> 0 | J136: =EAAP!AY26 -> 0 | K136: =EAAP!AZ26 -> 0 | L136: =EAAP!BA26 -> 0
C137: 6.10.2 | D137: =EAAP!D29 -> Amélioration du système de retours en général, afin de fournir des données suffisantes et une information disponible sur l'impact des formations. | E137: Sans surcoût | F137: =EAAP!AU29 -> 0 | G137: =EAAP!AV29 -> 0 | H137: =EAAP!AW29 -> 0 | I137: =EAAP!AX29 -> 0 | J137: =EAAP!AY29 -> 0 | K137: =EAAP!AZ29 -> 0 | L137: =EAAP!BA29 -> 0
C138: 6.10.3 | D138: =EAAP!D33 -> Établissement de contacts avec des agences professionnelles et des agences de contrôle de la qualité pour l'éducation/la formation. | F138: =EAAP!AU33 -> 18120 | G138: =EAAP!AV33 -> 12140.4 | H138: =EAAP!AW33 -> 5980 | I138: =EAAP!AX33 -> 0 | J138: =EAAP!AY33 -> 0 | K138: =EAAP!AZ33 -> 0 | L138: =EAAP!BA33 -> -0.4
C139: 6.10.4 | D139: =EAAP!D35 -> Élaboration de systèmes et de procédures qui répondent aux normes de contrôle de la qualité établies par les agences de contrôle de l'éducation/la formation. | F139: =EAAP!AU35 -> 33000 | G139: =EAAP!AV35 -> 0 | H139: =EAAP!AW35 -> 33000 | I139: =EAAP!AX35 -> 0 | J139: =EAAP!AY35 -> 0 | K139: =EAAP!AZ35 -> 0 | L139: =EAAP!BA35 -> 0
C140: 6.10.5 | D140: =EAAP!D37 -> Œuvrer pour atteindre le statut de centre d'excellence aux niveaux national et international. | F140: =EAAP!AU37 -> 25000 | G140: =EAAP!AV37 -> 0 | H140: =EAAP!AW37 -> 25000 | I140: =EAAP!AX37 -> 0 | J140: =EAAP!AY37 -> 0 | K140: =EAAP!AZ37 -> 0 | L140: =EAAP!BA37 -> 0
C141: 6.10.6 | D141: =EAAP!D39 -> Le développement de systèmes qui garantissent que toutes les ressources sont gérées de façon efficace et efficiente, pour un coût minimal. | E141: Sans surcoût | F141: =EAAP!AU39 -> 0 | G141: =EAAP!AV39 -> 0 | H141: =EAAP!AW39 -> 0 | I141: =EAAP!AX39 -> 0 | J141: =EAAP!AY39 -> 0 | K141: =EAAP!AZ39 -> 0 | L141: =EAAP!BA39 -> 0
C142: 6.10.7 | D142: =EAAP!D41 -> Développement d'un système moderne de gestion de la base de données dans le cadre du SIGRH. | F142: =EAAP!AU41 -> 0 | G142: =EAAP!AV41 -> 0 | H142: =EAAP!AW41 -> 0 | I142: =EAAP!AX41 -> 0 | J142: =EAAP!AY41 -> 0 | K142: =EAAP!AZ41 -> 0 | L142: =EAAP!BA41 -> 0
C143: 6.10.8 | D143: =EAAP!D42 -> Développement de la bibliothèque de l'EAAP et préparation d'un centre de gestion de l'information. | F143: =EAAP!AU42 -> 40500 | G143: =EAAP!AV42 -> 26100 | H143: =EAAP!AW42 -> 14400 | I143: =EAAP!AX42 -> 0 | J143: =EAAP!AY42 -> 0 | K143: =EAAP!AZ42 -> 0 | L143: =EAAP!BA42 -> 0
C144: 6.10.9 | D144: =EAAP!D44 -> Veiller à ce que les locaux de l'EAAP soient dans un immeuble qui convienne à cet effet. | F144: =EAAP!AU44 -> 70000 | G144: =EAAP!AV44 -> 70000 | H144: =EAAP!AW44 -> 0 | I144: =EAAP!AX44 -> 0 | J144: =EAAP!AY44 -> 0 | K144: =EAAP!AZ44 -> 0 | L144: =EAAP!BA44 -> 0
B145: Coût total de l'Objectif 6 | F145: =SUM(F105:F144) -> 3601931 | G145: 567106.515 | H145: 1372024.25 | I145: 0 | J145: 348000 | K145: 0 | L145: 1314800.235 | M145: ='Fonction publique et GRH'!AL37+EAAP!AM45+'Transparence & Anti-corruption '!AL15 -> 3601931 | N145: ='Fonction publique et GRH'!AM37+EAAP!AN45+'Transparence & Anti-corruption '!AM15 -> 567106.515 | O145: ='Fonction publique et GRH'!AN37+EAAP!AO45+'Transparence & Anti-corruption '!AN15 -> 1372024.25 | P145: ='Fonction publique et GRH'!AO37+EAAP!AP45+'Transparence & Anti-corruption '!AO15 -> 0 | Q145: ='Fonction publique et GRH'!AP37+EAAP!AQ45+'Transparence & Anti-corruption '!AP15 -> 348000 | R145: ='Fonction publique et GRH'!AQ37+EAAP!AR45+'Transparence & Anti-corruption '!AQ15 -> 0 | S145: ='Fonction publique et GRH'!AR37+EAAP!AS45+'Transparence & Anti-corruption '!AR15 -> 1314800.235
A146: 7 | B146: Objectif 7 : Organisation du système de rémunération de la fonction publique sur la base de l'évaluation des postes, de l'évaluation des résultats annuels des fonctionnaires et des résultats des formations professionnelles obligatoires. | M146: =F145-M145 -> 0 | N146: =G145-N145 -> 0 | O146: 0 | P146: 0 | Q146: 0 | R146: 0 | S146: 0
A147: 7.1 | B147: Elaboration et adoption d'un document stratégique sur le système de rémunération et sur l'adoption de la nouvelle structure de rémunérations. | C147: 7.1.1 | D147: ='Fonction publique et GRH'!E39 -> Étude d'évaluation du système de rémunérations | F147: ='Fonction publique et GRH'!AL39 -> 480000 | G147: ='Fonction publique et GRH'!AM39 -> 50000 | H147: ='Fonction publique et GRH'!AN39 -> 0 | I147: ='Fonction publique et GRH'!AO39 -> 0 | J147: ='Fonction publique et GRH'!AP39 -> 0 | K147: ='Fonction publique et GRH'!AQ39 -> 0 | L147: ='Fonction publique et GRH'!AR39 -> 430000
C148: 7.1.2 | D148: ='Fonction publique et GRH'!E40 -> Projet de stratégie élaboré. | F148: ='Fonction publique et GRH'!AL40 -> 325000 | G148: ='Fonction publique et GRH'!AM40 -> 30000 | H148: ='Fonction publique et GRH'!AN40 -> 0 | I148: ='Fonction publique et GRH'!AO40 -> 0 | J148: ='Fonction publique et GRH'!AP40 -> 0 | K148: ='Fonction publique et GRH'!AQ40 -> 0 | L148: ='Fonction publique et GRH'!AR40 -> 295000
A149: 7.2 | B149: Adoption de nouvelles décisions sur les rémunérations et mise en œuvre de la nouvelle structure. | C149: 7.2.1 | D149: ='Fonction publique et GRH'!E41 -> Nouvelle structure de rémunérations adoptée. | E149: Le coût sera déterminé après achèvement de l'étude et approbation de la nouvelle stratégie. | F149: ='Fonction publique et GRH'!AL41 -> 0 | G149: ='Fonction publique et GRH'!AM41 -> 0 | H149: ='Fonction publique et GRH'!AN41 -> 0 | I149: ='Fonction publique et GRH'!AO41 -> 0 | J149: ='Fonction publique et GRH'!AP41 -> 0 | K149: ='Fonction publique et GRH'!AQ41 -> 0 | L149: ='Fonction publique et GRH'!AR41 -> 0
A150: 7.3 | B150: Révision des ratios entre les rémunérations moyennes maximum et minimum dans l'administration publique, afin de maintenir une pyramide des salaires objective et de préserver l'attractivité des postes de direction, et de conserver une classification differencié selon le contenu des postes. | C150: 7.3.1 | D150: ='Fonction publique et GRH'!E42 -> Nouvelle classification des salaires et amendement de la loi sur les taux salariaux. | F150: ='Fonction publique et GRH'!AL42 -> 5000 | G150: ='Fonction publique et GRH'!AM42 -> 5000 | H150: ='Fonction publique et GRH'!AN42 -> 0 | I150: ='Fonction publique et GRH'!AO42 -> 0 | J150: ='Fonction publique et GRH'!AP42 -> 0 | K150: ='Fonction publique et GRH'!AQ42 -> 0 | L150: ='Fonction publique et GRH'!AR42 -> 0
B151: Coût total de l'Objectif 7 | F151: =SUM(F147:F150) -> 810000 | G151: =SUM(G147:G150) -> 85000 | H151: 0 | I151: 0 | J151: 0 | K151: 0 | L151: 725000 | M151: ='Fonction publique et GRH'!AL43 -> 810000 | N151: ='Fonction publique et GRH'!AM43 -> 85000 | O151: ='Fonction publique et GRH'!AN43 -> 0 | P151: ='Fonction publique et GRH'!AO43 -> 0 | Q151: ='Fonction publique et GRH'!AP43 -> 0 | R151: ='Fonction publique et GRH'!AQ43 -> 0 | S151: ='Fonction publique et GRH'!AR43 -> 725000
A152: 8 | B152: Objectif 8 : Procédure simplifiée pour la prestation des services par la promotion de la communication avec le public et l'évitement de la corruption. | M152: =F151-M151 -> 0 | N152: =G151-N151 -> 0 | O152: 0 | P152: 0 | Q152: 0 | R152: 0 | S152: 0
A153: 8.1 | B153: Restructuration des services publics comme mesure préalable à la simplification des procédures administratives et à la réduction du nombre de msures effectuées par les citoyens et le personnel de soutien. | C153: 8.1.1 | D153: =Innovation!E16 -> Restructuration des services publics - Identification, évaluation et définition des procédures standard pour 300+ services publics | F153: =Innovation!AM16 -> 5825000 | G153: =Innovation!AN16 -> 1510422.5 | H153: =Innovation!AO16 -> 0 | I153: =Innovation!AP16 -> 0 | J153: =Innovation!AQ16 -> 0 | K153: =Innovation!AR16 -> 0 | L153: =Innovation!AS16 -> 4314577.5
C154: 8.1.2 | D154: =Innovation!E17 -> Rédaction de manuels pour la réglementation des procédures de service ; | F154: =Innovation!AM17 -> 437500 | G154: =Innovation!AN17 -> 113443.75 | H154: =Innovation!AO17 -> 0 | I154: =Innovation!AP17 -> 0 | J154: =Innovation!AQ17 -> 0 | K154: =Innovation!AR17 -> 0 | L154: =Innovation!AS17 -> 324056.25
A155: 8.2 | B155: Réorganisation des services qui seront fournis par les guichets uniques en organisant les relations entre le guichet unique et le bureau de soutien. | C155: 8.2.1 | D155: =Innovation!E18 -> Étude de faisabilité pour le modèle de services centrés sur les citoyens. | F155: =Innovation!AM18 -> 1350000 | G155: =Innovation!AN18 -> 350000 | H155: =Innovation!AO18 -> 0 | I155: =Innovation!AP18 -> 0 | J155: =Innovation!AQ18 -> 1000000 | K155: =Innovation!AR18 -> 0 | L155: =Innovation!AS18 -> 0
A156: 8.3 | B156: Décharger les institutions de l'administration publique de la fonction de prestation directe de services. | C156: 8.3.1 | D156: =Innovation!E19 -> Mener l'étude sur la réorganisation des institutions publiques. | F156: =Innovation!AM19 -> 1206250 | G156: =Innovation!AN19 -> 312780.625 | H156: =Innovation!AO19 -> 25992 | I156: =Innovation!AP19 -> 0 | J156: =Innovation!AQ19 -> 0 | K156: =Innovation!AR19 -> 0 | L156: =Innovation!AS19 -> 867477.375
A157: 8.4 | B157: Examen général de la législation applicable à la prestation de services publics afin de refléter la restructuration des processus opérationnel dans le cadre réglementaire. | C157: 8.4.1 | D157: =Innovation!E20 -> Achèvement de l'Étude sur la consolidation de l'analyse de la situation initiale (référence). | F157: =Innovation!AM20 -> 241152 | G157: =Innovation!AN20 -> 35714.6112 | H157: =Innovation!AO20 -> 0 | I157: =Innovation!AP20 -> 0 | J157: =Innovation!AQ20 -> 0 | K157: =Innovation!AR20 -> 0 | L157: =Innovation!AS20 -> 205437.3888
C158: 8.4.2 | D158: =Innovation!E21 -> Identification des macro secteurs nécessitant des changements (Analyses des lacunes juridiques). | F158: =Innovation!AM21 -> 583750 | G158: =Innovation!AN21 -> 0 | H158: =Innovation!AO21 -> 0 | I158: =Innovation!AP21 -> 0 | J158: =Innovation!AQ21 -> 583750 | K158: =Innovation!AR21 -> 0 | L158: =Innovation!AS21 -> 0
A159: 8.5 | B159: Rédaction de manuels et des formulaires standard pour assurer le service d'une manière unifiée et codifiée. | C159: 8.5.1 | D159: =Innovation!E22 -> Formulaires de services unifiés et codifiés (services unifiés totalement codifiés en 2015, tous les services en 2017). | F159: =Innovation!AM22 -> 150000 | G159: =Innovation!AN22 -> 0 | H159: =Innovation!AO22 -> 150000 | I159: =Innovation!AP22 -> 0 | J159: =Innovation!AQ22 -> 0 | K159: =Innovation!AR22 -> 0 | L159: =Innovation!AS22 -> 0
A160: 8.6 | B160: Garantir la valeur légale des documents électroniques imprimés. | C160: 8.6.1 | D160: =Innovation!E23 -> Propositions de modifications juridiques et administratives. | F160: =Innovation!AM23 -> 1096250 | G160: =Innovation!AN23 -> 0 | H160: =Innovation!AO23 -> 1096250 | I160: =Innovation!AP23 -> 0 | J160: =Innovation!AQ23 -> 0 | K160: =Innovation!AR23 -> 0 | L160: =Innovation!AS23 -> 0
C161: 8.6.2 | D161: =Innovation!E24 -> Validation des modifications apportées au cadre juridique | F161: =Innovation!AM24 -> 0 | G161: =Innovation!AN24 -> 0 | H161: =Innovation!AO24 -> 0 | I161: =Innovation!AP24 -> 0 | J161: =Innovation!AQ24 -> 0 | K161: =Innovation!AR24 -> 0 | L161: =Innovation!AS24 -> 0
C162: 8.6.3 | D162: =Innovation!E25 -> Finalisation des modifications institutionnelles et administratives | F162: =Innovation!AM25 -> 0 | G162: =Innovation!AN25 -> 0 | H162: =Innovation!AO25 -> 0 | I162: =Innovation!AP25 -> 0 | J162: =Innovation!AQ25 -> 0 | K162: =Innovation!AR25 -> 0 | L162: =Innovation!AS25 -> 0
A163: 8.7 | B163: Renforcement des compétences du personnel impliqué dans la restructuration des procédures et dans la prestation de services publics. | C163: 8.7.1 | D163: =Innovation!E26 -> Préparation de programmes de formation. | F163: =Innovation!AM26 -> 6000 | G163: =Innovation!AN26 -> 0 | H163: =Innovation!AO26 -> 0 | I163: =Innovation!AP26 -> 0 | J163: =Innovation!AQ26 -> 0 | K163: =Innovation!AR26 -> 0 | L163: =Innovation!AS26 -> 6000
C164: 8.7.2 | D164: =Innovation!E27 -> Sessions de formation générale (2017) | F164: =Innovation!AM27 -> 74175 | G164: =Innovation!AN27 -> 0 | H164: =Innovation!AO27 -> 0 | I164: =Innovation!AP27 -> 0 | J164: =Innovation!AQ27 -> 0 | K164: =Innovation!AR27 -> 0 | L164: =Innovation!AS27 -> 74175
B165: Coût total de l'Objectif 8 | F165: =SUM(F153:F164) -> 10970077 | G165: =SUM(G153:G164) -> 2322361.486 | H165: 1272242 | I165: 0 | J165: 1583750 | K165: 0 | L165: 5791723.514 | M165: =Innovation!AM28 -> 10970077 | N165: =Innovation!AN28 -> 2322361.486 | O165: =Innovation!AO28 -> 1272242 | P165: =Innovation!AP28 -> 0 | Q165: =Innovation!AQ28 -> 1583750 | R165: =Innovation!AR28 -> 0 | S165: =Innovation!AS28 -> 5791723.514
A166: 9 | B166: Objectif 9 : Développement d'une infrastructure de TIC capable de soutenir les activités quotidiennes de l'administration publique et d'amélioer le rendement en réduisnt le délai pour accéder aux informations, les traiter et les transmettre tout en améliorant le flux d'informations. | M166: =F165-M165 -> 0 | N166: 0 | O166: 0 | P166: 0 | Q166: 0 | R166: 0 | S166: 0
A167: 9.1 | B167: Numérisation des registres principaux. | C167: 9.1.1 | D167: =Innovation!E30 -> Étude de l'analyse de la situation des principaux registres | F167: =Innovation!AM30 -> 200000 | G167: =Innovation!AN30 -> 0 | H167: =Innovation!AO30 -> 0 | I167: =Innovation!AP30 -> 0 | J167: =Innovation!AQ30 -> 0 | K167: =Innovation!AR30 -> 0 | L167: =Innovation!AS30 -> 200000
A168: 9.2 | B168: Élaboration et utilisation d'un système intégré de TIC (fondé sur les exigences du processus de restructuration des services). | C168: 9.2.1 | D168: =Innovation!E31 -> Préparation d'un système intégré de TIC (fondé sur les exigences du processus de restructuration des services) ; | F168: =Innovation!AM31 -> 1350000 | G168: =Innovation!AN31 -> 350000 | H168: =Innovation!AO31 -> 0 | I168: =Innovation!AP31 -> 0 | J168: =Innovation!AQ31 -> 0 | K168: =Innovation!AR31 -> 0 | L168: =Innovation!AS31 -> 1000000
C169: 9.2.2 | D169: =Innovation!E32 -> Développement et consolidation du système ; Documents pour la formation des utilisateurs ; | F169: =Innovation!AM32 -> 11821000 | G169: =Innovation!AN32 -> 1550000 | H169: =Innovation!AO32 -> 0 | I169: =Innovation!AP32 -> 0 | J169: =Innovation!AQ32 -> 0 | K169: =Innovation!AR32 -> 0 | L169: =Innovation!AS32 -> 10271000
C170: 9.2.3 | D170: =Innovation!E33 -> Sessions de formaiton pour les utilisateurs du système de TIC (2017) | F170: =Innovation!AM33 -> 126081 | G170: =Innovation!AN33 -> 74175 | H170: =Innovation!AO33 -> 0 | I170: =Innovation!AP33 -> 0 | J170: =Innovation!AQ33 -> 51906 | K170: =Innovation!AR33 -> 0 | L170: =Innovation!AS33 -> 0
A171: 9.3 | B171: Création d'un mécanisme pour que les citoyens qui contrôleront la qualité des services fournissent directement leur opinion par SMS, pour les destinaitaires du service uniquement. | C171: 9.3.1 | D171: =Innovation!E34 -> Élaboration d'un système permettant de rapporter les réactions des citoyens et de suivre les plaintes pour toutes les catégories de services fournis par l'administration. | F171: =Innovation!AM34 -> 211000 | G171: =Innovation!AN34 -> 0 | H171: =Innovation!AO34 -> 0 | I171: =Innovation!AP34 -> 0 | J171: =Innovation!AQ34 -> 211000 | K171: =Innovation!AR34 -> 0 | L171: =Innovation!AS34 -> 0
B172: Coût total de l'Objectif 9 | F172: =SUM(F167:F171) -> 13708081 | G172: 1974175 | H172: 0 | I172: 0 | J172: 262906 | K172: 0 | L172: 11471000 | M172: =Innovation!AM35 -> 13708081 | N172: =Innovation!AN35 -> 1974175 | O172: =Innovation!AO35 -> 0 | P172: =Innovation!AP35 -> 0 | Q172: =Innovation!AQ35 -> 262906 | R172: =Innovation!AR35 -> 0 | S172: =Innovation!AS35 -> 11471000
A173: 10 | B173: Objectif 10 : Renforcement de l'efficience et de la responsabilité des fonctionnaires. | M173: =F172-M172 -> 0 | N173: =G172-N172 -> 0 | O173: 0 | P173: 0 | Q173: 0 | R173: 0 | S173: 0
A174: 10.1 | B174: Préparation d'un large programme de formation au nouveau Code de procédure administrative. | C174: 10.1.1 | D174: ='Transparence & Anti-corruption '!E17 -> Mise en œuvre du programme de renforcement des compétences pour les ministères sectoriels et les UGL, en ce qui concerne l'application du Code de procédure administrative (IAP A.1.1) | F174: ='Transparence & Anti-corruption '!AL17 -> 700000 | G174: ='Transparence & Anti-corruption '!AM17 -> 0 | H174: ='Transparence & Anti-corruption '!AN17 -> 700000 | I174: ='Transparence & Anti-corruption '!AO17 -> 0 | J174: ='Transparence & Anti-corruption '!AP17 -> 0 | K174: ='Transparence & Anti-corruption '!AQ17 -> 0 | L174: ='Transparence & Anti-corruption '!AR17 -> 0
C175: 10.1.2 | D175: ='Transparence & Anti-corruption '!E18 -> Développement des projets pilotes de délégation de prise de décisions. | F175: ='Transparence & Anti-corruption '!AL18 -> 2000000 | G175: ='Transparence & Anti-corruption '!AM18 -> 0 | H175: ='Transparence & Anti-corruption '!AN18 -> 0 | I175: ='Transparence & Anti-corruption '!AO18 -> 0 | J175: ='Transparence & Anti-corruption '!AP18 -> 0 | K175: ='Transparence & Anti-corruption '!AQ18 -> 0 | L175: ='Transparence & Anti-corruption '!AR18 -> 2000000
A176: 10.2 | B176: Généraliser les délégations de compétences aux institutions afin de responsabiliser d'avantage les fonctionnaires. | C176: 10.2.1 | D176: Généraliser les délégations à l'ensemble de l'administration publique" | E176: Sans surcoût | F176: ='Transparence & Anti-corruption '!AL19 -> 0 | G176: ='Transparence & Anti-corruption '!AM19 -> 0 | H176: ='Transparence & Anti-corruption '!AN19 -> 0 | I176: ='Transparence & Anti-corruption '!AO19 -> 0 | J176: ='Transparence & Anti-corruption '!AP19 -> 0 | K176: ='Transparence & Anti-corruption '!AQ19 -> 0 | L176: ='Transparence & Anti-corruption '!AR19 -> 0
C177: 10.2.2 | D177: Généraliser les délégations à l'ensemble de l'administration publique" | E177: L'estimation réelle du coût aura lieu après l'achèvement des projets pilotes. Le coût fixé n'est qu'indicatif. | F177: ='Transparence & Anti-corruption '!AL19 -> 0 | G177: ='Transparence & Anti-corruption '!AM19 -> 0 | H177: ='Transparence & Anti-corruption '!AN19 -> 0 | I177: ='Transparence & Anti-corruption '!AO19 -> 0 | J177: ='Transparence & Anti-corruption '!AP19 -> 0 | K177: ='Transparence & Anti-corruption '!AQ19 -> 0 | L177: ='Transparence & Anti-corruption '!AR19 -> 0
B178: Coût total de l'Objectif 10 | F178: =SUM(F174:F177) -> 2700000 | G178: 0 | H178: 700000 | I178: 0 | J178: 0 | K178: 0 | L178: 2000000 | M178: ='Transparence & Anti-corruption '!AL20 -> 2700000 | N178: ='Transparence & Anti-corruption '!AM20 -> 0 | O178: ='Transparence & Anti-corruption '!AN20 -> 700000 | P178: ='Transparence & Anti-corruption '!AO20 -> 0 | Q178: ='Transparence & Anti-corruption '!AP20 -> 0 | R178: ='Transparence & Anti-corruption '!AQ20 -> 0 | S178: ='Transparence & Anti-corruption '!AR20 -> 2000000
A179: 11 | B179: Objectif 11 : Renforcement du contrôle sur les activités de l'admnistration publique, garantissant les droits des citoyens et l'accès à l'information. | M179: =F178-M178 -> 0 | N179: =G178-N178 -> 0 | O179: 0 | P179: 0 | Q179: 0 | R179: 0 | S179: 0
A180: 11.1 | B180: Mise en œuvre du programme de transparence institutionnelle par les autorités publiques. | C180: 11.1 | L180: =F180-G180-H180-K180 -> 0
A181: 11.2 | B181: Utilisation des TIC pour renforcer la transparence des activités de l'administration. | C181: 11.2 | L181: =F181-G181-H181-K181 -> 0
A182: 11.3 | B182: ='Transparence & Anti-corruption '!C24 -> Élaboration d'un mécanisme d'évaluationpour contrôler la mise en application cohérente et homogène des normes dans l'administration publique. | C182: 11.3.1 | D182: ='Transparence & Anti-corruption '!E24 -> Développement d'un programme de contrôle de l'application des normes (IAP A.2.1) | F182: ='Transparence & Anti-corruption '!AL24 -> 600000 | G182: ='Transparence & Anti-corruption '!AM24 -> 0 | H182: ='Transparence & Anti-corruption '!AN24 -> 600000 | I182: ='Transparence & Anti-corruption '!AO24 -> 0 | J182: ='Transparence & Anti-corruption '!AP24 -> 0 | K182: ='Transparence & Anti-corruption '!AQ24 -> 0 | L182: ='Transparence & Anti-corruption '!AR24 -> 0
B183: Coût total de l'Objectif 11 | F183: =SUM(F180:F182) -> 600000 | G183: 0 | H183: 600000 | I183: 0 | J183: 0 | K183: 0 | L183: 0 | M183: ='Transparence & Anti-corruption '!AL25 -> 600000 | N183: ='Transparence & Anti-corruption '!AM25 -> 0 | O183: ='Transparence & Anti-corruption '!AN25 -> 600000 | P183: ='Transparence & Anti-corruption '!AO25 -> 0 | Q183: ='Transparence & Anti-corruption '!AP25 -> 0 | R183: ='Transparence & Anti-corruption '!AQ25 -> 0 | S183: ='Transparence & Anti-corruption '!AR25 -> 0
B184: Total | F184: =F41+F63+F84+F96+F103+F145+F151+F165+F172+F178+F183 -> 79644514.4 | G184: 18818158.4 | H184: 5394266.25 | I184: 315000 | J184: 18053278 | K184: 916078 | L184: 36147733.75 | M184: =F183-M183 -> 0 | N184: 0 | O184: 0 | P184: 0 | Q184: 0 | R184: 0 | S184: 0
D187: FP&GRH | E187: ='Fonction publique et GRH'!AL44 -> 5819425 | F187: ='Fonction publique et GRH'!AM44 -> 405000 | G187: ='Fonction publique et GRH'!AN44 -> 1200000 | H187: ='Fonction publique et GRH'!AO44 -> 50000 | I187: ='Fonction publique et GRH'!AP44 -> 348000 | J187: ='Fonction publique et GRH'!AQ44 -> 0 | K187: ='Fonction publique et GRH'!AR44 -> 3816425
D188: EAAP | E188: =EAAP!AU45 -> 989131 | F188: =EAAP!AV45 -> 317106.515 | G188: =EAAP!AW45 -> 672024.25 | H188: =EAAP!AX45 -> 0 | I188: =EAAP!AY45 -> 0 | J188: =EAAP!AZ45 -> 0 | K188: =EAAP!BA45 -> 0.235
D189: Élaboration&Suivi des politiques | E189: ='Politiques&Suivi&Législation'!AN88 -> 10852580.4 | F189: ='Politiques&Suivi&Législation'!AO88 -> 96145.4 | G189: ='Politiques&Suivi&Législation'!AP88 -> 450000 | H189: ='Politiques&Suivi&Législation'!AQ88 -> 0 | I189: ='Politiques&Suivi&Législation'!AR88 -> 372900 | J189: ='Politiques&Suivi&Législation'!AS88 -> 0 | K189: ='Politiques&Suivi&Législation'!AT88 -> 9933535
D190: Innovation | E190: =Innovation!AM36 -> 50483328 | F190: =Innovation!AN36 -> 13699906.49 | G190: =Innovation!AO36 -> 1272242 | H190: =Innovation!AP36 -> 0 | I190: =Innovation!AQ36 -> 17332378 | J190: =Innovation!AR36 -> 916078 | K190: =Innovation!AS36 -> 17262723.51
D191: Décentralisation | E191: ='Décentralisation '!AL16 -> 8127900 | F191: ='Décentralisation '!AM16 -> 4300000 | G191: ='Décentralisation '!AN16 -> 500000 | H191: ='Décentralisation '!AO16 -> 265000 | I191: ='Décentralisation '!AP16 -> 0 | J191: ='Décentralisation '!AQ16 -> 0 | K191: ='Décentralisation '!AR16 -> 3062900
D192: Transparence et Anti-corruption | E192: ='Transparence & Anti-corruption '!AL26 -> 3372150 | F192: ='Transparence & Anti-corruption '!AM26 -> 0 | G192: ='Transparence & Anti-corruption '!AN26 -> 1300000 | H192: ='Transparence & Anti-corruption '!AO26 -> 0 | I192: ='Transparence & Anti-corruption '!AP26 -> 0 | J192: ='Transparence & Anti-corruption '!AQ26 -> 0 | K192: ='Transparence & Anti-corruption '!AR26 -> 2072150
D193: Total | E193: =SUM(E187:E192) -> 79644514.4 | F193: 18818158.4 | G193: 5394266.25 | H193: 315000 | I193: 18053278 | J193: 916078 | K193: 36147733.75
D194: Écart | E194: =F184-E193 -> 0 | F194: 0 | G194: 0 | H194: 0 | I194: 0 | J194: 0 | K194: 0
F197: Total | G197: =F184 -> 79644514.4
F198: Financement gouvernemental | G198: =G184 -> 18818158.4 | H198: =G198/$G$197 -> 0.2362768929
F199: Contributions des donneurs | G199: =H184+I184+J184+K184+Innovation!AU38 -> 36377423.36 | H199: =G199/$G$197 -> 0.456747381
F200: Écart financier | G200: =L184-Innovation!AU38 -> 24448932.63 | H200: =G200/$G$197 -> 0.3069757261

Sheet Fonction publique et GRH
G3: Dépenses de la catégorie économique "Rémunérations et salaires" : (Code 600-601) | AC3: Investissements | AK3: Autres dépenses | AL3: Coût estimé de la réalisation | AM3: Sources de financement (par réalisation)
A4: Numéro | B4: Action | D4: Indicateurs de réalisation | G4: Fonds de rémunération pour le personnel supplémentaire | K4: Dépenses pour les conférences/séminaires et la formation | T4: Services de conseil divers (assistance technique) | Z4: Dépenses d'information publique (publications)
F5: Activité avec/sans coût additionnel | T5: Expertise locale | W5: Expertise étrangère | AC5: Immeubles | AD5: Développement de logiciels | AE5: Équipement informatique | AH5: Fournitures de bureau
G6: Nb | H6: Salaire moyen | I6: Mois | J6: Valeur totale | K6: Nb d'activités de formation/séminaires | L6: Jour/activité | M6: Participants à la formation | N6: Location de salle/jour | O6: Coût pour une personne (café/restauration) | P6: Coût moyen d'hébergement/nuit | Q6: Valeur matériel/personne | S6: Valeur totale | T6: Jour/expert | U6: Honoraires | V6: Total | W6: Jour/expert | X6: Honoraires | Y6: Total | Z6: Article/activité | AA6: Prix/valeur par unité | AB6: Total | AE6: Pièce | AF6: Prix moyen/unité | AG6: Valeur totale | AH6: Pièce | AI6: Prix moyen/unité | AJ6: Valeur totale | AM6: Budget de l'État (PBMT 2015-2017) | AN6: IAP | AO6: CDE | AP6: BM | AQ6: UNDP | AR6: Écart budgétaire
A7: a | B7: c | C7: d | D7: e | E7: f | G7: 1 | H7: 2 | I7: 3 | J7: 4 | K7: 5 | L7: 6 | M7: 7 | N7: 8 | O7: 9 | P7: 10 | Q7: 11 | R7: 12 | S7: 13 | T7: 14 | U7: 15 | V7: 16 | W7: 17 | X7: 18 | Y7: 19 | Z7: 20 | AA7: 21 | AB7: 22 | AC7: 23 | AD7: 24 | AE7: 25 | AF7: 26 | AG7: 27 | AH7: 28 | AI7: 29 | AJ7: 30 | AK7: 31 | AL7: 32 | AM7: 33 | AN7: 34 | AO7: 35 | AP7: 36 | AQ7: 37 | AR7: 38
A8: Objectif 4 : Renforcer les structures de l'administration publique afin d'améliorer la prestation de services aux citoyens.
A9: 4 | B9: 4.1 | C9: 4.1. Mener une étude pour examiner les fonctions et l'organisation interne des institutions de l'administration aux niveaux central et local : | D9: 4.1.1 | E9: Étude et analyse du transfert des fonctions de l'État vers le marché privé de la prestation de services. | J9: =G9*H9*I9 -> 0 | K9: 10 | L9: 2 | M9: 20 | N9: 300 | O9: 25 | Q9: 20 | S9: =(K9*L9*N9)+(K9*L9*M9*O9)+(K9*L9*M9*P9)+(K9*M9*Q9)+(K9*L9*R9) -> 20000 | T9: 500 | U9: 350 | V9: =T9*U9 -> 175000 | W9: 700 | X9: 1200 | Y9: =W9*X9 -> 840000 | AB9: =Z9*AA9 -> 0 | AG9: =AE9*AF9 -> 0 | AJ9: =AH9*AI9 -> 0 | AK9: 200000 | AL9: =J9+S9+V9+Y9+AB9+AG9+AJ9+AK9+AC9+AD9 -> 1235000 | AR9: =AL9-AM9-AN9-AO9-AP9-AQ9 -> 1235000
D10: 4.1.2 | E10: Évaluation (inventaire) des nouvelles unités de ressources humaines au niveau national. | V10: 50000 | AL10: 50000 | AR10: 50000
D11: 4.1.3 | E11: Création d'un cadre fonctionnel pour les relations entre les ministères et leurs institutions subordonnées. | J11: =G11*H11*I11 -> 0 | K11: 15 | L11: 5 | M11: 15 | N11: 300 | O11: 25 | Q11: 20 | S11: =(K11*L11*N11)+(K11*L11*M11*O11)+(K11*L11*M11*P11)+(K11*M11*Q11)+(K11*L11*R11) -> 55125 | T11: 150 | U11: 350 | V11: =T11*U11 -> 52500 | W11: 320 | X11: 1200 | Y11: =W11*X11 -> 384000 | AB11: =Z11*AA11 -> 0 | AG11: =AE11*AF11 -> 0 | AJ11: =AH11*AI11 -> 0 | AK11: 50000 | AL11: 541625 | AO11: 50000 | AR11: 491625
D12: 4.1.4 | E12: Manuel de procédures pour les procédures administratives et le système de gestion des documents dans les ministères sectoriels (IAP A.1.5). | F12: Activité 1.5 | J12: =G12*H12*I12 -> 0 | S12: =(K12*L12*N12)+(K12*L12*M12*O12)+(K12*L12*M12*P12)+(K12*M12*Q12)+(K12*L12*R12) -> 0 | V12: 50000 | Y12: 100000 | AB12: =Z12*AA12 -> 0 | AD12: 150000 | AG12: 200000 | AJ12: =AH12*AI12 -> 0 | AL12: 500000 | AN12: 500000 | AR12: 0
B13: 4.2 | C13: 4.2. Mener des interventions juridiques dans les actes constitutif des institutions subordonnées et les agences ministérielles, réviser les organigrammes et les descriptions de postes, et relocaliser les nouveaux sièges selon les entités territoriales. | D13: 4.2.1 | E13: Examen du cadre juridique pertinent. | J13: =G13*H13*I13 -> 0 | S13: =(K13*L13*N13)+(K13*L13*M13*O13)+(K13*L13*M13*P13)+(K13*M13*Q13)+(K13*L13*R13) -> 0 | V13: =T13*U13 -> 0 | Y13: =W13*X13 -> 0 | AB13: =Z13*AA13 -> 0 | AG13: =AE13*AF13 -> 0 | AJ13: =AH13*AI13 -> 0 | AK13: 40000 | AL13: 40000 | AM13: 40000 | AR13: 0
D14: 4.2.2 | E14: Examen fonctionnel des institutions et adaptation à la nouvelle division territoriale. | J14: =G14*H14*I14 -> 0 | S14: =(K14*L14*N14)+(K14*L14*M14*O14)+(K14*L14*M14*P14)+(K14*M14*Q14)+(K14*L14*R14) -> 0 | V14: =T14*U14 -> 0 | Y14: =W14*X14 -> 0 | AB14: =Z14*AA14 -> 0 | AG14: =AE14*AF14 -> 0 | AJ14: =AH14*AI14 -> 0 | AK14: 30000 | AL14: 30000 | AM14: 30000 | AR14: 0
S15: =SUM(S9:S14) -> 75125 | V15: =SUM(V9:V14) -> 327500 | Y15: 1324000 | Z15: 0 | AA15: 0 | AB15: 0 | AC15: 0 | AD15: 150000 | AE15: 0 | AF15: 0 | AG15: 200000 | AH15: 0 | AI15: 0 | AJ15: 0 | AK15: 320000 | AL15: 2396625 | AM15: 70000 | AN15: 500000 | AO15: 50000 | AP15: 0 | AQ15: 0 | AR15: 1776625
A16: Objectif 6 : Amélioration des capacités de mise en œuvre de la législation sur la fonction publique et simplification des méthodes d'éxécution.
B17: 6.1 | C17: 6.1. Évaluation des capacités en ressources humaines pour la mise en oeuvre de la Loi sur la fonction publique dans les institutions nouvellement constituées et renforcement des compétences pour mettre en oeuvre des procédures uniformes. | D17: 6.1.6 | E17: L'évaluation du respect de la nouvelle Loi sur la fonction publique concernant les structures actuelles de gestion et de contrôle. | F17: Jumelage A.1.1.5 | AK17: 50000 | AL17: 50000 | AM17: 50000 | AR17: =AL17-AM17-AN17-AO17-AP17-AQ17 -> 0
A18: 6 | B18: 6.2 | C18: Renforcement des capacités de planification des ressources humaines dans les institutions de l'administration publique | D18: 6.2.1 | E18: Étude de la capacité des structures menée par le DAP | F18: Pas de surcoût | J18: =G18*H18*I18 -> 0 | S18: =(K18*L18*N18)+(K18*L18*M18*O18)+(K18*L18*M18*P18)+(K18*M18*Q18)+(K18*L18*R18) -> 0 | V18: =T18*U18 -> 0 | Y18: =W18*X18 -> 0 | AB18: =Z18*AA18 -> 0 | AG18: =AE18*AF18 -> 0 | AJ18: =AH18*AI18 -> 0 | AK18: 60000 | AL18: 60000 | AM18: 60000 | AR18: =AL18-AM18-AN18-AO18-AP18-AQ18 -> 0
D19: 6.2.2 | E19: La méthodologie de la planification à long terme des ressources humaines. | J19: =G19*H19*I19 -> 0 | K19: 2 | L19: 1 | M19: 20 | N19: 300 | O19: 25 | Q19: 20 | S19: =(K19*L19*N19)+(K19*L19*M19*O19)+(K19*L19*M19*P19)+(K19*M19*Q19)+(K19*L19*R19) -> 2400 | T19: 50 | U19: 350 | V19: =T19*U19 -> 17500 | Y19: =W19*X19 -> 0 | AB19: 0 | AG19: =AE19*AF19 -> 0 | AJ19: =AH19*AI19 -> 0 | AL19: =J19+S19+V19+Y19+AB19+AG19+AJ19+AK19+AC19+AD19 -> 19900 | AR19: 19900
D20: 6.2.3 | E20: Programme de formation spécifique pour la planification à long terme des ressources humaines. | F20: Après la rédaction de la méthodologie | J20: =G20*H20*I20 -> 0 | S20: =(K20*L20*N20)+(K20*L20*M20*O20)+(K20*L20*M20*P20)+(K20*M20*Q20)+(K20*L20*R20) -> 0 | V20: =T20*U20 -> 0 | Y20: =W20*X20 -> 0 | AB20: 0 | AG20: =AE20*AF20 -> 0 | AJ20: =AH20*AI20 -> 0 | AL20: 0 | AR20: 0
B21: 6.3 | C21: Renforcement des capacités du Département de l'Administration publique (DAP) pour mener la stratégie de réforme de la fonction publique : | D21: 6.3.1 | E21: Formations fournies par les programmes de l'EAAP. | J21: =G21*H21*I21 -> 0 | S21: =(K21*L21*N21)+(K21*L21*M21*O21)+(K21*L21*M21*P21)+(K21*M21*Q21)+(K21*L21*R21) -> 0 | V21: =T21*U21 -> 0 | Y21: =W21*X21 -> 0 | AB21: 0 | AG21: =AE21*AF21 -> 0 | AJ21: =AH21*AI21 -> 0 | AL21: 0 | AR21: 0
B22: 6.4 | C22: Fonctionnement du Commissaire à la fonction publique | D22: 6.4.1 | E22: La création de mécanismes de renforcement de la coopération entre le CFP et les institutions de l'administraiton publique (IAP A.2.3). | Y22: 300000 | AB22: 0 | AL22: 300000 | AN22: =AL22 -> 300000 | AR22: 0
D23: 6.4.2 | E23: Renforcement des capacités du CFP (partiellement IAP A.2.4). | J23: =G23*H23*I23 -> 0 | S23: =(K23*L23*N23)+(K23*L23*M23*O23)+(K23*L23*M23*P23)+(K23*M23*Q23)+(K23*L23*R23) -> 0 | V23: =T23*U23 -> 0 | Y23: 50000 | AB23: 0 | AG23: =AE23*AF23 -> 0 | AJ23: =AH23*AI23 -> 0 | AL23: 50000 | AN23: =AL23 -> 50000 | AR23: 0
B24: 6.5 | C24: Mise en place d'un système pour créer les bases de données avec des questions préparées et l'utilisation de systèmes électroniques d'évaluation pour les procédures d'examen en cas de recrutement dans la fonction publique (2017) | D24: 6.5.1 | E24: Mise en place de la plateforme du système. | J24: 0 | S24: 35000 | V24: 0 | Y24: =W24*X24 -> 0 | AB24: 0 | AD24: 25000 | AG24: 0 | AJ24: 0 | AK24: 5000 | AL24: 65000 | AM24: 5000 | AP24: 60000 | AR24: 0
D25: 6.5.2 | E25: Banque de questions pour l'examen dirigé (pour 10 disciplines). | J25: 0 | S25: =(K25*L25*N25)+(K25*L25*M25*O25)+(K25*L25*M25*P25)+(K25*M25*Q25)+(K25*L25*R25) -> 0 | T25: =10*10 -> 100 | U25: 350 | V25: 35000 | W25: =10*30 -> 300 | X25: 1200 | Y25: 360000 | AB25: 0 | AG25: 0 | AJ25: 0 | AK25: 50000 | AL25: 445000 | AM25: 50000 | AR25: 395000
D26: 6.5.3 | E26: Systèmes de quesitons testés | J26: 0 | S26: 0 | V26: 0 | Y26: 0 | AB26: 0 | AG26: 0 | AJ26: 0 | AK26: 30000 | AL26: 30000 | AM26: 30000 | AR26: 0
D27: 6.5.4 | E27: Système d'examen automatique élaboré (pour 15 disciplines). | J27: 0 | S27: 0 | T27: 80 | U27: 350 | V27: 28000 | W27: =15*10 -> 150 | X27: 1200 | Y27: 180000 | AB27: 0 | AG27: 0 | AJ27: 0 | AK27: 5000 | AL27: 213000 | AM27: 5000 | AR27: 208000
B28: 6.6 | C28: Simplification et formattage des étapes et procédures liées aux ressources humaines dans l'administration publique, par l'utilisation de modèles ou formulaires standard (2017) | D28: 6.6.1 | E28: Étude d'évaluation pour 17 systèmes (2 experts locaux et 5 experts étrangers). | J28: 0 | S28: 0 | T28: 300 | U28: 350 | V28: 105000 | W28: 200 | X28: 1200 | Y28: 240000 | AB28: 0 | AG28: 0 | AJ28: 0 | AK28: 3000 | AL28: 348000 | AR28: 348000
D29: 6.6.2 | E29: Formation du personnel des ministères pour utiliser les formulaires standard (4 formations X 20 personnes/formation X 3 jours de formation). | J29: 0 | K29: 4 | L29: 3 | M29: 20 | N29: 300 | O29: 25 | Q29: 20 | S29: 11200 | V29: 0 | Y29: 0 | AB29: 0 | AG29: 0 | AJ29: 0 | AL29: 11200 | AR29: 11200
B30: 6.7 | C30: Publication annuelle, sur le site internet du DAP, de l'ensemble d'indicateurs liés à la gestion des ressources humaines dans la fonction publique. (Chaque année, à partir de 2015) | D30: 6.7.1 | E30: Système de suivi élaboré | J30: 0 | S30: 0 | V30: 0 | W30: 100 | X30: 1200 | Y30: 120000 | AB30: 0 | AG30: 0 | AJ30: 0 | AK30: 10000 | AL30: 130000 | AR30: 130000
D31: 6.7.2 | E31: Rapports de suivi publiés | F31: Pas de surcoût | J31: 0 | S31: 0 | V31: 0 | Y31: 0 | AB31: 0 | AG31: 0 | AJ31: 0 | AK31: 8000 | AL31: 8000 | AR31: 8000
B32: 6.8 | C32: Finalisation du SIGRH et exécution du plan de mise en œuvre | D32: 6.8.1 | E32: Adaptation et activation des modules et interopérabilité et implémentation du SIGRH. | F32: IPS 2 | J32: 0 | S32: 0 | V32: 0 | Y32: 0 | AB32: 20000 | AD32: 288000 | AG32: 0 | AJ32: 0 | AL32: 308000 | AM32: 20000 | AP32: =AL32-AM32 -> 288000 | AR32: 0
D33: 6.8.2 | E33: Formation de 500 personnels de GRH (Total 20 formation ; 3jours de formation x 25 personnes/formation). | J33: 0 | K33: 20 | L33: 3 | M33: 25 | N33: 300 | O33: 25 | P33: 30 | Q33: 20 | S33: 110500 | T33: =(20*3)*2 +3 -> 123 | U33: 350 | V33: 43050 | Y33: 0 | AB33: 0 | AG33: 0 | AJ33: 0 | AK33: 5000 | AL33: 158550 | AR33: 158550
D34: 6.8.3 | E34: Analyse des systèmes de fonctionnement du SIGRH accomplie. | J34: 0 | S34: 0 | V34: 0 | Y34: 0 | AB34: 0 | AG34: 0 | AJ34: 0 | AK34: 30000 | AL34: 30000 | AM34: 30000 | AR34: 0
D35: 6.8.4 | E35: Maintenance du système (50 personnes formées tous les 2 ans - nouveaux spécialistes GRH). | J35: 0 | K35: 6 | L35: 3 | M35: 25 | N35: 300 | O35: 25 | P35: 30 | Q35: 20 | S35: 33150 | V35: 0 | Y35: 0 | AB35: 0 | AG35: 0 | AJ35: 0 | AK35: 3000 | AL35: 36150 | AR35: 36150
B36: 6.9 | D36: 6.9.1 | E36: La mise en place d'un système pour l'avancement professionnel dans la fonction publique (IAP A.1.4). | Y36: 200000 | AD36: 150000 | AL36: =J36+S36+V36+Y36+AB36+AG36+AJ36+AK36+AC36+AD36 -> 350000 | AN36: 350000 | AR36: 0
S37: =SUM(S17:S36) -> 192250 | V37: =SUM(V17:V36) -> 228550 | Y37: =SUM(Y17:Y36) -> 1450000 | Z37: 0 | AA37: 0 | AB37: 20000 | AC37: 0 | AD37: 463000 | AE37: 0 | AF37: 0 | AG37: 0 | AH37: 0 | AI37: 0 | AJ37: 0 | AK37: 259000 | AL37: 2612800 | AM37: 250000 | AN37: 700000 | AO37: 0 | AP37: 348000 | AQ37: 0 | AR37: 1314800
A38: Objectif 7 : Organisation du système de rémunération de la fonction publique sur la base de l'évaluation des postes, de l'évaluation des résultats annuels des fonctionnaires et des résultats des formations professionnelles obligatoires.
A39: 7 | B39: 7.1 | C39: Elaboration d'un document stratégique sur le système de rémunération et l'adoption de la nouvelle structure de rémunérations (2017) | D39: 7.1.1 | E39: Étude d'évaluation du système de rémunérations | J39: =G39*H39*I39 -> 0 | S39: =(K39*L39*N39)+(K39*L39*M39*O39)+(K39*L39*M39*P39)+(K39*M39*Q39)+(K39*L39*R39) -> 0 | T39: 200 | U39: 350 | V39: =T39*U39 -> 70000 | W39: 300 | X39: 1200 | Y39: =W39*X39 -> 360000 | AB39: =Z39*AA39 -> 0 | AG39: =AE39*AF39 -> 0 | AJ39: =AH39*AI39 -> 0 | AK39: 50000 | AL39: =J39+S39+V39+Y39+AB39+AG39+AJ39+AK39+AC39+AD39 -> 480000 | AM39: 50000 | AR39: =AL39-AM39-AN39-AO39-AP39-AQ39 -> 430000
D40: 7.1.2 | E40: Projet de stratégie élaboré. | J40: =G40*H40*I40 -> 0 | S40: =(K40*L40*N40)+(K40*L40*M40*O40)+(K40*L40*M40*P40)+(K40*M40*Q40)+(K40*L40*R40) -> 0 | T40: 100 | U40: 350 | V40: =T40*U40 -> 35000 | W40: 200 | X40: 1200 | Y40: =W40*X40 -> 240000 | AB40: =Z40*AA40 -> 0 | AG40: =AE40*AF40 -> 0 | AJ40: =AH40*AI40 -> 0 | AK40: 50000 | AL40: =J40+S40+V40+Y40+AB40+AG40+AJ40+AK40+AC40+AD40 -> 325000 | AM40: 30000 | AR40: =AL40-AM40-AN40-AO40-AP40-AQ40 -> 295000
B41: 7.2 | C41: Adoption de nouvelles décisions sur les rémunérations et mise en œuvre de la nouvelle structure (2020) | D41: 7.2.1 | E41: Nouvelle structure de rémunérations adoptée. | F41: Le coût sera déterminé après l'achèvement de l'étude et l'approbation de la nouvelle stratégie. | J41: =G41*H41*I41 -> 0 | S41: =(K41*L41*N41)+(K41*L41*M41*O41)+(K41*L41*M41*P41)+(K41*M41*Q41)+(K41*L41*R41) -> 0 | V41: =T41*U41 -> 0 | Y41: =W41*X41 -> 0 | AB41: =Z41*AA41 -> 0 | AG41: =AE41*AF41 -> 0 | AJ41: =AH41*AI41 -> 0 | AL41: =J41+S41+V41+Y41+AB41+AG41+AJ41+AK41+AC41+AD41 -> 0 | AR41: =AL41-AM41-AN41-AO41-AP41-AQ41 -> 0
B42: 7.3 | C42: Examen des ratios entre les rémunérations moyennes maximum et minimum dans l'administration publique, afin de maintenir une pyramide des salaires objective et la motivation des postes de direction, ainsi que la diversification de la classification selon le contenu des postes. | D42: 7.3.1 | E42: Nouvelle classification des salaires et amendement de la loi sur les taux salariaux. | J42: =G42*H42*I42 -> 0 | V42: =T42*U42 -> 0 | Y42: =W42*X42 -> 0 | AB42: =Z42*AA42 -> 0 | AG42: =AE42*AF42 -> 0 | AJ42: =AH42*AI42 -> 0 | AK42: 5000 | AL42: =J42+S42+V42+Y42+AB42+AG42+AJ42+AK42+AC42+AD42 -> 5000 | AM42: 5000 | AR42: =AL42-AM42-AN42-AO42-AP42-AQ42 -> 0
K43: =SUM(K39:K42) -> 0 | L43: 0 | M43: 0 | N43: 0 | O43: 0 | P43: 0 | Q43: 0 | R43: 0 | S43: 0 | V43: 105000 | Y43: 600000 | Z43: 0 | AA43: 0 | AB43: 0 | AC43: 0 | AD43: 0 | AE43: 0 | AF43: 0 | AG43: 0 | AH43: 0 | AI43: 0 | AJ43: 0 | AK43: 105000 | AL43: 810000 | AM43: =SUM(AM39:AM42) -> 85000 | AN43: 0 | AO43: 0 | AP43: 0 | AQ43: 0 | AR43: 725000
J44: =J15+J37+J43 -> 0 | K44: 0 | L44: 0 | M44: 0 | N44: 0 | O44: 0 | P44: 0 | Q44: 0 | R44: 0 | S44: 267375 | V44: =V15+V37+V43 -> 661050 | Y44: =Y15+Y37+Y43 -> 3374000 | Z44: 0 | AA44: 0 | AB44: 20000 | AC44: 0 | AD44: 613000 | AE44: 0 | AF44: 0 | AG44: 200000 | AH44: 0 | AI44: 0 | AJ44: 0 | AK44: 684000 | AL44: 5819425 | AM44: 405000 | AN44: 1200000 | AO44: 50000 | AP44: 348000 | AQ44: 0 | AR44: 3816425
AL46: =J44+S44+V44+Y44+AB44+AD44+AG44+AK44 -> 5819425 | AM46: =AL44-AL46 -> 0

Sheet EAAP
B2: Tableau 1 : Estimation du coût de la Stratégie transversale de réforme de l'administration publique - EAAP
H3: Dépenses de la catégorie économique "Rémunérations et salaires" : (Code 600-601) | AD3: Investissements | AL3: Autres dépenses | AM3: Coût estimé de la réalisation | AN3: Sources de financement (par réalisation) | AU3: Dotation budgétaire au cours des années
A4: Numéro | B4: L'objectif et le but de la Stratégie | C4: Action | E4: Indicateurs de réalisation | H4: Fonds de rémunération pour le personnel supplémentaire | L4: Dépenses pour les conférences/séminaires et la formation | U4: Services de conseil divers (assistance technique) | AA4: Dépenses d'information publique (publications)
G5: Activité avec/sans coût additionnel | U5: Expertise locale | X5: Expertise étrangère | AD5: Immeubles | AE5: Développement de logiciels | AF5: Équipement informatique | AI5: Fournitures de bureau
H6: Nb | I6: Salaire moyen | J6: Mois | K6: Valeur totale | L6: Nb d'activités de formation/séminaires | M6: Jour/activité | N6: Participants à la formation | O6: Location de salle/jour | P6: Coût pour une personne (café/restauration) | Q6: Coût moyen d'hébergement/nuit | R6: Valeur matériel/personne | S6: Honoraires du formateur/jour | T6: =(L6*M6*O6)+(L6*M6*N6*P6)+(L6*M6*N6*Q6)+(L6*N6*R6)+(L6*M6*S6) ->  | U6: Jour/expert | V6: Honoraires | W6: Total | X6: Jour/expert | Y6: Honoraires | Z6: Total | AA6: Article/activité | AB6: Prix/valeur par unité | AC6: Total | AF6: Pièce | AG6: Prix moyen/unité | AH6: Valeur totale | AI6: Pièce | AJ6: Prix moyen/unité | AK6: Valeur totale | AN6: Budget de l'État (PBMT 2015-2017) | AO6: IAP | AP6: CDE | AQ6: BM | AR6: UNDP | AS6: Écart budgétaire | AU6: Coût estimé de l'activité | AV6: Budget de l'État (PBMT 2015-2017) | AW6: IAP | AX6: CDE | AY6: BM | AZ6: PNUD | BA6: Écart financier
A7: a | B7: b | C7: c | D7: d | E7: e | F7: f | H7: 1 | I7: 2 | J7: 3 | K7: 4(1x2x3) | L7: 11 | N7: 12 | O7: 13 | P7: 14 | Q7: 15 | R7: 16 | T7: =(L7*M7*O7)+(L7*M7*N7*P7)+(L7*M7*N7*Q7)+(L7*N7*R7)+(L7*M7*S7) -> 2112 | U7: 14 | V7: 15 | W7: 16 | X7: 17 | Y7: 18 | Z7: 20 | AA7: 30 | AB7: 31 | AC7: 32 | AD7: 34 | AF7: 21 | AG7: 22 | AH7: 23 | AI7: 24 | AJ7: 25 | AK7: 26 | AL7: 41 | AM7: 42 | AN7: 43 | AO7: 44 | AR7: 45 | AS7: 46
A8: 1 | B8: Offre de formation pour répondre à la demande croissante d'experts et de formations, créée par le statut de pays candidat attribué à l'Albanie. | C8: 1.1 | D8: Réalisation dans les unités et les programmes d'une série d'activités mises à jour pour refléter les exigences et besoins nouveaux engendrés pa la Loi sur la fonction publique. | E8: 1.1.1 | F8: Le programme de formation (cours de base et spécialisés) est rédigé et est approuvé avec les objectifs du programme, les objectifs pédagogiques et les critères d'évaluation. | K8: =H8*I8*J8 -> 0 | T8: 0 | W8: =U8*V8 -> 0 | Z8: 14242 | AC8: =AA8*AB8 -> 0 | AH8: =AF8*AG8 -> 0 | AK8: =AI8*AJ8 -> 0 | AM8: =K8+T8+W8+Z8+AC8+AH8+AK8+AL8+AD8+AE8 -> 14242 | AO8: 14242 | AS8: =AM8-AN8-AO8-AR8 -> 0 | AU8: =AM8+AM9 -> 119992 | AV8: =AN8+AN9 -> 35610 | AW8: =AO8+AO9 -> 84382 | AX8: =AR8+AR9 -> 0 | AY8: =AS8+AS9 -> 0 | AZ8: =AR8+AR9 -> 0 | BA8: =AU8-AV8-AW8 -> 0
E9: 1.1.2 | F9: Les cours sont organisés en fonction des besoins | K9: 0 | L9: 180 | M9: 3.5 | N9: 20 | O9: 0 | P9: 0 | Q9: 0 | R9: 18 | S9: 65 | T9: 105750 | W9: 0 | Z9: =X9*Y9 -> 0 | AC9: 0 | AH9: 0 | AK9: 0 | AM9: =K9+T9+W9+Z9+AC9+AH9+AK9+AL9+AD9+AE9 -> 105750 | AN9: 35610 | AO9: =AM9-AN9 -> 70140 | AS9: =AM9-AN9-AO9-AR9 -> 0
C10: 1.2 | D10: Identification régulières des besoins en formation grâce à une analyse de ces besoins. | E10: 1.2.1 | F10: Les besoins spécifiques en termes de formation et les groupes cibles sont identifiés | K10: 0 | L10: 45 | M10: 2 | N10: 20 | O10: 0 | P10: 0 | Q10: 0 | R10: 18 | S10: 65 | T10: 22050 | W10: 0 | Z10: 0 | AC10: 0 | AH10: 0 | AK10: 0 | AM10: 22050 | AN10: =AM10*0.67/2 -> 7386.75 | AO10: =AM10-AN10 -> 14663.25 | AS10: 0 | AU10: =AM10 -> 22050 | AV10: =AN10 -> 7386.75 | AW10: 14663.25 | AX10: =AR10 -> 0 | AY10: =AS10 -> 0 | AZ10: =AR10 -> 0 | BA10: 0
C11: 1.3 | D11: Augmentation du nombre de programmes de formation concernant l'intégration européenne. | E11: 1.3.1 | F11: Changement du pourcentage représentant les programmes à contenu européen de 35 % à 50 % entre 2015 et 2020. | K11: 0 | L11: 150 | M11: 2 | N11: 20 | O11: 0 | P11: 0 | Q11: 0 | R11: 10 | S11: 65 | T11: 49500 | W11: 0 | Z11: 0 | AC11: 0 | AH11: 0 | AK11: 0 | AM11: 49500 | AO11: =AM11 -> 49500 | AS11: 0 | AU11: =AM11 -> 49500 | AV11: 0 | AW11: 49500 | AX11: =AP11 -> 0 | AY11: =AQ11 -> 0 | AZ11: 0 | BA11: 0
C12: 1.4 | D12: Mise à jour et développement du groupe de formateurs spécialisés - Ceci sera réalisé par une mise à jour continue de la base de données d'experts potentiels et par un programme de développement professionnel sur le lieu de travail. | E12: 1.4.1 | F12: Base de données préparée et pleinement opérationnelle | G12: Sans surcoût | K12: 0 | T12: 0 | W12: 0 | Z12: 0 | AC12: 0 | AH12: 0 | AK12: 0 | AM12: 0 | AS12: 0 | AU12: =AM12 -> 0 | AV12: 0 | AW12: 0 | AX12: =AP12 -> 0 | AY12: =AQ12 -> 0 | AZ12: 0 | BA12: 0
C13: 1.5 | D13: Finalisation du modèle de développement professionnel tout au long de la vie dans la fonction publique. | E13: 1.5.1 | F13: Le programme de développement a été préparé au sein de l'institution. | G13: Sans surcoût | K13: 0 | T13: 0 | W13: 0 | Z13: 0 | AC13: 0 | AH13: 0 | AK13: 0 | AM13: 0 | AS13: 0 | AU13: =AM13+AM14 -> 27150 | AV13: 0 | AW13: 16180 | AX13: 0 | AY13: 0 | AZ13: 0 | BA13: 10970
E14: 1.5.2 | F14: Le programme de développement est mis en œuvre dans 5 institutions au moins. | K14: 0 | L14: 5 | M14: 2 | N14: 10 | O14: 0 | P14: 0 | Q14: 0 | R14: 10 | S14: 65 | T14: 1150 | W14: 0 | X14: 20 | Y14: 1200 | Z14: 24000 | AC14: 0 | AH14: 0 | AK14: 0 | AL14: 2000 | AM14: 27150 | AO14: 16180 | AS14: 10970
A15: 2 | B15: Réponse aux besoins de formation en augmentation constante de la fonction publique albanaise. L'augmentation du nombre de fonctionnaires est un facteur qui aura un impact sur les demandes de formation au sein de la fonction publique. | C15: 2.1 | D15: Plans de formation obligatoire pendant la période d'essai. | E15: 2.1.1 | F15: Le plan et le calendrier des formations obligatoires pendant la période d'essai selon les emplois dans la fonction publique sont rédigés. | K15: =H15*I15*J15 -> 0 | T15: 0 | W15: =U15*V15 -> 0 | Z15: 32345 | AC15: =AA15*AB15 -> 0 | AH15: =AF15*AG15 -> 0 | AK15: =AI15*AJ15 -> 0 | AM15: 32345 | AN15: =AM15*0.67/2 -> 10835.575 | AO15: =25972+38718+26805+32345 -> 123840 | AS15: =(AM15+AM16+AM17)-(AN15+AN16+AN17+AO15) -> 37733.6 | AU15: =AM15+AM16+AM17 -> 271840 | AV15: 110266.4 | AW15: 123840 | AX15: 0 | AY15: 0 | AZ15: 0 | BA15: 37733.6
E16: 2.1.2 | F16: Les fonctionnaires sont formés et évalués à l'essai dans l'administration centrale | K16: 0 | L16: 60 | M16: 10 | N16: 20 | O16: 0 | P16: 0 | Q16: 0 | R16: 50 | S16: 65 | T16: 99000 | AL16: 1000 | AM16: 100000 | AN16: =AM16*0.67/2 -> 33500
E17: 2.1.3 | F17: Les fonctionnaires sont formés et évalués à l'essai dans l'administration locale | G17: Coût additionnel | H17: 2 | I17: 400 | J17: 60 | K17: 48000 | L17: 20 | M17: 5 | N17: 20 | O17: 100 | P17: 12 | Q17: 20 | R17: 25 | S17: 65 | T17: =(L17*M17*O17)+(L17*M17*N17*P17)+(L17*M17*N17*Q17)+(L17*N17*R17)+(L17*M17*S17) -> 90500 | W17: 0 | Z17: =X17*Y17 -> 0 | AC17: 0 | AH17: 0 | AK17: 0 | AL17: 995 | AM17: 139495 | AN17: =(AM17*0.67/2)+19200 -> 65930.825
C18: 2.2 | D18: Rédaction de plans annuels pour la formation des cadres moyens et supérieurs - sur la base du modèle de leadership. | E18: 2.2.1 | F18: Le plan annuel de formation pour les cadres supérieurs est rédigé. | G18: Sans surcoût | K18: 0 | T18: =(L18*M18*O18)+(L18*M18*N18*P18)+(L18*M18*N18*Q18)+(L18*N18*R18)+(L18*M18*S18) -> 0 | U18: 57 | V18: 90 | W18: 5130 | Z18: 0 | AC18: 0 | AH18: 0 | AK18: 0 | AM18: 5130 | AN18: =AM18*0.67/2 -> 1718.55 | AO18: =11010+148069 -> 159079 | AS18: =AM18+AM19+AM20-AN18-AN19-AN20-AO18 -> -53291.465 | AU18: =AM18+AM19+AM20 -> 159079 | AV18: 53291.465 | AW18: 159079 | AX18: 0 | AY18: 0 | AZ18: 0 | BA18: -53291.465
E19: 2.2.2 | F19: Les cours de formation sont préparés pour les cadres supérieurs | G19: Sans surcoût | K19: 0 | L19: 7 | M19: 47 | N19: 20 | O19: 0 | P19: 0 | Q19: 0 | R19: 235 | S19: 65 | T19: 54285 | W19: 0 | Z19: 0 | AC19: 0 | AH19: 0 | AK19: 0 | AL19: 20464 | AM19: 74749 | AN19: =AM19*0.67/2 -> 25040.915
E20: 2.2.3 | F20: Les cours de formation sont préparés pour les cadres moyens. | G20: Sans surcoût | K20: 0 | L20: 48 | M20: 10 | N20: 20 | O20: 0 | P20: 0 | Q20: 0 | R20: 50 | S20: 65 | T20: 79200 | W20: 0 | Z20: 0 | AC20: 0 | AH20: 0 | AK20: 0 | AM20: 79200 | AN20: =AM20*0.67/2 -> 26532
C21: 2.3 | D21: Évaluation d'approches alternatives concernant la formation des cadres, y compris l'approche fondée sur les compétences. | E21: 2.3.1 | F21: Recherches sur les approches alternatives | G21: Sans surcoût | K21: 0 | T21: 0 | W21: 0 | Z21: 0 | AC21: 0 | AH21: 0 | AK21: 0 | AM21: 0 | AS21: 0 | AU21: =AM21+AM22 -> 6900 | AV21: 2311.5 | AW21: 0 | AX21: 0 | AY21: 0 | AZ21: 0 | BA21: 4588.5
E22: 2.3.2 | F22: Effectuer des visites d'études dans des ministères, 3 institutions/écoles (3 visites, 2 personnes, 5 jours) | K22: 0 | T22: 0 | W22: 0 | Z22: 0 | AC22: 0 | AH22: 0 | AK22: 0 | AL22: =(3*2*500)+ (3*2*5*80)+(3*2*5*50) -> 6900 | AM22: 6900 | AN22: =AM22*0.67/2 -> 2311.5 | AS22: 4588.5
C23: 2.4 | D23: Développement de la plateforme d'apprentissage et de formation en ligne et rédaction de programmes utilisant cette plateforme. | E23: 2.4.1 | F23: Mener une étude de faisabilité pour la mise en œuvre de la plateforme | K23: 0 | T23: 0 | U23: 10 | V23: 350 | W23: 3500 | X23: 25 | Y23: 1200 | Z23: 30000 | AC23: 0 | AH23: 0 | AK23: 0 | AM23: 33500 | AO23: =AM23 -> 33500 | AS23: 0 | AU23: =AM23+AM24+AM25 -> 146000 | AV23: 0 | AW23: 146000 | AX23: 0 | AY23: 0 | AZ23: 0 | BA23: 0
E24: 2.4.2 | F24: Développement de la plateforme dans l'EAAP et pilotage de 3 cours de formation | K24: 0 | T24: 0 | W24: 0 | Z24: 0 | AC24: 0 | AE24: 70000 | AF24: 50 | AG24: 600 | AH24: 30000 | AI24: 50 | AJ24: 250 | AK24: 12500 | AM24: 112500 | AO24: 112500 | AS24: 0
E25: 2.4.3 | F25: Exécution de 30 % du curriculum de formation par la plateforme d'apprentissage en ligne | G25: Sans surcoût | K25: 0 | T25: 0 | W25: 0 | Z25: 0 | AC25: 0 | AH25: 0 | AK25: 0 | AM25: 0 | AS25: 0
A26: 3 | B26: Transition d'une culture du contrôle des ressources dans la fonction publique à un modèle moderne de prestation de service axée sur la demande du client. | C26: 3.1 | D26: Mise en place de groupes bénéficiaires du service (groupes d'usagers) et/ou de groupes de discussion afin de fournir des retours sur la qualité et l'utilité des services fournis par l'EAAP. | E26: 3.1.1 | F26: Mise à jour de la base de données des "clients" de l'EAAP | G26: Sans surcoût | K26: 0 | T26: 0 | W26: 0 | Z26: 0 | AC26: 0 | AH26: 0 | AK26: 0 | AM26: 0 | AS26: 0 | AU26: =AM26+AM27+AM28 -> 0 | AV26: 0 | AW26: 0 | AX26: 0 | AY26: 0 | AZ26: 0 | BA26: 0
E27: 3.1.2 | F27: Mise en place de groupes de discussion avec les directeurs des ressources humaines des ministères et des institutions de l'administration centrale. | G27: Sans surcoût | K27: 0 | T27: 0 | AM27: 0 | AS27: 0
E28: 3.1.3 | F28: Mise en place de groupes de discussion avec les directeurs des ressources humaines des administrations locales et des institutions indépendantes. | G28: Sans surcoût | K28: =H28*I28*J28 -> 0 | T28: 0 | W28: =U28*V28 -> 0 | Z28: =X28*Y28 -> 0 | AC28: =AA28*AB28 -> 0 | AH28: =AF28*AG28 -> 0 | AK28: =AI28*AJ28 -> 0 | AM28: 0 | AS28: 0
C29: 3.2 | D29: Amélioration du système de retours en général, afin de fournir des données suffisantes et une information disponible sur l'impact des formations. | E29: 3.2.1 | F29: Les procédures et réglementations sont révisées et adaptées conformément au modèle fondé sur le client. | K29: =H29*I29*J29 -> 0 | T29: 0 | W29: =U29*V29 -> 0 | Z29: =X29*Y29 -> 0 | AC29: =AA29*AB29 -> 0 | AH29: =AF29*AG29 -> 0 | AK29: =AI29*AJ29 -> 0 | AM29: 0 | AS29: 0 | AU29: =AM29+AM30+AM31+AM32 -> 0 | AV29: 0 | AW29: 0 | AX29: 0 | AY29: 0 | AZ29: 0 | BA29: 0
E30: 3.2.2 | F30: La méthodologie et les quesitonnaires pour mesurer l'impact de la formation sont préparés. | T30: 0 | AM30: 0 | AS30: 0
E31: 3.2.3 | F31: Des objectifs de satisfaction de l'usager sont définis pour tous les cours de formation. | K31: =H31*I31*J31 -> 0 | T31: 0 | W31: =U31*V31 -> 0 | Z31: =X31*Y31 -> 0 | AC31: =AA31*AB31 -> 0 | AH31: 0 | AK31: 0 | AM31: 0 | AS31: 0
E32: 3.2.4 | F32: Des évaluations indépendantes et objectives sont régulièrement menées (au moins une tous les deux ans). | G32: Sans surcoût | T32: 0 | AM32: 0 | AS32: 0
A33: 4 | B33: Transformation ien centre d'excellence pour la formation de la fonction publique et du secteur public, aux niveaux international et national. | C33: 4.1 | D33: Établissement de contacts avec des agences professionnelles et des agences de contrôle de la qualité pour l'éducation/la formation. | E33: 4.1.1 | F33: La recherche a été menée et le statut de membre d'au moins deux réseaux internationaux est atteint. | G33: Sans surcoût | K33: =H33*I33*J33 -> 0 | T33: 0 | W33: 0 | Z33: =X33*Y33 -> 0 | AC33: =AA33*AB33 -> 0 | AH33: 0 | AK33: 0 | AL33: 9000 | AM33: 9000 | AN33: =AM33*0.67 -> 6030 | AO33: 2970 | AS33: 0 | AU33: =AM33+AM34 -> 18120 | AV33: 12140.4 | AW33: 5980 | AX33: 0 | AY33: 0 | AZ33: 0 | BA33: -0.4
E34: 4.1.2 | F34: Des activités et conférences internationales ont été suivies. | G34: Coûts des déplacements à estimer | K34: =H34*I34*J34 -> 0 | T34: 0 | W34: 0 | Z34: =X34*Y34 -> 0 | AC34: =AA34*AB34 -> 0 | AH34: 0 | AK34: 0 | AL34: =(12*1*500)+ (12*2*1*80)+(12*1*2*50) -> 9120 | AM34: 9120 | AN34: =AM34*0.67 -> 6110.4 | AO34: 3010 | AS34: -0.4
C35: 4.2 | D35: Élaboration de systèmes et de procédures qui répondent aux normes de contrôle de la qualité établies par les agences de contrôle de l'éducation/la formation. | E35: 4.2.1 | F35: Les systèmes et procédures de contrôle de la qualité établis par les agences et les universités nationales et internationales ont été préparés. | G35: Sans surcoût | T35: 0 | U35: 20 | V35: 350 | W35: 7000 | X35: 20 | Y35: 1200 | Z35: =X35*Y35 -> 24000 | AL35: 2000 | AM35: 33000 | AO35: 33000 | AS35: 0 | AU35: =AM35+AM36 -> 33000 | AV35: 0 | AW35: 33000 | AX35: 0 | AY35: 0 | AZ35: 0 | BA35: 0
E36: 4.2.2 | F36: Des protocoles d'entente et des accords d'habilitation ont été conclus. | T36: 0 | AM36: 0 | AS36: 0
C37: 4.3 | D37: Œuvrer pour atteindre le statut de centre d'excellence aux niveaux national et international. | E37: 4.3.1 | F37: L'habilitation nationale et internationale est atteinte. | G37: Frais d'habilitation | K37: =H37*I37*J37 -> 0 | T37: 0 | W37: 0 | Z37: =X37*Y37 -> 0 | AC37: =AA37*AB37 -> 0 | AH37: 0 | AK37: 0 | AL37: 25000 | AM37: 25000 | AO37: 25000 | AS37: 0 | AU37: =AM37 -> 25000 | AV37: 0 | AW37: 25000 | AX37: 0 | AY37: 0 | AZ37: 0 | BA37: 0
K38: 0 | T38: 0 | W38: 0 | Z38: 0 | AC38: 0 | AH38: 0 | AK38: 0 | AM38: 0 | AS38: 0
A39: 5 | B39: Renforcement des capacités et compétences internes, et de la gestion des ressources de l'EAAP. | C39: 5.1 | D39: Le développement de systèmes qui garantissent que toutes les ressources sont gérées de façon efficace et efficiente, pour un coût minimal. | E39: 5.1.1 | F39: Évaluation de la situation actuelle en la reliant à un Plan d'affaires et à un modèle choisi pour l'analyse de l'organisation. | G39: Pas de surcoût | K39: 0 | T39: 0 | W39: 0 | Z39: 0 | AC39: 0 | AH39: 0 | AK39: 0 | AM39: 0 | AS39: 0 | AU39: =AM39+AM40 -> 0 | AV39: 0 | AW39: 0 | AX39: 0 | AY39: 0 | AZ39: 0 | BA39: 0
E40: 5.1.2 | F40: Définir le cycle de gestion qui doit se répéter au moins chaque année. | G40: Sans surcoût | K40: 0 | T40: 0 | W40: 0 | Z40: 0 | AC40: 0 | AH40: 0 | AK40: 0 | AM40: 0 | AS40: 0
C41: 5.2 | D41: Développement d'un système moderne de gestion de la base de données dans le cadre du SIGRH. | E41: 5.2.1 | F41: Un système moderne de gestion de l'information a été créé. | G41: SIGRH | K41: 0 | T41: 0 | W41: 0 | Z41: 0 | AC41: 0 | AH41: 0 | AK41: 0 | AM41: 0 | AS41: 0 | AU41: =AM41 -> 0 | AV41: 0 | AW41: 0 | AX41: 0 | AY41: 0 | AZ41: 0 | BA41: 0
C42: 5.3 | D42: Développement de la bibliothèque de l'EAAP et préparation d'un centre de gestion de l'information. | E42: 5.3.1 | F42: La bibliothèque de l'EAAP s'est développée et transformée en un centre de gestion de l'information. | G42: Sans surcoût | H42: 1 | I42: 400 | J42: 60 | K42: 24000 | T42: 0 | W42: 0 | Z42: 0 | AA42: 200 | AB42: 20 | AC42: 4000 | AH42: 0 | AK42: 0 | AM42: 28000 | AN42: =4000+9600 -> 13600 | AO42: 14400 | AS42: 0 | AU42: =AM42+AM43 -> 40500 | AV42: 26100 | AW42: 14400 | AX42: 0 | AY42: 0 | AZ42: 0 | BA42: 0
E43: 5.3.2 | F43: Le matériel et l'équipement informatique nécessaire a été acheté pour établir le centre de gestion de l'information. | G43: Sans surcoût | K43: 0 | T43: 0 | W43: =U43*V43 -> 0 | Z43: 0 | AC43: 0 | AF43: 10 | AG43: 900 | AH43: =AF43*AG43 -> 9000 | AI43: 10 | AJ43: 350 | AK43: =AI43*AJ43 -> 3500 | AM43: 12500 | AN43: 12500 | AS43: 0
C44: 5.4 | D44: Veiller à ce que les locaux de l'EAAP soient dans un immeuble qui convienne à cet effet. | E44: 5.4.1 | F44: Une reconstruction complète a été menée et l'immeuble a reçu les équipement nécessaires pour mener les activités. | G44: Sans surcoût | T44: 0 | AD44: 70000 | AK44: =AI44*AJ44 -> 0 | AM44: 70000 | AN44: 70000 | AS44: 0 | AU44: =AM44 -> 70000 | AV44: 70000 | AW44: 0 | AX44: 0 | AY44: 0 | AZ44: 0 | BA44: 0
K45: =SUM(K8:K44) -> 72000 | T45: =SUM(T8:T44) -> 501435 | W45: =SUM(W8:W44) -> 15630 | Z45: =SUM(Z8:Z44) -> 124587 | AC45: =SUM(AC8:AC44) -> 4000 | AD45: =SUM(AD8:AD44) -> 70000 | AE45: =SUM(AE8:AE44) -> 70000 | AH45: =SUM(AH8:AH44) -> 39000 | AK45: =SUM(AK8:AK44) -> 16000 | AL45: =SUM(AL8:AL44) -> 76479 | AM45: =SUM(AM8:AM44) -> 989131 | AN45: =SUM(AN8:AN44) -> 317106.515 | AO45: 672024.25 | AP45: 0 | AQ45: 0 | AR45: 0 | AS45: 0.235 | AU45: =SUM(AU8:AU44) -> 989131 | AV45: =SUM(AV8:AV44) -> 317106.515 | AW45: =SUM(AW8:AW44) -> 672024.25 | AZ45: =SUM(AZ8:AZ44) -> 0 | BA45: =SUM(BA8:BA44) -> 0.235
BA46: =AS45-BA45 -> 0
AP47: =AN45+AO45+AP45+AQ45+AR45+AS45 -> 989131 | AX47: =AV45+AW45+BA45 -> 989131

Sheet Politiques&Suivi&Législation
B2: Tableau 1 : Estimation du coût de la Stratégie transversale de réforme de l'administration publique - Élaboration des politiques, Suivi & Législation
I3: Dépenses de la catégorie économique "Rémunérations et salaires" : (Code 600-601) | M3: Dépenses de fournitures et de services | AE3: Investissements | AM3: Autres dépenses (frais accessoires & impévus) | AN3: Coût estimé de la réalisation | AO3: Sources de financement (par réalisation)
A4: Numéro | C4: Action | E4: Indicateurs de réalisation | I4: Fonds de rémunération pour le personnel supplémentaire | M4: Dépenses pour les conférences/séminaires et la formation | V4: Services de conseil divers (assistance technique) | AB4: Dépenses d'information publique (publications)
G5: Activité avec/sans coût additionnel | V5: Expertise locale | Y5: Expertise étrangère | AE5: Immeubles | AF5: Développement de logiciels | AG5: Équipement informatique | AJ5: Fournitures de bureau
AP6: Contributions
H7: sqarime | I7: Nb | J7: Salaire moyen | K7: Mois | L7: Valeur totale | M7: Nb d'activités de formation/séminaires | N7: Jour/activité | O7: Participants à la formation | P7: Location de salle/jour | Q7: Coût pour une personne (café/restauration) | R7: Coût moyen d'hébergement/nuit | S7: Valeur matériel/personne | T7: Honoraires du formateur/jour | U7: Total | V7: Jour/expert | W7: Honoraires | X7: Total | Y7: Jour/expert | Z7: Honoraires | AA7: Total | AB7: Article/activité | AC7: Prix/valeur par unité | AD7: Total | AG7: Pièce | AH7: Prix moyen/unité | AI7: Valeur totale | AJ7: Pièce | AK7: Prix moyen/unité | AL7: Valeur totale | AO7: Budget de l'État (PBMT 2015-2017) | AP7: IAP | AQ7: CdE | AR7: BM | AS7: PNUD | AT7: Déficit de financement
A8: a | B8: b | C8: c | D8: d | E8: e | F8: f | I8: 1 | J8: 2 | K8: 3 | L8: 4 | M8: 5 | N8: 6 | O8: 7 | P8: 8 | Q8: 9 | R8: 10 | S8: 11 | T8: 12 | U8: 13 | V8: 14 | W8: 15 | X8: 16 | Y8: 17 | Z8: 18 | AA8: 19 | AB8: 20 | AC8: 21 | AD8: 22 | AE8: 23 | AF8: 24 | AG8: 25 | AH8: 26 | AI8: 27 | AJ8: 28 | AK8: 29 | AL8: 30 | AM8: 31 | AN8: 32 | AO8: 33 | AP8: 34 | AQ8: 35 | AR8: 36 | AS8: 37 | AT8: 38
A9: Objectif 1 : Améliorer la planification et la coordination des politiques de préparation des documents stratégiques du gouvernement, qui transforment les priorités en actions concrètes.
A10: 1 | C10: 1.1 | D10: 1.1.Évaluation de la situation et du cadre réglementaire actuels pour préparer des stratégies sectorielles et transversales complémentaire des compétences des parties prenantes impliquées dans le processus (Unités centrales du Bureau du Premier ministre et unités des institutions centrales). | E10: 1.1.1 | F10: Analyse de l'évaluation de la situation | G10: Assistance technique | L10: =I10*J10*K10 -> 0 | U10: =(M10*N10*P10)+(M10*N10*O10*Q10)+(M10*N10*O10*R10)+(M10*O10*S10)+(M10*N10*T10) -> 0 | V10: 70 | W10: 350 | X10: =V10*W10 -> 24500 | Y10: 100 | Z10: 1250 | AA10: =Y10*Z10 -> 125000 | AD10: =AB10*AC10 -> 0 | AI10: =AG10*AH10 -> 0 | AL10: =AJ10*AK10 -> 0 | AN10: =L10+U10+X10+AA10+AD10+AI10+AL10+AM10+AE10+AF10 -> 149500 | AR10: 25000 | AT10: =AN10-AO10-AP10-AR10 -> 124500
E11: 1.1.2 | F11: Révision du cadre réglementaire pour les stratégies sectorielles et transversales (Révision de l'Ordre sur la préparation des stratégies sectorielles et transversales) | G11: Assistance technique | L11: =I11*J11*K11 -> 0 | U11: 0 | X11: 0 | Y11: 20 | Z11: 1250 | AA11: 25000 | AD11: =AB11*AC11 -> 0 | AI11: 0 | AL11: =AJ11*AK11 -> 0 | AN11: =L11+U11+X11+AA11+AD11+AI11+AL11+AM11+AE11+AF11 -> 25000 | AR11: =AN11 -> 25000 | AT11: =AN11-AO11-AP11-AR11 -> 0
E12: 1.1.3 | F12: Révision du fonctionnement d'autres groupes transversaux dans les GPGI (groupes de politiques de gestion intégrée) (y compris tout le cycle d'élaboration des politiques - mise en oeuvre - suivi) | G12: Assistance technique | L12: 0 | M12: 15 | N12: 1 | O12: 20 | Q12: 25 | R12: 20 | U12: 13500 | V12: =15*50 -> 750 | W12: 350 | X12: 262500 | Y12: =15*40 -> 600 | Z12: 1250 | AA12: 750000 | AD12: 0 | AI12: 0 | AM12: 15000 | AN12: 1041000 | AO12: 7000 | AT12: =AN12-AO12-AP12-AR12 -> 1034000
E13: 1.1.4 | F13: Assistance au fonctionnement du projet pilote de GPGI (eau, social, compétitivité) | G13: Assistance technique | L13: 0 | U13: 0 | X13: 0 | AA13: 450000 | AD13: 0 | AI13: 0 | AN13: 450000 | AP13: =AN13 -> 450000 | AT13: 0
E14: 1.1.5 | F14: Assistance au fonctionnement des autres GPGI | L14: 0 | M14: 15 | N14: 1 | O14: 20 | P14: 25 | R14: 20 | U14: 6375 | V14: =15*100 -> 1500 | W14: 350 | X14: 525000 | Y14: =15*60 -> 900 | Z14: 1250 | AA14: 1125000 | AD14: 0 | AI14: 0 | AN14: 1656375 | AT14: 1656375
E15: 1.1.6 | F15: Préparation d'un programme de formation pour l'ensemble du personnel responsable de l'élaboration des politiques dans les ministères sectoriels (départements d'élaboration et de coordination des politiques), pour la rédaction des documents et politiques stratégiques. | G15: Assistance technique | L15: 0 | U15: 0 | V15: 10 | W15: 350 | X15: 3500 | Y15: 30 | Z15: 1250 | AA15: 37500 | AD15: 0 | AI15: 0 | AM15: 1000 | AN15: 42000 | AO15: 1000 | AT15: 41000
E16: 1.1.7 | F16: Mise en œuvre du programme de formation pour tout le personnel responsable de l'élaboration des politiques dans les ministères sectoriels (départements d'élaboration et de coordination des politiques) | G16: Assistance technique | H16: 20 ministri, 20 persona/mini. 3 cikle 3 ditore trajnimi | L16: 0 | M16: 20 | N16: 9 | O16: 20 | Q16: 25 | S16: 20 | T16: 65 | U16: 109700 | X16: 0 | AA16: 0 | AD16: 0 | AI16: 0 | AN16: 109700 | AT16: 109700
E17: 1.1.8 | F17: Préparation de stratégies et documents transversaux | G17: Au moins 10 documents stratégiques | L17: 0 | M17: 10 | N17: 1 | O17: 20 | P17: 350 | Q17: 25 | S17: 20 | U17: 12500 | V17: =10*100 -> 1000 | W17: 350 | X17: 350000 | Y17: =10*100 -> 1000 | Z17: 1250 | AA17: 1250000 | AD17: 0 | AI17: 0 | AM17: =10*5000 -> 50000 | AN17: 1662500 | AT17: 1662500
E18: 1.1.9 | F18: Préparation des Plans de gestion intégrée (PGI) des ministères sectoriels | G18: pour 19 ministres | L18: 0 | U18: 0 | V18: =19*50 -> 950 | W18: 350 | X18: 332500 | AA18: 0 | AD18: 0 | AI18: 0 | AN18: 332500 | AT18: 332500
E19: 1.1.10 | F19: Publication des PGI | L19: 0 | U19: 0 | X19: 0 | AA19: 0 | AB19: =19*300 -> 5700 | AC19: 5 | AD19: 28500 | AI19: 0 | AN19: 28500 | AT19: 28500
C20: 1.2 | D20: Préparation du cadre réglementaire pour la rédaction des stratégies sectorielles et transversales, et des documents stratégiques sectoriels 2015-2020, dans le cadre de la NSDI (Stratégie nationale pour l'intégration et le développement) 2015-2020. | E20: 1.2.1 | F20: Préparation d'analyses sectorielles et transversales de la mise en œuvre à moyen terme (phase 2014/15-2016) | G20: Assistance technique | H20: 30 dokumenta strategjike: 5 eksperte lokale ( 1 TL + 4 eksperte). 20 dite per sektore ekpsertet. TL 50 dite me shume | L20: =I20*J20*K20 -> 0 | U20: 0 | V20: =30*20+50 -> 650 | W20: 350 | X20: =V20*W20 -> 227500 | AA20: =Y20*Z20 -> 0 | AD20: =AB20*AC20 -> 0 | AI20: =AG20*AH20 -> 0 | AL20: =AJ20*AK20 -> 0 | AN20: =L20+U20+X20+AA20+AD20+AI20+AL20+AM20+AE20+AF20 -> 227500 | AT20: =AN20-AO20-AP20-AR20 -> 227500
E21: 1.2.2 | F21: Analyse à moyen terme de la mise en œuvre de la SNID 2014-2020 | H21: 1 ekspert I huaj dhe 1 lokal | L21: =I21*J21*K21 -> 0 | U21: =(M21*N21*P21)+(M21*N21*O21*Q21)+(M21*N21*O21*R21)+(M21*O21*S21)+(M21*N21*T21) -> 0 | V21: 60 | W21: 350 | X21: =V21*W21 -> 21000 | Y21: 40 | Z21: 1250 | AA21: =Y21*Z21 -> 50000 | AD21: =AB21*AC21 -> 0 | AI21: =AG21*AH21 -> 0 | AL21: =AJ21*AK21 -> 0 | AN21: =L21+U21+X21+AA21+AD21+AI21+AL21+AM21+AE21+AF21 -> 71000 | AT21: =AN21-AO21-AP21-AR21 -> 71000
E22: 1.2.3 | F22: Révision à moyen terme des stratégies et documents stratégiques de la SNID 2014-2020 | H22: 1 ekspert te huaj dhe 1 lokal per sektor | L22: =I22*J22*K22 -> 0 | U22: =(M22*N22*P22)+(M22*N22*O22*Q22)+(M22*N22*O22*R22)+(M22*O22*S22)+(M22*N22*T22) -> 0 | V22: =27*30 -> 810 | W22: 350 | X22: =V22*W22 -> 283500 | Y22: =27*40 -> 1080 | Z22: 1250 | AA22: =Y22*Z22 -> 1350000 | AD22: =AB22*AC22 -> 0 | AI22: =AG22*AH22 -> 0 | AL22: =AJ22*AK22 -> 0 | AN22: =L22+U22+X22+AA22+AD22+AI22+AL22+AM22+AE22+AF22 -> 1633500 | AT22: =AN22-AO22-AP22-AR22 -> 1633500
C23: 1.2 | D23: 1.3. Examen du système de planification intégrée après avoir mené une analyse de l'évaluation de la situation et des cadres institutionnels existants. | E23: 1.2.1 | F23: Analyse de l'évaluation de la situation | G23: Assistance technique | H23: 1 ekspert I huaj dhe 1 lokal | L23: 0 | U23: 0 | V23: 30 | W23: 350 | X23: 10500 | Y23: 40 | Z23: 1250 | AA23: 50000 | AD23: 0 | AI23: 0 | AM23: 1000 | AN23: 61500 | AT23: 61500
E24: 1.2.2 | F24: Examen du cadre institutionnel et légal pertinent (rédaction d'un nouvel Ordre, Manuel de SPI, et examen du calendrier annuel du SPI) | G24: Assistance technique | H24: 1 ekspert I huaj dhe 1 lokal qe do bejne rishikimin e gjithe kuadrit institucional, urdheri , manuali I IPS prodhimi dhe botimi | L24: 0 | U24: 0 | V24: 30 | W24: 350 | X24: 10500 | Y24: 30 | Z24: 1250 | AA24: 37500 | AD24: 0 | AI24: 0 | AM24: 1000 | AN24: 49000 | AT24: 49000
F25: Mise en œuvre du nouveau système et renforcement des compétences | G25: Assistance technique | H25: a. 1 retreat ne vit per Kabinetin e Qeverise (ministrat dhe KM) b. 1 retreat ne vit per Sekretaret e Pergjithshem | L25: 0 | M25: =(1+1)*6 -> 12 | N25: 1 | O25: =40+40 -> 80 | P25: 450 | Q25: 30 | R25: 80 | S25: 20 | U25: 130200 | X25: 0 | AA25: 0 | AD25: 0 | AI25: 0 | AN25: 130200 | AT25: 130200
E26: 1.2.3 | G26: Assistance technique | H26: 2 trajnime ne vit me ML per IPS | L26: 0 | M26: =2*20*6 -> 240 | N26: 2 | O26: 20 | Q26: 25 | S26: 20 | T26: 65 | U26: 367200 | X26: 0 | AA26: 0 | AD26: 0 | AI26: 0 | AN26: 367200 | AT26: 367200
C27: 1.3 | D27: 1.4. Renforcement des compétences dans le Département de la programmation et du financement du développement et de l'aide étrangère (DPFDDAE) concernant la planification stratégique et la planification des politiques publiques , basée sur l'évaluation préalable des besoins en formation. | E27: 1.3.1 | F27: Recrutement de personnel | H27: 5 persona te rinj, llogaritur si buxhet per 6 vjet | I27: 5 | J27: 720 | K27: =12*6 -> 72 | L27: 259200 | U27: 0 | X27: 0 | AA27: 0 | AD27: 0 | AI27: 0 | AL27: =AJ27*AK27 -> 0 | AN27: 259200 | AT27: 259200
E28: 1.3.2 | F28: Formation et séminaires avec le personnel du Département de la programmation et du financement du développement et de l'aide étrangère. | G28: Formation de formateurs (FdF). 2 formations par année | L28: 0 | M28: 2 | N28: 2 | O28: 15 | P28: 350 | Q28: 25 | R28: 50 | S28: 20 | U28: 6500 | X28: 0 | AA28: 0 | AD28: 0 | AI28: 0 | AL28: =AJ28*AK28 -> 0 | AN28: 6500 | AT28: 6500
E29: 1.3.3 | F29: Voyages d'études pour comprendre les pratiques et expériences d'autres pays. | H29: 6 vjet /3 ST per 10 persona. 1 ST 5 dite. | L29: 0 | U29: 0 | X29: 0 | AA29: 0 | AD29: 0 | AI29: 0 | AL29: =AJ29*AK29 -> 0 | AM29: 9000 | AN29: 9000 | AT29: 9000
C30: 1.4 | D30: 1.5.Renforcement des compétences dans les institutions centrales, après avoir évalué les besoins concernant la planification stratégique et la planification des politiques publiques (ainsi que l'utilisation du SPI et du système d'information du SPI). | E30: 1.4.1 | F30: Mise en place du SISPI | L30: 0 | U30: 0 | X30: 0 | AA30: 0 | AD30: 0 | AF30: 250000 | AI30: 0 | AL30: =AJ30*AK30 -> 0 | AN30: 250000 | AR30: 250000 | AT30: 0
E31: 1.4.3 | F31: Formation du personnel des institutions centrales concernant la gestion et la maintenance du SISPI. | H31: 1 ne vit 1 ditor | L31: 0 | M31: =1*6 -> 6 | N31: 1 | O31: 40 | Q31: 25 | S31: 20 | T31: 65 | U31: 11190 | X31: 0 | AA31: 0 | AD31: 0 | AI31: 0 | AL31: =AJ31*AK31 -> 0 | AN31: 11190 | AT31: 11190
D32: 1.6. Mise en place du SIMFA (Système d'information du ministère des Finances albanais) et renforcement des compétences en gestion du contrôle financier. | E32: 1.5.2 | F32: Renforcement des compétences des institutions utilisant le SIMFA, et rédaction des rapports de suivi pertinents. | G32: La budgétisation de cette activité est dans le cadre de la stratégie de GFP | H32: Trajnime per stafet e Ministrive | L32: 0 | U32: 0 | X32: 0 | AA32: 0 | AD32: 0 | AI32: 0 | AN32: 0 | AT32: 0
E33: 1.5.3 | F33: Renforcement des compétences du MdF pour la gestion du SIMFA. | H33: Trajnim I vazhdueshem per stafin e ri te MF | L33: 0 | U33: 0 | X33: 0 | AA33: 0 | AD33: 0 | AI33: 0 | AL33: =AJ33*AK33 -> 0 | AN33: 0 | AT33: 0
C34: 1.6 | D34: 1.6. Renforcement des compétences de l'administration centrale pour la rédaction du PBMT (Programme budgétaire à moyen terme). | E34: 1.6.1 | F34: Renforcement des compétences des institutions en lien avec le Programme budgétaire à moyen terme. | H34: Trajnime per stafet e Ministrive . Te pakten 15 persona/ministri= 300 ne total | L34: 0 | M34: 20 | N34: 3 | O34: 15 | Q34: 25 | S34: 5 | T34: 65 | U34: 27900 | X34: 0 | AA34: 0 | AD34: 0 | AI34: 0 | AL34: 0 | AN34: 27900 | AT34: 27900
C35: 1.7 | D35: Renforcement des compétences des ministères sectoriels en termes de rédaction des politiques, des stratégies, des plans d'action et des programmes de développement. | E35: 1.7.1 | F35: Renforcement des compétences des ministères sectoriels par la mise en œuvre du Programme de formation pour la planification stratégique. | H35: a. hartimi I paketes se trajnimit b.trajnimi I stafeve (20 persona/ministri) + 30% te stafeve te reja potencialisht te hyra ne vit | L35: 0 | M35: 23 | N35: 2 | O35: 20 | Q35: 25 | S35: 10 | T35: 65 | U35: 30590 | V35: 20 | W35: 350 | X35: 7000 | Y35: 20 | Z35: 1250 | AA35: 25000 | AD35: 0 | AI35: 0 | AL35: 0 | AN35: 62590 | AT35: 62590
E36: 1.7.2 | F36: Renforcement des compétences des unités chargées de l'élaboration des politiques pour garantir une bonne direction et de bons conseils pour la rédaction et le suivi des documents stratégiques. | H36: Trajnim per stafin e SPU | L36: 0 | M36: 6 | N36: 3 | O36: 10 | Q36: 25 | S36: 10 | T36: 65 | U36: 6270 | X36: 0 | AA36: 0 | AD36: 0 | AI36: 0 | AL36: 0 | AM36: =(3*2*500)+ (3*2*5*80)+(3*2*5*50) -> 6900 | AN36: 13170 | AT36: 13170
E37: 1.7.3 | L37: 0 | U37: 0 | X37: 0 | AA37: 0 | AD37: 0 | AI37: 0 | AL37: 0 | AN37: 0 | AT37: 0
C38: 1.8 | D38: 1.9.Renforcement des compétences et amélioration du fonctionnement du Groupe de gestion stratégique comme strucutre de coordination au sein de chaque ministère et des Groupes transversaux dans le cadre des Groupes de politique de gestion intégrée. | E38: 1.8.1 | F38: Évaluation de la situation en termes de fonctionnement des Groupes de gestion stratégique (GGS) | H38: Shqyrtimi I tyre ne 19 ministri. Hartimi I raportit dhe rekomandimeve | L38: 0 | U38: 0 | V38: 30 | W38: 350 | X38: 10500 | Y38: 35 | Z38: 1250 | AA38: 43750 | AD38: 0 | AI38: 0 | AL38: 0 | AM38: 1500 | AN38: 55750 | AT38: 55750
E39: 1.8.2 | F39: Modification du cadre légal et institutionnel approprié pour le fonctionnement des GGS. | L39: 0 | U39: 0 | V39: 10 | W39: 350 | X39: 3500 | Y39: 10 | Z39: 1250 | AA39: 12500 | AD39: 0 | AI39: 0 | AN39: 16000 | AT39: 16000
E40: 1.8.3 | F40: Préparation du programme de formation pour les cadres supérieurs en lien avec le cycle de gestion des politiques publiques. | L40: 0 | U40: 0 | V40: 10 | W40: 350 | X40: 3500 | Y40: 20 | Z40: 1250 | AA40: 25000 | AD40: 0 | AI40: 0 | AL40: =AJ40*AK40 -> 0 | AN40: 28500 | AT40: 28500
E41: 1.8.4 | F41: Renforcement des compétences des cadres supérieurs des ministères sectoriels par la mise en oeuvre du programme de formation sur le cycle de gestion des politiques publiques. | H41: Perfshihet trajnimi dhe coaching per menaxheret e larte gjate fazes se hartimit te PBA + Strategji | L41: 0 | M41: 15 | N41: 2 | O41: 20 | P41: 350 | Q41: 25 | R41: 50 | S41: 10 | U41: 58500 | V41: 250 | W41: 350 | X41: 87500 | Y41: =35 +(19*10) -> 225 | Z41: 1250 | AA41: 281250 | AD41: 0 | AI41: 0 | AL41: =AJ41*AK41 -> 0 | AN41: 427250 | AT41: 427250
L42: =SUM(L10:L41) -> 259200 | U42: =SUM(U10:U41) -> 780425 | X42: =SUM(X10:X41) -> 2163000 | AA42: =SUM(AA10:AA41) -> 5637500 | AD42: =SUM(AD10:AD41) -> 28500 | AE42: 0 | AF42: 250000 | AG42: 0 | AH42: 0 | AI42: 0 | AJ42: 0 | AK42: 0 | AL42: 0 | AM42: 85400 | AN42: 9204025 | AO42: 8000 | AP42: 450000 | AQ42: 0 | AR42: 300000 | AS42: 0 | AT42: 8446025
A43: Objectif 2 : Système transparent et exhaustif de rédaction des lois, fondé sur les politiques, et garantissant la conformité avec l'acquis communautaire.
A44: 3 | C44: 2.1 | D44: 2.1. Evaluation des défis auxquels est actuellement confronté le processus de rédaction des lois : | E44: 2.1.1 | F44: Préparation d'une analyse de l'évaluation de la situaiton | G44: Assistance technique | L44: 0 | U44: 0 | V44: 10 | W44: 350 | X44: 3500 | Y44: 20 | Z44: 1200 | AA44: 24000 | AD44: 0 | AI44: 0 | AL44: =AJ44*AK44 -> 0 | AM44: 1000 | AN44: 28500 | AT44: 28500
E45: 2.1.2 | F45: Paquet législatif sur la rédaction des lois (projets de lois et de règlements) | G45: Assistance technique | L45: 0 | U45: 0 | V45: 60 | W45: 350 | X45: 21000 | Y45: 50 | Z45: 1200 | AA45: 60000 | AD45: 0 | AI45: 0 | AM45: 1500 | AN45: 82500 | AT45: 82500
E46: 2.1.3 | L46: 0 | U46: 0 | X46: 0 | AA46: 0 | AD46: 0 | AI46: 0 | AL46: =AJ46*AK46 -> 0 | AN46: 0 | AT46: 0
C47: 2.2 | D47: 2.2. Accélération de la mise en oeuvre du manuel de rédaction des lois en la promouvant au niveau d'une décision du Conseil des ministres afin de garantir son entrée en vigueur. | E47: 2.2.1 | F47: Analyse de la situation actuelle des personnels en termes d'emploi, d'organisgrammes et de fiches de poste. | G47: Assistance technique | L47: 0 | U47: 0 | V47: 20 | W47: 350 | X47: 7000 | Y47: 20 | Z47: 1200 | AA47: 24000 | AD47: 0 | AI47: 0 | AL47: =AJ47*AK47 -> 0 | AM47: 2000 | AN47: 33000 | AT47: 33000
E48: 2.2.2 | F48: Critères plus stricts pour les postes impliqués dans le processus législatif. | G48: Assistance technique | L48: 0 | U48: 0 | V48: 2 | W48: 350 | X48: 700 | Y48: 5 | Z48: 1200 | AA48: 6000 | AD48: 0 | AI48: 0 | AN48: 6700 | AT48: 6700
E49: 2.2.3 | F49: Rédaction de fiches de postes plus claires. | G49: Assistance technique | L49: 0 | U49: 0 | V49: 5 | W49: 350 | X49: 1750 | Y49: 10 | Z49: 1200 | AA49: 12000 | AD49: 0 | AI49: 0 | AL49: =AJ49*AK49 -> 0 | AM49: 1000 | AN49: 14750 | AT49: 14750
C50: 2.3 | D50: 8.3. Mise en place d'une étude sur les possibilités de prestation directe des services : | E50: 2.3.1 | F50: Rédaction d'un manuel/d'un protocole de travail pour la consultation des actes. | G50: Assistance technique | L50: 0 | U50: 0 | X50: 0 | AA50: 0 | AD50: 0 | AI50: 0 | AL50: =AJ50*AK50 -> 0 | AM50: 7500 | AN50: 7500 | AO50: 7500 | AT50: 0
E51: 2.3.3 | L51: 0 | U51: 0 | X51: 0 | AA51: 0 | AD51: 0 | AI51: 0 | AL51: =AJ51*AK51 -> 0 | AN51: 0 | AT51: 0
C52: 2.4 | D52: Veiller à la mise en œuvre de la Loi sur la communication et la consultation publique et la compléter par des règlements : | E52: 2.4.1 | F52: Adoption de règlements pour faciliter la procédure de consultation. | G52: Assistance technique | L52: 0 | U52: 0 | X52: 0 | AA52: 0 | AD52: 0 | AI52: 0 | AL52: =AJ52*AK52 -> 0 | AM52: 9000 | AN52: 9000 | AT52: 9000
E53: 2.4.2 | F53: Création d'une base de données des parties prenantes | G53: Assistance technique | L53: 0 | U53: 0 | X53: 0 | AA53: 0 | AD53: 0 | AI53: 0 | AN53: 0 | AT53: 0
E54: 2.4.3 | F54: Rédaction d'un manuel/protocole de travail pour la consultation des actes. | G54: Assistance technique | L54: 0 | U54: 0 | X54: 0 | AA54: 0 | AD54: 0 | AI54: 0 | AN54: 0 | AT54: 0
E55: 2.4.5 | F55: Formation des personnes responsables des consultations. | G55: Assistance technique | L55: 0 | U55: 0 | X55: 0 | AA55: 0 | AD55: 0 | AI55: 0 | AL55: =AJ55*AK55 -> 0 | AM55: =(12*1*500)+ (12*2*1*80)+(12*1*2*50) -> 9120 | AN55: 9120 | AT55: 9120
C56: 2.5 | D56: Amélioration de la procédure de réalisation des études d'impact obligatoires et des évaluations du respect de l'acquis. Meilleure prise en compte par la réglementation des politiques publiquesmenées dans le pays : | E56: 2.5.1 | F56: Analyse du degré de compréhension des impacts estimés des actes. | G56: Assistance technique | L56: 0 | U56: 0 | V56: 40 | W56: 350 | X56: 14000 | Y56: 60 | Z56: 1200 | AA56: 72000 | AD56: 0 | AI56: 0 | AM56: 2000 | AN56: 88000 | AT56: 88000
E57: 2.5.2 | F57: Loi sur l'AIR adoptée, rendant obligatoire l'analyse en question. | G57: Pas de coût | L57: 0 | U57: 0 | X57: 0 | AA57: 0 | AD57: 0 | AI57: 0 | AN57: 0 | AT57: 0
E58: 2.5.3 | F58: et X AIR menées/essayées sous la loi adoptée (projets dans X institutions pour X questions). | G58: Assistance technique | L58: 0 | U58: 0 | V58: 100 | W58: 350 | X58: 35000 | Y58: 120 | Z58: 1200 | AA58: 144000 | AD58: 0 | AI58: 0 | AM58: 5000 | AN58: 184000 | AT58: 184000
C59: 2.6 | D59: Amélioration des compétences des services chargés de la rédaction législative et des services centraux responsables du suivi : | E59: 2.6.1 | F59: Formation en rédaction législative pour les services centraux | G59: Formation par l'EAAP | L59: 0 | M59: 1 | N59: 3 | O59: 15 | P59: 300 | Q59: 25 | S59: 20 | U59: 2325 | V59: 5 | W59: 350 | X59: 1750 | Y59: 5 | Z59: 350 | AA59: 1750 | AD59: 0 | AI59: 0 | AL59: =AJ59*AK59 -> 0 | AM59: 25000 | AN59: 30825 | AT59: 30825
E60: 2.6.2 | F60: Formation en rédaction législative pour les ministères sectoriels | G60: Formation par l'EAAP | L60: 0 | M60: 2 | N60: 3 | O60: 20 | Q60: 25 | S60: 20 | T60: 65 | U60: 4190 | X60: 0 | AA60: 0 | AD60: 0 | AI60: 0 | AM60: 1000 | AN60: 5190 | AT60: 5190
E61: 2.6.3 | F61: Formation en rédaction législative pour les institutions indépendantes | G61: Formation par l'EAAP | L61: 0 | M61: 1 | N61: 3 | O61: 20 | Q61: 25 | S61: 20 | T61: 65 | U61: 2095 | X61: 0 | AA61: 0 | AD61: 0 | AI61: 0 | AL61: =AJ61*AK61 -> 0 | AM61: 1000 | AN61: 3095 | AT61: 3095
C62: 2.7 | D62: Amélioration de la transparence de la publication de la législation : | E62: 2.7.1 | F62: Obligation (Instruction) du service officiel des publications de publier les lois consolidées. | G62: Pas de coût | L62: 0 | U62: 0 | X62: 0 | AA62: 0 | AD62: 0 | AI62: 0 | AL62: =AJ62*AK62 -> 0 | AM62: 25000 | AN62: 25000 | AT62: 25000
E63: 2.7.2 | F63: Chaque institution devra avoir posté les lois consolidées sur son site internet en 2015. | G63: Assistance technique locale pour saisir les actes dans 19 ministères (2 experts juridiques pour chaque ministère). | L63: 0 | U63: 0 | V63: =19*2*20 -> 760 | W63: 250 | X63: 190000 | AA63: 0 | AD63: 0 | AI63: 0 | AL63: =AJ63*AK63 -> 0 | AN63: 190000 | AT63: 190000
C64: Total Objectif 2 | I64: =SUM(I43:I63) -> 0 | J64: =SUM(J43:J63) -> 0 | K64: =SUM(K43:K63) -> 0 | L64: =SUM(L43:L63) -> 0 | U64: =SUM(U43:U63) -> 8610 | X64: =SUM(X43:X63) -> 274700 | AA64: =SUM(AA43:AA63) -> 343750 | AB64: 0 | AC64: 0 | AD64: 0 | AE64: 0 | AF64: 0 | AG64: 0 | AH64: 0 | AI64: 0 | AJ64: 0 | AK64: 0 | AL64: 0 | AM64: 90120 | AN64: 717180 | AO64: 7500 | AP64: 0 | AQ64: 0 | AR64: 0 | AS64: 0 | AT64: 709680
A65: Objectif 3 : Création d'un système efficace de suivi et d'évaluation des stratégies, des programmes et du cadre juridique en vigueur, sur la base des éléments suivants : 1) recueil de données de façon neutre et transparente pour élaborer les stratégies, les programmes et les lois, et 2) préparation d'une analyse pour évaluer les impacts de la mise en oeuvre.
A66: 5 | C66: 3.1 | D66: Évaluation de la situation actuelle concernant le système de suivi et d'évaluation utilisé par le gouvernement, y compris l'institution chargée des ces fonctions, les ressources humaines disponibles et les nesoins en renforcement des compétences, la méthodologie utilisée et le cadre réglementaire en vigueur. | E66: 3.1.1 | F66: Analyse de l'évaluation de la situation actuelle concernant le suivi des stratégies sectorielles et transversales | H66: 1 exp huaj + 1 exc lokal | L66: =I66*J66*K66 -> 0 | U66: 0 | V66: 30 | W66: 350 | X66: 10500 | Y66: =5+10+20+5 -> 40 | Z66: 1250 | AA66: 50000 | AD66: 0 | AI66: 0 | AL66: =AJ66*AK66 -> 0 | AM66: 2000 | AN66: 62500 | AT66: 62500
E67: 3.1.2 | F67: Examen de la base juridique permettant le suivi des stratégies sectorielles et transversales | L67: 0 | U67: 0 | V67: 20 | W67: 350 | X67: 7000 | Y67: 40 | Z67: 1250 | AA67: 50000 | AD67: 0 | AI67: 0 | AL67: =AJ67*AK67 -> 0 | AM67: 2000 | AN67: 59000 | AT67: 59000
E68: 3.1.3 | F68: Analyse de l'évaluation de la situation existante en matière de suivi et d'évaluation (S &E) (structures et ressources humaines) | G68: 19 ministères sectoriels + CoM. 2 jours/ministère. 5 jours pour rédiger l'analyse + 2 jours pour ajouter les commentaires + 6(3+3) jours pour établir les rapports. (approx. 60 jours de travail pour un expert étranger) | L68: 0 | U68: 0 | V68: 40 | W68: 350 | X68: 14000 | Y68: 60 | Z68: 1250 | AA68: 75000 | AD68: 0 | AI68: 0 | AM68: 2000 | AN68: 91000 | AT68: 91000
E69: 3.1.4 | F69: Analyse de l'évaluation du cadre juridique actuel et de la méthodologie de S &E | G69: 1 expert étranger + 1 local | L69: 0 | U69: 0 | V69: 10 | W69: 350 | X69: 3500 | Y69: 30 | Z69: 1250 | AA69: 37500 | AD69: 0 | AI69: 0 | AM69: 1000 | AN69: 42000 | AT69: 42000
E70: 3.1.5 | F70: Analyse de l'évaluation des besoins en formation pour les structures de S &E. | G70: 19 ministères sectoriels + CoM. 1,5 jours/ministère. 5 jours pour rédiger l'analyse + 2 jours pour ajouter les commentaires + 10 jours de programme de formation + 3 jours pour établir les rapports. (approx. 45 jours de travail pour un expert étranger) | L70: 0 | U70: 0 | V70: 40 | W70: 350 | X70: 14000 | Y70: 45 | Z70: 1250 | AA70: 56250 | AD70: 0 | AI70: 0 | AM70: 2000 | AN70: 72250 | AT70: 72250
E71: 3.1.6 | F71: Formation du personnel des Unités de suivi du Bureau du Premier ministre et des ministères sectoriels | G71: Cette activité ne peut être chiffrée qu'après l'achèvement du TNA | L71: 0 | U71: 0 | X71: 0 | AA71: 0 | AD71: 0 | AI71: =AG71*AH71 -> 0 | AN71: 0 | AT71: 0
D72: Création et amélioration du système de suivi et d'évaluation du Gouvernement albanais par la réforme du cadre réglementaire en vigueur, une révision fonctionnelle des unités responsables du suivi et de l'évaluation dans les institutions centrales et le renforcement des compétences du personnel de ces institutions, mais aussi des unités centrales de suivi du Bureau du Premier ministre, par la mise en place d'un réseau de suivi et d'évaluation efficace. | E72: 3.1.7 | F72: Publication de rapports annuels des ministères sectoriels sur la mise en œuvre des stratégies sectorielles/transversales respectives, de la NSDI, ainsi que du DPFDDAE. | L72: 0 | U72: 0 | X72: =V72*W72 -> 0 | AA72: =Y72*Z72 -> 0 | AB72: =30*200*3 -> 18000 | AC72: 8 | AD72: =AB72*AC72 -> 144000 | AI72: 0 | AN72: =L72+U72+X72+AA72+AD72+AI72+AL72+AM72+AE72+AF72 -> 144000 | AT72: 144000
E73: 3.1.8 | F73: Rédaction d'un nouveau cadre juridique pour le système de suivi et d'évaluation. | L73: 0 | U73: 0 | V73: 20 | W73: 350 | X73: 7000 | Y73: 50 | Z73: 1250 | AA73: 62500 | AD73: 0 | AI73: 0 | AN73: 69500 | AT73: 69500
E74: 3.1.9 | F74: Révision des structures des ministères en vue de la mise en œuvre sur système de S & E | G74: Pas de coût | L74: 0 | U74: 0 | X74: 0 | AA74: 0 | AD74: 0 | AI74: 0 | AN74: 0 | AT74: 0
E75: 3.1.10 | F75: Mise en place d'un réseau de S & E et renforcement des compétences (formation) | G75: Formation selon l'évaluation des besoins en technologie (TNA) | L75: 0 | U75: 0 | X75: 0 | AA75: 0 | AD75: 0 | AI75: 0 | AN75: 0 | AT75: 0
C76: 3.2 | D76: Elaboration de la méthodologie de suivi et d'évaluation : | E76: 3.2.1 | F76: Manuel sur le suivi des stratégies sectorielles/transversales (EMP) et Manuel de formation pour l'administration (FdF) | H76: rishikimi I kuadrit, metodologjise + hartimi dhe publikimi I manualit | L76: 0 | U76: 0 | V76: 30 | W76: 350 | X76: 10500 | Y76: 40 | Z76: 1250 | AA76: 50000 | AD76: 0 | AI76: 0 | AL76: =AJ76*AK76 -> 0 | AM76: 1000 | AN76: 61500 | AR76: =AN76 -> 61500 | AT76: 0
E77: 3.2.2 | F77: Renforcement des compétences du DPFDDAE concernant la rédaction des rapports de synthèse annuels sur la mise en œuvre du cadre stratégique (ToT) | H77: Trajnime + Study Tour | L77: 0 | M77: 1 | N77: 2 | O77: 10 | P77: 350 | Q77: 25 | R77: 50 | S77: 20 | U77: 2400 | V77: 5 | W77: 350 | X77: 1750 | Y77: 5 | Z77: 1250 | AA77: 6250 | AD77: 0 | AI77: 0 | AM77: 1000 | AN77: 11400 | AR77: =AN77 -> 11400 | AT77: 0
E78: 3.2.3 | F78: Renforcement des compétences des ministères sectoriels pour établir les rapports EMP | H78: 10 persona /ML=400 . Trajnim 2 ditor/ per 3 vjet | L78: 0 | M78: =20*3 -> 60 | N78: 2 | O78: 20 | Q78: 25 | S78: 20 | T78: 65 | U78: 91800 | X78: 0 | AA78: 0 | AD78: 0 | AI78: 0 | AM78: 1000 | AN78: 92800 | AT78: 92800
E79: 3.2.4 | F79: Elabroation de la méthodologie de suivi et d'évaluation pour le Programme du gouvernement | G79: 1 expert étranger | L79: 0 | M79: 1 | N79: 2 | O79: 4 | Q79: 25 | S79: 20 | U79: 280 | X79: 0 | Y79: 50 | Z79: 1250 | AA79: 62500 | AB79: 200 | AC79: 10 | AD79: 2000 | AI79: 0 | AN79: 64780 | AT79: 64780
E80: 3.2.5 | F80: Elabroation de la méthodologie de suivi et d'évaluation de la mise en application des lois | G80: 1 expert étranger | L80: 0 | U80: 0 | X80: 0 | Y80: 60 | Z80: 1250 | AA80: 75000 | AB80: 500 | AC80: 10 | AD80: 5000 | AI80: 0 | AL80: =AJ80*AK80 -> 0 | AN80: 80000 | AT80: 80000
C81: 3.4 | D81: Utilisation des sytèmes de suivi électronique par les institutions gouvernementales : | E81: 3.4.1 | F81: Système électronique de suivi de la mise en œuvre du Programme du gouvernement | G81: Pas de coût | L81: 0 | U81: 0 | AA81: 0 | AD81: 0 | AI81: 0 | AL81: =AJ81*AK81 -> 0 | AM81: =1800000/140 -> 12857.14286 | AN81: 12857.14286 | AO81: =AN81 -> 12857.14286 | AT81: 0
E82: 3.4.2 | F82: Système électronique de suivi du flux d'information et de correspondance | G82: NAIS | L82: 0 | U82: 0 | X82: =9137556/140 -> 65268.25714 | AA82: 0 | AD82: 0 | AI82: 0 | AN82: 65268.25714 | AO82: =AN82 -> 65268.25714 | AT82: 0
E83: 3.4.3 | F83: Système d'actes électroniques (système de suivi du processus de rédaction législative) | G83: NAIS | L83: 0 | U83: 0 | X83: 0 | AA83: 0 | AD83: 0 | AI83: 0 | AM83: =1058400/140/3 -> 2520 | AN83: 2520 | AO83: =AN83 -> 2520 | AT83: 0
E84: 3.4.4 | F84: Système électronique de suivi intégré "The watchtower" ("La Tour de contrôle"). | G84: Pas de coût | L84: 0 | U84: 0 | X84: 0 | AA84: 0 | AD84: 0 | AI84: 0 | AN84: 0 | AT84: 0
E85: 3.4.5 | L85: 0 | U85: 0 | X85: 0 | AA85: 0 | AD85: 0 | AI85: 0 | AN85: 0 | AT85: 0
E86: 3.4.6 | L86: 0 | U86: 0 | X86: 0 | AA86: 0 | AD86: 0 | AI86: 0 | AL86: =AJ86*AK86 -> 0 | AN86: 0 | AT86: 0
D87: Total Objectif 3 | U87: =SUM(U66:U86) -> 94480 | X87: =SUM(X66:X86) -> 133518.2571 | AA87: 525000 | AD87: 151000 | AE87: 0 | AF87: 0 | AG87: 0 | AH87: 0 | AI87: 0 | AJ87: 0 | AK87: 0 | AL87: 0 | AM87: 27377.14286 | AN87: 931375.4 | AO87: 80645.4 | AP87: 0 | AQ87: 0 | AR87: 72900 | AS87: 0 | AT87: 777830
L88: =L42+L64+L87 -> 259200 | M88: 0 | N88: 0 | O88: 0 | P88: 0 | Q88: 0 | R88: 0 | S88: 0 | T88: 0 | U88: 883515 | V88: 0 | W88: 0 | X88: 2571218.257 | Y88: 0 | Z88: 0 | AA88: 6506250 | AB88: 0 | AC88: 0 | AD88: 179500 | AE88: 0 | AF88: 250000 | AG88: 0 | AH88: 0 | AI88: 0 | AJ88: 0 | AK88: 0 | AL88: 0 | AM88: 202897.1429 | AN88: 10852580.4 | AO88: 96145.4 | AP88: 450000 | AQ88: 0 | AR88: 372900 | AS88: 0 | AT88: 9933535
AN91: =AO88+AP88+AQ88+AR88+AS88+AT88 -> 10852580.4

Sheet Innovation
H3: Dépenses de la catégorie économique "Rémunérations et salaires" : (Code 600-601) | L3: Dépenses de fournitures et de services | AD3: Investissements | AL3: Autres dépenses | AM3: Coût estimé de la réalisation | AN3: Sources de financement (par réalisation) | AU3: Ndarja e buxhetit ne vite
A4: Numéro | B4: Action | D4: Activités pour mener l'action | H4: Fonds de rémunération pour le personnel supplémentaire | L4: Dépenses pour les conférences/séminaires et la formation | U4: Services de conseil divers (assistance technique) | AA4: Dépenses d'information publique (publications)
G5: Activité avec/sans coût additionnel | U5: Expertise locale | X5: Expertise étrangère | AD5: Immeubles | AE5: Développement de logiciels | AF5: Équipement informatique | AI5: Office supplies
AO6: Contributions
F7: Correspondance avec les nouveaux numéros des activités de la Stratégie de réforme transversale de l'administration publique | H7: Nb | I7: Salaire moyen | J7: Mois | K7: Valeur totale | L7: Nb d'activités de formation/séminaires | M7: Jour/activité | N7: Participants à la formation | O7: Location de salle/jour | P7: Coût pour une personne (café/restauration) | Q7: Coût moyen d'hébergement/nuit | R7: Valeur matériel/personne | S7: Honoraires du formateur/jour | T7: Total | U7: Jour/expert | V7: Honoraires | W7: Total | X7: Jour/expert | Y7: Honoraires | Z7: Total | AA7: Article/activité | AB7: Prix/valeur par unité | AC7: Total | AF7: Pièce | AG7: Prix moyen/unité | AH7: Valeur totale | AI7: Pièce | AJ7: Prix moyen/unité | AK7: Valeur totale | AN7: Budget de l'État (PBMT 2015-2017) | AO7: IAP | AP7: CdE | AQ7: BM | AR7: PNUD | AS7: Écart financier | AU7: Viti 2015 | AV7: Viti 2016 | AW7: Viti 2017 | AX7: Viti 2018-2020
A8: a | B8: c | C8: d | D8: e | E8: f | H8: 1 | I8: 2 | J8: 3 | K8: 4 | L8: 5 | M8: 6 | N8: 7 | O8: 8 | P8: 9 | Q8: 10 | R8: 11 | S8: 12 | T8: 13 | U8: 14 | V8: 15 | W8: 16 | X8: 17 | Y8: 18 | Z8: 19 | AA8: 20 | AB8: 21 | AC8: 22 | AD8: 23 | AE8: 24 | AF8: 25 | AG8: 26 | AH8: 27 | AI8: 28 | AJ8: 29 | AK8: 30 | AL8: 31 | AM8: 32 | AN8: 33 | AO8: 34 | AP8: 35 | AQ8: 36 | AR8: 37 | AS8: 38 | AU8: 47 | AV8: 48 | AW8: 49 | AX8: 50
A9: Objectif 5 : Améliorer et concentrer les services publics en réduisant les causes de corruption et en renforçant une éthique civique pour la prestation des services publics.
B10: 5.1 | C10: Mise en place de centres de prestation de services sous la forme de guichets uniques : | E10: Stratégie de prestation des services publics | F10: 5.1 | K10: =H10*I10*J10 -> 0 | T10: =(L10*M10*O10)+(L10*M10*N10*P10)+(L10*M10*N10*Q10)+(L10*N10*R10)+(L10*M10*S10) -> 0 | W10: =U10*V10 -> 0 | Z10: 286960 | AC10: =AA10*AB10 -> 0 | AM10: =K10+T10+W10+Z10+AC10+AH10+AK10+AL10+AD10+AE10 -> 286960 | AR10: =AM10 -> 286960 | AS10: =AM10-AN10-AO10-AP10-AQ10-AR10 -> 0 | AU10: =AM10*1 -> 286960
E11: Mise en place de l'ADISA (Agence pour la prestation de services intégrés) et ouverture de 4 centres pilotes | F11: 5.1 | H11: 81 | I11: 680 | J11: 24 | K11: =I11*J11*H11 -> 1321920 | T11: =(L11*M11*O11)+(L11*M11*N11*P11)+(L11*M11*N11*Q11)+(L11*N11*R11)+(L11*M11*S11) -> 0 | W11: =U11*V11 -> 0 | Z11: =121536 -> 121536 | AC11: 136728 | AD11: 282740 | AE11: 317015 | AH11: 131487 | AK11: =(30000*0.844)*2 -> 50640 | AL11: =33760+716850+40934 -> 791544 | AM11: =K11+T11+W11+Z11+AC11+AH11+AK11+AL11+AD11+AE11 -> 3153610 | AN11: =K11+716850 -> 2038770 | AQ11: 485722 | AR11: 629118 | AS11: =AM11-AN11-AO11-AP11-AQ11-AR11 -> 0 | AU11: =K11/2+341357+Z11+AD11+AE11+AH11+AK11 -> 1905735 | AV11: =AM11-AU11 -> 1247875 | AW11: 0.3
E12: Création des infrastructures physiques des guichets uniques et de leur fonctionnement | F12: 5.1 | H12: 271 | I12: 650 | J12: 12 | K12: =I12*J12*H12 -> 2113800 | T12: 0 | W12: 0 | Z12: =X12*Y12 -> 0 | AC12: =AA12*AB12 -> 0 | AD12: =18000000 -> 18000000 | AH12: =AF12*AG12 -> 0 | AK12: =AI12*AJ12 -> 0 | AL12: 2250800 | AM12: =K12+T12+W12+Z12+AC12+AH12+AK12+AL12+AD12+AE12 -> 22364600 | AN12: =K12+3000000+AL12 -> 7364600 | AQ12: =AM12-AN12 -> 15000000 | AS12: 0 | AU12: =AD12*0.02 -> 360000 | AV12: =AD12*0.58 -> 10440000 | AW12: =AL12+K12+AD12*0.4 -> 11564600
B13: 5.2 | C13: Adaptation au modèle du guichet unique de la configuration des institutions qui fournissent des services publics : | E13: Changement des structures administratives sur la base de l'Étude pour la réorganisation des institutions publiques | F13: Changement des structures administratives sur la base de l'Étude pour la réorganisation des institutions publiques
K14: =SUM(K10:K12) -> 3435720 | L14: 0 | M14: 0 | N14: 0 | O14: 0 | P14: 0 | Q14: 0 | R14: 0 | S14: 0 | T14: 0 | U14: 0 | V14: 0 | W14: 0 | X14: 0 | Y14: 0 | Z14: 408496 | AA14: 0 | AB14: 0 | AC14: 136728 | AD14: 18282740 | AE14: 317015 | AF14: 0 | AG14: 0 | AH14: 131487 | AI14: 0 | AJ14: 0 | AK14: 50640 | AL14: 3042344 | AM14: 25805170 | AN14: 9403370 | AO14: 0 | AP14: 0 | AQ14: 15485722 | AR14: 916078 | AS14: 0 | AT14: 0 | AU14: 2552695 | AV14: 11687875 | AW14: 11564600.3 | AX14: 0
B15: Objectif 8 : Procédure simplifiée pour la prestation des services par la promotion de la communication avec le public et l'évitement de la corruption.
A16: 1 | B16: 8.1 | C16: Restructuration des services publics comme mesure nécessaire pour la simplification des procédures administratives et la réduction du nombre de msures effectuées par les citoyens et le personnel de soutien : | D16: 8.1.1 | E16: Restructuration des services publics - Identification, évaluation et définition des procédures standard pour 300+ services publics | F16: 8.1 | K16: 0 | T16: 0 | U16: 4500 | V16: 350 | W16: 1575000 | X16: 3000 | Y16: 1250 | Z16: =X16*Y16 -> 3750000 | AC16: 0 | AH16: =AF16*AG16 -> 0 | AK16: =AI16*AJ16 -> 0 | AL16: 500000 | AM16: 5825000 | AN16: =AM16*25.93% -> 1510422.5 | AS16: 4314577.5 | AU16: =AM16*0.5 -> 2912500 | AV16: =AM16*0.5 -> 2912500
D17: 8.1.2 | E17: Rédaction de manuels pour la réglementation des procédures de service ; | F17: 8.1 | K17: 0 | T17: 0 | U17: 300 | V17: 350 | W17: 105000 | X17: 250 | Y17: 1250 | Z17: 312500 | AC17: 0 | AH17: =AF17*AG17 -> 0 | AK17: =AI17*AJ17 -> 0 | AL17: 20000 | AM17: 437500 | AN17: =AM17*25.93% -> 113443.75 | AS17: 324056.25 | AV17: =AM17*0.6 -> 262500 | AW17: =AM17*0.4 -> 175000
B18: 8.2 | C18: Réorganisation des services fournis par les guichets uniques en structurant les relations entre le guichet unique et le bureau de soutien. | D18: 8.2.1 | E18: Étude de faisabilité pour le modèle de services centrés sur les citoyens. | F18: transversal | T18: 0 | W18: 350000 | Z18: 1000000 | AC18: 0 | AM18: 1350000 | AN18: =1000000*(0.2+0.15) -> 350000 | AQ18: 1000000 | AS18: 0 | AU18: =AM18*0.7 -> 945000 | AV18: =AM18*0.3 -> 405000
B19: 8.3 | C19: Décharger les institutions de l'administration publique de la fonction de prestation directe de services. | D19: 8.3.1 | E19: Mener l'étude sur la réorganisation des institutions publiques. | F19: 8.2 / 8.3 / 5.2 | K19: 0 | T19: 0 | U19: =15*50 -> 750 | V19: 350 | W19: 262500 | X19: =15*45 -> 675 | Y19: 1250 | Z19: 843750 | AC19: 0 | AH19: =AF19*AG19 -> 0 | AK19: =AI19*AJ19 -> 0 | AL19: 100000 | AM19: 1206250 | AN19: =AM19*25.93% -> 312780.625 | AO19: 25992 | AS19: 867477.375 | AV19: =AM19*0.7 -> 844375 | AW19: =AM19*0.3 -> 361875
B20: 8.4 | C20: Examen général de la législation applicable à la prestation de services publics afin de refléter la restructuration des processus opérationnel dans le cadre réglementaire : | D20: 1.3.1 | E20: Achèvement de l'Étude sur la consolidation de l'analyse de la situation initiale (référence). | F20: 8.4 | K20: 0 | T20: 0 | W20: 0 | Z20: 0 | AC20: 0 | AH20: 241152 | AK20: 0 | AM20: 241152 | AN20: =AM20*14.81% -> 35714.6112 | AS20: 205437.3888 | AU20: =AM20*1 -> 241152
D21: 1.3.2 | E21: Identification des macro secteurs nécessitant des changements (Analyses des lacunes juridiques). | F21: 8.4 | K21: 0 | T21: 0 | U21: =350*2.5 -> 875 | V21: 350 | W21: 306250 | X21: 150 | Y21: 1250 | Z21: 187500 | AC21: 0 | AH21: =AF21*AG21 -> 0 | AK21: 0 | AL21: 90000 | AM21: 583750 | AQ21: =AM21 -> 583750 | AS21: 0 | AU21: =AM21*1 -> 583750
B22: 8.5 | C22: Rédaction de manuels et des formulaires standard pour assurer le service d'une manière unifiée et codifiée. | D22: 1.4 | E22: Formulaires de services unifiés et codifiés (services unifiés totalement codifiés en 2015, tous les services en 2017). | F22: 8.5 | K22: 0 | T22: 0 | W22: 150000 | Z22: 0 | AC22: 0 | AH22: 0 | AK22: 0 | AM22: 150000 | AO22: =AM22 -> 150000 | AS22: 0 | AU22: =AM22*1 -> 150000
B23: 8.6 | C23: Garantir la valeur légale des documents électroniques imprimés. | D23: 1.3.3 | E23: Propositions de modifications juridiques et administratives. | F23: 8.6 | K23: 0 | T23: 0 | U23: =350*2.5 -> 875 | V23: 350 | W23: 306250 | X23: =300*2 -> 600 | Y23: 1250 | Z23: 750000 | AC23: 0 | AH23: 0 | AK23: 0 | AL23: 40000 | AM23: 1096250 | AO23: =AM23 -> 1096250 | AS23: 0 | AU23: =AM23*1 -> 1096250
D24: 1.3.4 | E24: Validation des modifications apportées au cadre juridique | F24: 8.6 | G24: Sans coût additionnel | K24: 0 | T24: 0 | W24: 0 | Z24: 0 | AC24: 0 | AH24: 0 | AK24: 0 | AM24: 0 | AN24: =AM24*14.81% -> 0 | AS24: 0 | AV24: =AM24*1 -> 0
D25: 1.3.5 | E25: Finalisation des modifications institutionnelles et administratives | F25: 8.6 | G25: Sans coût additionnel | K25: 0 | T25: 0 | W25: 0 | Z25: 0 | AC25: 0 | AH25: 0 | AK25: 0 | AM25: 0 | AN25: =AM25*14.81% -> 0 | AS25: 0 | AV25: =AM25*1 -> 0
B26: 8.7 | C26: Renforcement des compétences du personnel impliqué dans la restructuration des procédures et dans la prestation de services publics. | D26: 1.4.1 | E26: Préparation de programmes de formation. | F26: 8.7 | K26: 0 | T26: 0 | U26: 20 | V26: 300 | W26: 6000 | Z26: 0 | AC26: 0 | AH26: 0 | AK26: 0 | AM26: 6000 | AS26: 6000 | AW26: =AM26 -> 6000
D27: 1.4.2 | E27: Sessions de formation générale (2017) | F27: 8.7 | G27: 300 personnes | K27: 0 | L27: 15 | M27: 3 | N27: 20 | O27: 350 | P27: 25 | Q27: 30 | R27: 20 | S27: 65 | T27: 74175 | W27: 0 | Z27: 0 | AC27: 0 | AH27: 0 | AK27: 0 | AM27: 74175 | AS27: 74175 | AW27: =AM27*1 -> 74175
K28: =SUM(K15:K27) -> 0 | T28: =SUM(T15:T27) -> 74175 | W28: 3061000 | Z28: 6843750 | AA28: 0 | AB28: 0 | AC28: 0 | AD28: 0 | AE28: 0 | AF28: 0 | AG28: 0 | AH28: 241152 | AI28: 0 | AJ28: 0 | AK28: 0 | AL28: 750000 | AM28: 10970077 | AN28: 2322361.486 | AO28: 1272242 | AP28: 0 | AQ28: 1583750 | AR28: 0 | AS28: 5791723.514 | AU28: 5928652 | AV28: 4424375 | AW28: 617050 | AX28: 0
B29: Objectif 9 : Développement d'une infrastructure de TIC capable de soutenir les activités quotidiennes de l'administration publique et les augmentations de rendement en réduisant le délai pour accéder aux informations, les traiter et les transmettre tout en améliorant le flux d'informations. | K29: 0 | T29: 0 | W29: 0 | Z29: 0 | AC29: 0 | AM29: 0 | AS29: 0
B30: 9.1 | C30: 9.1. Numérisation des registres principaux. | D30: 1.2.1 | E30: Étude de l'analyse de la situation des principaux registres | F30: 9.1 | K30: 0 | T30: 0 | U30: 400 | V30: 300 | W30: 120000 | X30: 80 | Y30: 1000 | Z30: 80000 | AC30: 0 | AH30: =AF30*AG30 -> 0 | AK30: =AI30*AJ30 -> 0 | AM30: 200000 | AS30: 200000 | AU30: =AM30*1 -> 200000
B31: 9.2 | C31: 9.2. Élaboration et utilisation d'un système intégré de TIC (fondé sur les exigences du processus de restructuration des services) ; | D31: 1.2.2 | E31: Préparation d'un système intégré de TIC (fondé sur les exigences du processus de restructuration des services) ; | F31: 9.2 | K31: 0 | T31: 0 | W31: 0 | Z31: 0 | AC31: 0 | AE31: 1350000 | AH31: =AF31*AG31 -> 0 | AK31: =AI31*AJ31 -> 0 | AM31: 1350000 | AN31: 350000 | AS31: 1000000 | AU31: =AM31*0.2 -> 270000 | AV31: =AM31*0.8 -> 1080000
D32: 1.2.3 | E32: Développement et consolidation du système ; Documents pour la formation des utilisateurs ; | F32: 9.2 | K32: 0 | T32: 0 | W32: 0 | X32: 60 | Y32: 350 | Z32: 21000 | AA32: 200 | AB32: 1250 | AC32: 250000 | AE32: 6750000 | AH32: 4800000 | AK32: =AI32*AJ32 -> 0 | AM32: 11821000 | AN32: =750000+800000 -> 1550000 | AS32: 10271000 | AV32: =AM32*0.8 -> 9456800 | AW32: =AM32*0.2 -> 2364200
D33: 1.4.3 | E33: Sessions de formaiton pour les utilisateurs du système de TIC (2017) | F33: 9.2 | G33: 300 personnes | K33: 0 | L33: 15 | M33: 3 | N33: 20 | O33: 350 | P33: 25 | Q33: 30 | R33: 20 | S33: 65 | T33: =(L33*M33*O33)+(L33*M33*N33*P33)+(L33*M33*N33*Q33)+(L33*N33*R33)+(L33*M33*S33)+51906 -> 126081 | W33: 0 | Z33: 0 | AC33: 0 | AH33: =AF33*AG33 -> 0 | AK33: =AI33*AJ33 -> 0 | AM33: 126081 | AN33: 74175 | AQ33: 51906 | AS33: 0 | AW33: =AM33*1 -> 126081
B34: 9.3 | C34: 9.3. Création d'un mécanisme pour que les citoyens qui contrôleront la qualité des services fournissent directement leur opinion par SMS, pour les destinaitaires du service uniquement : | D34: 1.2.8 | E34: Élaboration d'un système permettant de rapporter les réactions des citoyens et de suivre les plaintes pour toutes les catégories de services fournis par l'administration. | F34: 9.3 | K34: 0 | T34: 0 | W34: 0 | Z34: 0 | AC34: 0 | AE34: =250000*0.844 -> 211000 | AH34: =AF34*AG34 -> 0 | AK34: =AI34*AJ34 -> 0 | AM34: 211000 | AQ34: =AM34 -> 211000 | AS34: 0 | AU34: =AM34*1 -> 211000
K35: =SUM(K29:K34) -> 0 | L35: =SUM(L29:L34) -> 15 | M35: 3 | N35: 20 | O35: 350 | P35: 25 | Q35: 30 | R35: 20 | S35: 65 | T35: 126081 | U35: 400 | V35: 300 | W35: 120000 | X35: 140 | Y35: 1350 | Z35: 101000 | AA35: 200 | AB35: 1250 | AC35: 250000 | AD35: 0 | AE35: 8311000 | AF35: 0 | AG35: 0 | AH35: 4800000 | AI35: 0 | AJ35: 0 | AK35: 0 | AL35: 0 | AM35: 13708081 | AN35: 1974175 | AO35: 0 | AP35: 0 | AQ35: 262906 | AR35: 0 | AS35: 11471000 | AU35: 681000 | AV35: 10536800 | AW35: 2490281 | AX35: 0
K36: =K14+K28+K35 -> 3435720 | T36: =T14+T28+T35 -> 200256 | W36: 3181000 | Z36: 7353246 | AC36: 386728 | AD36: 18282740 | AE36: 8628015 | AF36: 0 | AG36: 0 | AH36: 5172639 | AI36: 0 | AJ36: 0 | AK36: 50640 | AL36: 3792344 | AM36: 50483328 | AN36: 13699906.49 | AO36: 1272242 | AP36: 0 | AQ36: 17332378 | AR36: 916078 | AS36: 17262723.51 | AU36: 9162347 | AV36: 26649050 | AW36: 14671931.3 | AX36: 0
AM37: =AM41-AM36 -> 360600.5714
AH38: =K36+T36+W36+Z36+AC36+AD36+AE36+AH36+AK36+AL36 -> 50483328 | AK38: Total according to MIPA estimation | AM38: 44400000 | AN38: 9400000 | AO38: 2000000 | AQ38: 26520000 | AR38: 916077.6 | AS38: =AM41-AN40-AO38-AQ38-AR38 -> 5563922.4 | AU38: =AS36-AS38 -> 11698801.11
AL39: Salaries | AM39: =[1]Sheet2!I25 -> 3476278.571 | AN39: 6443928.571
AH40: =AM36-AH38 -> 0 | AL40: Maintenance | AM40: =[1]Sheet2!I26 -> 2967650 | AN40: =AN38+AN39 -> 15843928.57
AM41: =SUM(AM38:AM40) -> 50843928.57
AM43: Difference | AN43: =AN40-AN36 -> 2144022.085 | AO43: =AO38-AO36 -> 727758 | AP43: =AP38-AP36 -> 0 | AQ43: =AQ38-AQ36 -> 9187622 | AR43: =AR38-AR36 -> -0.4 | AS43: =AS38-AS36 -> -11698801.11

Sheet Décentralisation
B2: Stratégie transversale de réforme de l'administration publique- Tableau de chiffrage des activités liées à la décentralisation
G3: Dépenses de la catégorie économique "Rémunérations et salaires" : (Code 600-601) | AC3: Investissements | AK3: Autres dépenses | AL3: Coût estimé de la réalisation | AM3: Sources de financement (par réalisation)
A4: Numéro | B4: Action | D4: Indicateurs de réalisation | G4: Fonds de rémunération pour le personnel supplémentaire | K4: Dépenses pour les conférences/séminaires et la formation | T4: Services de conseil divers (assistance technique) | Z4: Dépenses d'information publique (publications)
F5: Activité avec/sans coût additionnel | T5: Expertise locale | W5: Expertise étrangère | AC5: Immeubles | AD5: Développement de logiciels | AE5: Équipement informatique | AH5: Fournitures de bureau
G6: Nb | H6: Salaire moyen | I6: Mois | J6: Valeur totale | K6: Nb d'activités de formation/séminaires | L6: Jour/activité | M6: Participants à la formation | N6: Location de salle/jour | O6: Coût pour une personne (café/restauration) | P6: Coût moyen d'hébergement/nuit | Q6: Valeur matériel/personne | S6: Valeur totale | T6: Jour/expert | U6: Honoraires | V6: Total | W6: Jour/expert | X6: Honoraires | Y6: Total | Z6: Article/activité | AA6: Prix/valeur par unité | AB6: Total | AE6: Pièce | AF6: Prix moyen/unité | AG6: Valeur totale | AH6: Pièce | AI6: Prix moyen/unité | AJ6: Valeur totale | AM6: Budget de l'État (PBMT 2015-2017) | AN6: IAP | AO6: CDE | AP6: BM | AQ6: UNDP | AR6: Écart budgétaire
A7: a | B7: c | C7: d | D7: e | E7: f | G7: 1 | H7: 2 | I7: 3 | J7: 4 | K7: 5 | L7: 6 | M7: 7 | N7: 8 | O7: 9 | P7: 10 | Q7: 11 | R7: 12 | S7: 13 | T7: 14 | U7: 15 | V7: 16 | W7: 17 | X7: 18 | Y7: 19 | Z7: 20 | AA7: 21 | AB7: 22 | AC7: 23 | AD7: 24 | AE7: 25 | AF7: 26 | AG7: 27 | AH7: 28 | AI7: 29 | AJ7: 30 | AK7: 31 | AL7: 32 | AM7: 33 | AN7: 34 | AO7: 35 | AP7: 36 | AQ7: 37 | AR7: 38
A8: Objectif 4 : Renforcer les structures de l'administration publique afin d'améliorer la prestation de services au public.
B9: 4.3 | C9: Soutien méthodologique à l'organisation et au fonctionnement des nouvelles entités administratives du pays et renforcement des compétences concernant la mise en œuvre. | D9: 4.3.1 | E9: Préparation de la liste des fonctions des Unités gouvernementales locales (UGL), du modèle structurel de l'organisation des municipalités, de la classification des postes et de la mise en oeuvre d'un programme de formation pour les UGL (IAP A 1.6) | F9: 61 nouvelles UGL x 3 employés = 180 personnes à former. | J9: =G9*H9*I9 -> 0 | K9: 9 | L9: 3 | M9: 20 | N9: 250 | O9: 20 | P9: 30 | Q9: 20 | S9: =(K9*L9*N9)+(K9*L9*M9*O9)+(K9*L9*M9*P9)+(K9*M9*Q9)+(K9*L9*R9) -> 37350 | V9: 50000 | Y9: =300000-S9 -> 262650 | AB9: =Z9*AA9 -> 0 | AG9: =AE9*AF9 -> 0 | AJ9: =AH9*AI9 -> 0 | AL9: =J9+S9+V9+Y9+AB9+AG9+AJ9+AK9+AC9+AD9 -> 350000 | AN9: 300000 | AO9: 50000 | AR9: =AL9-AM9-AN9-AO9-AP9-AQ9 -> 0
D10: 4.3.2 | E10: Conception du modèle du nouveau dispositif des UGL et aide à la mise en place des nouveaux dispositifs (assistance pratique). | F10: CdE au total 250 000 | S10: =(K10*L10*N10)+(K10*L10*M10*O10)+(K10*L10*M10*P10)+(K10*M10*Q10)+(K10*L10*R10) -> 0 | Y10: 200000 | AL10: 200000 | AO10: 200000 | AR10: 0
D11: 4.3.3 | E11: Renforcement des compétences des unités de gestion des ressources humaines des nouvelles municipalités (15 000 euros). | F11: 61 municipalités x 2 personnes dans chaque municipalité = 122 personnes au total | K11: 6 | L11: 5 | M11: 20 | N11: 250 | O11: 20 | P11: 30 | Q11: 20 | S11: =(K11*L11*N11)+(K11*L11*M11*O11)+(K11*L11*M11*P11)+(K11*M11*Q11)+(K11*L11*R11) -> 39900 | AL11: 39900 | AO11: 15000 | AR11: 24900
D12: 4.3.4 | E12: Standardisation des procédures de gestion des RH dans toutes les UGL (IAP A 1.2) | J12: =G12*H12*I12 -> 0 | S12: =(K12*L12*N12)+(K12*L12*M12*O12)+(K12*L12*M12*P12)+(K12*M12*Q12)+(K12*L12*R12) -> 0 | V12: 50000 | Y12: 50000 | AB12: =Z12*AA12 -> 0 | AG12: 100000 | AJ12: =AH12*AI12 -> 0 | AL12: 200000 | AN12: 200000 | AR12: 0
J13: =SUM(J9:J12) -> 0 | K13: 15 | L13: 8 | M13: 40 | N13: 500 | O13: 40 | P13: 60 | Q13: 40 | R13: 0 | S13: 77250 | T13: 0 | U13: 0 | V13: 100000 | W13: 0 | X13: 0 | Y13: 512650 | Z13: 0 | AA13: 0 | AB13: 0 | AC13: 0 | AD13: 0 | AE13: 0 | AF13: 0 | AG13: 100000 | AH13: 0 | AI13: 0 | AJ13: 0 | AK13: 0 | AL13: 789900 | AM13: 0 | AN13: 500000 | AO13: 265000 | AP13: 0 | AQ13: 0 | AR13: 24900
A14: Objectif 5 : Améliorer et concentrer les services publics en réduisant les causes de corruption et en renforçant une éthique civique pour la prestation des services publics.
A15: 5 | B15: 5.3 | C15: Mise en place de guichets uniques pour les services administratifs au niveau local. | E15: 61 municipalités, 322 unités locales. | J15: =G15*H15*I15 -> 0 | S15: =322*500 -> 161000 | V15: =T15*U15 -> 0 | Y15: =W15*X15 -> 0 | AB15: =Z15*AA15 -> 0 | AC15: =322*15000 -> 4830000 | AD15: =(61*20000)+(322*1000) -> 1542000 | AE15: 322 | AF15: 2500 | AG15: =AE15*AF15 -> 805000 | AJ15: =AH15*AI15 -> 0 | AL15: 7338000 | AM15: 4300000 | AR15: 3038000
J16: =J13+J15 -> 0 | K16: =K13+K15 -> 15 | L16: 8 | M16: 40 | N16: 500 | O16: 40 | P16: 60 | Q16: 40 | R16: 0 | S16: 238250 | T16: 0 | U16: 0 | V16: 100000 | W16: 0 | X16: 0 | Y16: 512650 | Z16: 0 | AA16: 0 | AB16: 0 | AC16: 4830000 | AD16: 1542000 | AE16: 322 | AF16: 2500 | AG16: 905000 | AH16: 0 | AI16: 0 | AJ16: 0 | AK16: 0 | AL16: 8127900 | AM16: 4300000 | AN16: 500000 | AO16: 265000 | AP16: 0 | AQ16: 0 | AR16: 3062900
AL18: =AM16+AN16+AO16+AP16+AQ16+AR16 -> 8127900

Sheet Transparence & Anti-corruption
G3: Dépenses de la catégorie économique "Rémunérations et salaires" : (Code 600-601) | AC3: Investissements | AK3: Autres dépenses | AL3: Coût estimé de la réalisation | AM3: Sources de financement (par réalisation)
A4: Numéro | B4: Action | D4: Indicateurs de réalisation | G4: Fonds de rémunération pour le personnel supplémentaire | K4: Dépenses pour les conférences/séminaires et la formation | T4: Services de conseil divers (assistance technique) | Z4: Dépenses d'information publique (publications)
F5: Activité avec/sans coût additionnel | T5: Expertise locale | W5: Expertise étrangère | AC5: Immeubles | AD5: Développement de logiciels | AE5: Équipement informatique | AH5: Fournitures de bureau
G6: Nb | H6: Salaire moyen | I6: Mois | J6: Valeur totale | K6: Nb d'activités de formation/séminaires | L6: Jour/activité | M6: Participants à la formation | N6: Location de salle/jour | O6: Coût pour une personne (café/restauration) | P6: Coût moyen d'hébergement/nuit | Q6: Valeur matériel/personne | S6: Valeur totale | T6: Jour/expert | U6: Honoraires | V6: Total | W6: Jour/expert | X6: Honoraires | Y6: Total | Z6: Article/activité | AA6: Prix/valeur par unité | AB6: Total | AE6: Pièce | AF6: Prix moyen/unité | AG6: Valeur totale | AH6: Pièce | AI6: Prix moyen/unité | AJ6: Valeur totale | AM6: Budget de l'État (PBMT 2015-2017) | AN6: IAP | AO6: CDE | AP6: BM | AQ6: UNDP | AR6: Écart budgétaire
A7: a | B7: c | C7: d | D7: e | E7: f | G7: 1 | H7: 2 | I7: 3 | J7: 4 | K7: 5 | L7: 6 | M7: 7 | N7: 8 | O7: 9 | P7: 10 | Q7: 11 | R7: 12 | S7: 13 | T7: 14 | U7: 15 | V7: 16 | W7: 17 | X7: 18 | Y7: 19 | Z7: 20 | AA7: 21 | AB7: 22 | AC7: 23 | AD7: 24 | AE7: 25 | AF7: 26 | AG7: 27 | AH7: 28 | AI7: 29 | AJ7: 30 | AK7: 31 | AL7: 32 | AM7: 33 | AN7: 34 | AO7: 35 | AP7: 36 | AQ7: 37 | AR7: 38
A8: Objectif 2 : Système transparent et exhaustif de rédaction législative, fondé sur les politiques publiques et garantissant la conformité avec l'acquis communautaire.
A9: 2 | B9: 2.3 | C9: Evaluation systématique des failles législatives facilitant la corruption (protection contre la corruption). | D9: 2.3.1 | E9: Intégration du manuel sur la prévention de la corruption. | F9: Pas de coût | J9: =G9*H9*I9 -> 0 | S9: =(K9*L9*N9)+(K9*L9*M9*O9)+(K9*L9*M9*P9)+(K9*M9*Q9)+(K9*L9*R9) -> 0 | V9: =T9*U9 -> 0 | AL9: =J9+S9+V9+Y9+AB9+AG9+AJ9+AK9+AC9+AD9 -> 0 | AR9: =AL9-AM9-AN9-AO9-AP9-AQ9 -> 0
D10: 2.3.2 | E10: Elaboration d'une méthodologie d'analyse de la législation aux fins de détecter les failles facilitant la corruption. | F10: Manuel et voyage d'études pour 8 personnes, et formation pour environ 20 ministères + Parlement + Bureau du Président (environ 45 au total). | J10: 0 | K10: 2 | L10: 2 | M10: 25 | N10: 300 | O10: 20 | Q10: 25 | S10: 4450 | T10: 10 | U10: 350 | V10: 3500 | W10: 45 | X10: 1250 | Y10: =W10*X10 -> 56250 | AK10: =(8*500)+ (8*5*80)+(3*5*50) -> 7950 | AL10: 72150 | AR10: =AL10-AM10-AN10-AO10-AP10-AQ10 -> 72150
J11: =SUM(J8:J10) -> 0 | S11: =SUM(S8:S10) -> 4450 | V11: 3500 | Y11: 56250 | Z11: 0 | AA11: 0 | AB11: 0 | AC11: 0 | AD11: 0 | AE11: 0 | AF11: 0 | AG11: 0 | AH11: 0 | AI11: 0 | AJ11: 0 | AK11: 7950 | AL11: 72150 | AM11: 0 | AN11: 0 | AO11: 0 | AP11: 0 | AQ11: 0 | AR11: 72150
A12: Objectif 6 : Amélioration des capacités de mise en œuvre de la législation sur la fonction publique et simplification des procédures d'application.
B13: 6.5.1 | C13: Utilisation systématique des procédures de contrôle de laprobité (contrôle de l'intégrité). | D13: 6.5.1.1 | E13: Révision de l'examen d'admission pendant le recrutement pour y inclure des questions spécifiques concernant l'évaluation de la probité. | F13: Pas de coût (à inclure dans le coût de l'examen) | J13: 0 | S13: 0 | AL13: 0 | AR13: =AL13-AM13-AN13-AO13-AP13-AQ13 -> 0
D14: 6.5.1.2 | E14: Évaluation de la probité lors de l'évaluation annuelle de performance. | F14: Pas de coût | J14: 0 | S14: 0 | V14: 0 | AL14: 0 | AR14: =AL14-AM14-AN14-AO14-AP14-AQ14 -> 0
J15: =SUM(J12:J14) -> 0 | S15: =SUM(S12:S14) -> 0 | T15: 0 | U15: 0 | V15: 0 | W15: 0 | X15: 0 | Y15: 0 | Z15: 0 | AA15: 0 | AB15: 0 | AC15: 0 | AD15: 0 | AE15: 0 | AF15: 0 | AG15: 0 | AH15: 0 | AI15: 0 | AJ15: 0 | AK15: 0 | AL15: 0 | AM15: 0 | AN15: 0 | AO15: 0 | AP15: 0 | AQ15: 0 | AR15: 0
B16: Objectif 10 : Renforcement de l'efficience et de la responsabilité des fonctionnaires.
A17: 10 | B17: 10.1 | C17: Préparation d'un large programme de formation sur le nouveau Code de procédure administrative : | D17: 10.1.1 | E17: Mise en œuvre du programme de renforcement des compétences pour les ministères sectoriels et les UGL, en ce qui concerne l'application du Code de procédure administrative (IAP A.1.1) | F17: 700000 TA | J17: =G17*H17*I17 -> 0 | S17: =(K17*L17*N17)+(K17*L17*M17*O17)+(K17*L17*M17*P17)+(K17*M17*Q17)+(K17*L17*R17) -> 0 | V17: =T17*U17 -> 0 | Y17: =700000-AD17 -> 226000 | AB17: =Z17*AA17 -> 0 | AD17: =700000-226000 -> 474000 | AG17: =AE17*AF17 -> 0 | AJ17: =AH17*AI17 -> 0 | AL17: =J17+S17+V17+Y17+AB17+AG17+AJ17+AK17+AC17+AD17 -> 700000 | AN17: =AL17 -> 700000 | AR17: =AL17-AM17-AN17-AO17-AP17-AQ17 -> 0
B18: 10.2 | C18: 10.2. Généraliser les délégations de compétences aux institutions, afin d'accroître la responsabilité des fonctionnaires : | D18: 10.2.1 | E18: Développement des projets pilotes de délégation de prise de décisions. | J18: =G18*H18*I18 -> 0 | S18: =(K18*L18*N18)+(K18*L18*M18*O18)+(K18*L18*M18*P18)+(K18*M18*Q18)+(K18*L18*R18) -> 0 | V18: =T18*U18 -> 0 | Y18: =W18*X18 -> 0 | AB18: =Z18*AA18 -> 0 | AG18: =AE18*AF18 -> 0 | AJ18: =AH18*AI18 -> 0 | AK18: 2000000 | AL18: =J18+S18+V18+Y18+AB18+AG18+AJ18+AK18+AC18+AD18 -> 2000000 | AR18: =AL18-AM18-AN18-AO18-AP18-AQ18 -> 2000000
D19: 10.2.2 | E19: Étendre le processus de délégation à l'intégralité de l'administration publique. | F19: L'estimation réelle du coût aura lieu après l'achèvement des projets pilotes. Le coût fixé n'est qu'indicatif. | J19: =G19*H19*I19 -> 0 | S19: =(K19*L19*N19)+(K19*L19*M19*O19)+(K19*L19*M19*P19)+(K19*M19*Q19)+(K19*L19*R19) -> 0 | V19: =T19*U19 -> 0 | Y19: =W19*X19 -> 0 | AB19: =Z19*AA19 -> 0 | AG19: =AE19*AF19 -> 0 | AJ19: =AH19*AI19 -> 0 | AL19: =J19+S19+V19+Y19+AB19+AG19+AJ19+AK19+AC19+AD19 -> 0 | AR19: =AL19-AM19-AN19-AO19-AP19-AQ19 -> 0
J20: =SUM(J17:J19) -> 0 | S20: =SUM(S17:S19) -> 0 | V20: =SUM(V17:V19) -> 0 | Y20: =SUM(Y17:Y19) -> 226000 | AB20: =SUM(AB17:AB19) -> 0 | AC20: =SUM(AC17:AC19) -> 0 | AD20: =SUM(AD17:AD19) -> 474000 | AG20: =SUM(AG17:AG19) -> 0 | AJ20: =SUM(AJ17:AJ19) -> 0 | AK20: 2000000 | AL20: 2700000 | AM20: 0 | AN20: 700000 | AO20: 0 | AP20: 0 | AQ20: 0 | AR20: 2000000
B21: Objectif 11 : Renforcement du contrôle sur les activités de l'admnistration publique, garantissant le droit des citoyens et l'accès à l'information.
B22: 11.1 | C22: Mise en œuvre du programme de transparence institutionnelle par les autorités publiques. | D22: 11.1.1 | F22: PAS DE COÛT | AL22: =J22+S22+V22+Y22+AB22+AG22+AJ22+AK22+AC22+AD22 -> 0 | AR22: =AL22-AM22-AN22-AO22-AP22-AQ22 -> 0
B23: 11.2 | C23: Utilisation des TIC pour renforcer la transparence des activités de l'administration. | D23: 11.2.1 | F23: PAS DE COÛT | AL23: =J23+S23+V23+Y23+AB23+AG23+AJ23+AK23+AC23+AD23 -> 0 | AR23: =AL23-AM23-AN23-AO23-AP23-AQ23 -> 0
B24: 11.3 | C24: Élaboration d'un mécanisme d'évaluationpour contrôler la mise en application cohérente et homogène des normes dans l'administration publique. | D24: 11.3.1 | E24: Développement d'un programme de contrôle de l'application des normes (IAP A.2.1) | V24: 200000 | AD24: 200000 | AG24: 200000 | AL24: =J24+S24+V24+Y24+AB24+AG24+AJ24+AK24+AC24+AD24 -> 600000 | AN24: 600000 | AR24: =AL24-AM24-AN24-AO24-AP24-AQ24 -> 0
J25: =SUM(J22:J24) -> 0 | K25: =SUM(K22:K24) -> 0 | L25: 0 | M25: 0 | N25: 0 | O25: 0 | P25: 0 | Q25: 0 | R25: 0 | S25: 0 | T25: 0 | U25: 0 | V25: 200000 | W25: 0 | X25: 0 | Y25: 0 | Z25: 0 | AA25: 0 | AB25: 0 | AC25: 0 | AD25: 200000 | AE25: 0 | AF25: 0 | AG25: 200000 | AH25: 0 | AI25: 0 | AJ25: 0 | AK25: 0 | AL25: 600000 | AM25: 0 | AN25: 600000 | AO25: 0 | AP25: 0 | AQ25: 0 | AR25: 0
J26: =J11+J15+J20+J25 -> 0 | K26: 0 | L26: 0 | M26: 0 | N26: 0 | O26: 0 | P26: 0 | Q26: 0 | R26: 0 | S26: 4450 | T26: 0 | U26: 0 | V26: 203500 | W26: 0 | X26: 0 | Y26: 282250 | Z26: 0 | AA26: 0 | AB26: 0 | AC26: 0 | AD26: 674000 | AE26: 0 | AF26: 0 | AG26: 200000 | AH26: 0 | AI26: 0 | AJ26: 0 | AK26: 2007950 | AL26: 3372150 | AM26: 0 | AN26: 1300000 | AO26: 0 | AP26: 0 | AQ26: 0 | AR26: 2072150
AL28: =AM26+AN26+AO26+AP26+AQ26+AR26 -> 3372150
